Workbook

Sheet Cover

Sheet General Inputs
A1: General Inputs
A4: WACC calculation
A5: Inflation from 1/1/06 to 30/6/06
A6: Inflation rate (forecast) | B6: =[43]WACC!$G$6 -> 0.0239
A7: Real Vanilla WACC | B7: =5.28%-2.39% -> 0.0289
A8: Nominal Vanilla WACC | B8: 0.0528
A10: Inflation index
B11: 2005 | C11: 2006 | D11: 2007 | E11: 2008 | F11: 2009 | G11: 2010 | H11: 2011 | I11: 2012 | J11: 2013 | K11: 2014 | L11: 2015 | M11: 2016 | N11: 2017 | O11: 2018 | P11: 2019 | Q11: 2020 | R11: 2021 | S11: 2022
A12: March | B12: =[44]Data1!M237 -> 82.1 | C12: =[44]Data1!M241 -> 84.5 | D12: =[44]Data1!M245 -> 86.6 | E12: =[44]Data1!M249 -> 90.3 | F12: =[44]Data1!M253 -> 92.5 | G12: =[44]Data1!M257 -> 95.2 | H12: =[44]Data1!M261 -> 98.3 | I12: =[44]Data1!M265 -> 99.9 | J12: =[44]Data1!M269 -> 102.4 | K12: =[44]Data1!M273 -> 105.4 | L12: =[44]Data1!M277 -> 106.8 | M12: =[44]Data1!M281 -> 108.2 | N12: =M15*1.0239^0.25 -> 110.6996107 | O12: =N15*1.0239^0.25 -> 113.3453314 | P12: 116.0542848 | Q12: 118.8279822 | R12: 121.667971 | S12: 124.5758355
A13: June | B13: =[44]Data1!M238 -> 82.6 | C13: =[44]Data1!M242 -> 85.9 | D13: =[44]Data1!M246 -> 87.7 | E13: =[44]Data1!M250 -> 91.6 | F13: =[44]Data1!M254 -> 92.9 | G13: =[44]Data1!M258 -> 95.8 | H13: =[44]Data1!M262 -> 99.2 | I13: =[44]Data1!M266 -> 100.4 | J13: =[44]Data1!M270 -> 102.8 | K13: =[44]Data1!M274 -> 105.9 | L13: =[44]Data1!M278 -> 107.5 | M13: =[44]Data1!M282 -> 108.6 | N13: =N12*1.0239^0.25 -> 111.3551941 | O13: =O12*1.0239^0.25 -> 114.0165832 | P13: 116.7415796 | Q13: 119.5317033 | R13: 122.388511 | S13: 125.3135964
A14: September | B14: =[44]Data1!M239 -> 83.4 | C14: =[44]Data1!M243 -> 86.7 | D14: =[44]Data1!M247 -> 88.3 | E14: =[44]Data1!M251 -> 92.7 | F14: =[44]Data1!M255 -> 93.8 | G14: =[44]Data1!M259 -> 96.5 | H14: =[44]Data1!M263 -> 99.8 | I14: =[44]Data1!M267 -> 101.8 | J14: =[44]Data1!M271 -> 104 | K14: =[44]Data1!M275 -> 106.4 | L14: =[44]Data1!M279 -> 108 | M14: =[44]Data1!$M$283 -> 109.4 | N14: =N13*1.0239^0.25 -> 112.01466 | O14: 114.6918104 | P14: 117.4329446 | Q14: 120.239592 | R14: 123.1133183 | S14: 126.0557266
A15: December | B15: =[44]Data1!M240 -> 83.8 | C15: =[44]Data1!M244 -> 86.6 | D15: =[44]Data1!M248 -> 89.1 | E15: =[44]Data1!M252 -> 92.4 | F15: =[44]Data1!M256 -> 94.3 | G15: =[44]Data1!M260 -> 96.9 | H15: =[44]Data1!M264 -> 99.8 | I15: =[44]Data1!M268 -> 102 | J15: =[44]Data1!M272 -> 104.8 | K15: =[44]Data1!M276 -> 106.6 | L15: =[44]Data1!M280 -> 108.4 | M15: =M14*1.0239^0.25 -> 110.0478869 | N15: =N14*1.0239^0.25 -> 112.6780314 | O15: 115.3710363 | P15: 118.1284041 | Q15: 120.951673 | R15: 123.8424179 | S15: 126.8022517
A16: Annual CPI | B16: 0.02359472588 | C16: =C12/B12-1 -> 0.02923264312 | D16: 0.02485207101 | E16: =E12/D12-1 -> 0.04272517321 | F16: 0.02436323367 | G16: 0.02918918919 | H16: 0.03256302521 | I16: =I12/H12-1 -> 0.01627670397 | J16: 0.02502502503 | K16: 0.029296875 | L16: 0.01328273245 | M16: =M12/L12-1 -> 0.01310861423 | N16: 0.02310176226 | O16: 0.0239 | P16: 0.0239 | Q16: 0.0239 | R16: =R12/Q12-1 -> 0.0239 | S16: =S12/R12-1 -> 0.0239
A18: Cost Pools
A19: Tariff class | B19: Short Name | C19: Tariff type | D19: Description of cost centre | E19: Description of tariff
A20: 1 | B20: Tariff R: Res Central | C20: Non-demand | D20: Tariff V - Residential Central | E20: Residential tariff
A21: 2 | B21: Tariff R: Res North | C21: Non-demand | D21: Tariff V - Residential Northern | E21: Residential tariff
A22: 3 | B22: Tariff R: Res MV (Vic) | C22: Non-demand | D22: Tariff V - Residential Murray Valley (Vic) | E22: Residential tariff
A23: 4 | B23: Tariff R: Res Bairnsdale | C23: Non-demand | D23: Tariff V - Residential Bairnsdale | E23: Residential tariff
A24: 5 | B24: Tariff R: Res Albury | C24: Non-demand | D24: Tariff V - Residential Albury | E24: Residential tariff
A25: 6 | B25: Tariff C: Non- Res Central | C25: Non-demand | D25: Tariff V - Non- Residential Central | E25: Non- Residential tariff
A26: 7 | B26: Tariff C: Non- Res North | C26: Non-demand | D26: Tariff V - Non- Residential Northern | E26: Non- Residential tariff
A27: 8 | B27: Tariff C: Non- Res MV (Vic) | C27: Non-demand | D27: Tariff V - Non- Residential Murray Valley (Vic) | E27: Non- Residential tariff
A28: 9 | B28: Tariff C: Non- Res Bairnsdale | C28: Non-demand | D28: Tariff V - Non- Residential Bairnsdale | E28: Non- Residential tariff
A29: 10 | B29: Tariff C: Non- Res Albury | C29: Non-demand | D29: Tariff C - Non- Residential Albury | E29: Non- Residential tariff
A30: 11 | B30: Tariff D: Central | C30: Demand | D30: Tariff D - MHQ (GJ/h) Tariff D Zone - Central | E30: Demand customers in region 1
A31: 12 | B31: Tariff D: North | C31: Demand | D31: Tariff D - MHQ (GJ/h) Tariff D Zone - North | E31: Demand customers in region 2
A32: 13 | B32: Tariff D: MV (Vic) | C32: Demand | D32: Tariff D - MHQ (GJ/h) Tariff D Zone - Murray Valley (Vic) | E32: Demand customers in region 3
A33: 14 | B33: Tariff D: Bairnsdale | C33: Demand | D33: Tariff D - MHQ (GJ/h) Tariff D Zone - Bairnsdale | E33: Demand customers in region 4
A34: 15 | B34: Tariff D: Albury | C34: Demand | D34: Tariff D - MHQ (GJ/h) Tariff D Zone - Albury | E34: Demand customers in region 5

Sheet Inflation - Input (hidden)
B1: ="ENVESTRA - Cost allocation model for "&'General Inputs'!#REF!&" ("&'General Inputs'!#REF!&")" -> 
B2: Inflation - inputs
B3: Back to table of contents
B4: This sheet provide inputs for inflation values based on Envestra financial model
B5: Updating the 2000 to 2004 Depreciation Allowance
B7: Period Ending 30 June | J7: 2005 | K7: =J7+1 -> 2006 | L7: 2007 | M7: 2008 | N7: 2009 | O7: 2010 | P7: 2011
B9: SAIPAR Inflation
B10: Quarterly inflation values up until December 2002 are the assumed values of SAIPAR.
B11: Quartley CPI values at and before September 2002 are baqck calculated from SAIPAR's inflation values.
B13: Quarterly CPI
B15: March | J15: 147.5 | K15: 151.9 | L15: 155.6 | M15: 162.2 | N15: 166.2 | O15: 170.355 | P15: 174.613875
B16: June | J16: 148.4 | K16: 154.3 | L16: 157.5 | M16: 164.6 | N16: 167.2291513 | O16: 171.4098801 | P16: 175.6951271
B17: September | J17: 149.8 | K17: 155.7 | L17: 158.6 | M17: 166.5 | N17: 168.2646754 | O17: 172.4712923 | P17: 176.7830746
B18: December | J18: 150.6 | K18: 155.5 | L18: 160.1 | M18: 166 | N18: 169.3066118 | O18: 173.539277 | P18: 177.877759
B20: Quarterly Inflation
J21: 2005 | K21: 2006 | L21: 2007 | M21: 2008 | N21: 2009 | O21: 2010 | P21: 2011
B22: March | J22: 0.006825938567 | K22: 0.008632138114 | L22: 0.0006430868167 | M22: 0.013116802 | N22: 0.001204819277 | O22: 0.006192246326 | P22: 0.006192246326
B23: June | J23: 0.006101694915 | K23: 0.01579986833 | L23: 0.01221079692 | M23: 0.01479654747 | N23: 0.006192246326 | O23: 0.006192246326 | P23: 0.006192246326
B24: September | J24: 0.009433962264 | K24: 0.00907323396 | L24: 0.006984126984 | M24: 0.01154313487 | N24: 0.006192246326 | O24: 0.006192246326 | P24: 0.006192246326
B25: December | J25: 0.005340453939 | K25: -0.001284521516 | L25: 0.009457755359 | M25: -0.003003003003 | N25: 0.006192246326 | O25: 0.006192246326 | P25: 0.006192246326
B27: Six Month Inflation
J28: 2005 | K28: 2006 | L28: 2007 | M28: 2008 | N28: 2009 | O28: 2010 | P28: 2011
B29: March | J29: 0.01444291609 | K29: 0.01401869159 | L29: -0.0006422607579 | M29: 0.02269861286 | N29: -0.001801801802 | O29: 0.01242283657 | P29: 0.01242283657
B30: June | J30: 0.01296928328 | K30: 0.02456839309 | L30: 0.01286173633 | M30: 0.02810743285 | N30: 0.00740452614 | O30: 0.01242283657 | P30: 0.01242283657
B31: September | J31: 0.01559322034 | K31: 0.0250164582 | L31: 0.01928020566 | M31: 0.02651048089 | N31: 0.01242283657 | O31: 0.01242283657 | P31: 0.01242283657
B32: December | J32: 0.01482479784 | K32: 0.00777705768 | L32: 0.01650793651 | M32: 0.008505467801 | N32: 0.01242283657 | O32: 0.01242283657 | P32: 0.01242283657
B34: Annual Inflation
J35: 2005 | K35: 2006 | L35: 2007 | M35: 2008 | N35: 2009 | O35: 2010 | P35: 2011
B36: March | J36: 0.02359472588 | K36: 0.02983050847 | L36: 0.02435813035 | M36: 0.04241645244 | N36: 0.02466091245 | O36: 0.025 | P36: 0.025
B37: June | J37: 0.02486187845 | K37: 0.0397574124 | L37: 0.02073882048 | M37: 0.04507936508 | N37: 0.0159729729 | O37: 0.025 | P37: 0.025
B38: September | J38: 0.03026134801 | K38: 0.0393858478 | L38: 0.01862556198 | M38: 0.04981084489 | N38: 0.01059865127 | O38: 0.025 | P38: 0.025
B39: December | J39: 0.02798634812 | K39: 0.03253652058 | L39: 0.02958199357 | M39: 0.03685196752 | N39: 0.01991934792 | O39: 0.025 | P39: 0.025
B41: Inflation factor to 31 December 2005
J42: 2005 | K42: 2006 | L42: 2007 | M42: 2008 | N42: 2009 | O42: 2010 | P42: 2011
B43: March | J43: 1 | K43: 1.029830508 | L43: 1.054915254 | M43: 1.099661017 | N43: 1.126779661 | O43: 1.154949153 | P43: 1.183822881
B44: June | J44: 1.006101695 | K44: 1.046101695 | L44: 1.06779661 | M44: 1.115932203 | N44: 1.133756958 | O44: 1.162100882 | P44: 1.191153404
B45: September | J45: 1.01559322 | K45: 1.05559322 | L45: 1.075254237 | M45: 1.128813559 | N45: 1.140777461 | O45: 1.169296897 | P45: 1.19852932
B46: December | J46: 1.021016949 | K46: 1.054237288 | L46: 1.085423729 | M46: 1.125423729 | N46: 1.147841436 | O46: 1.176537472 | P46: 1.205950908
B48: Actual Inlfation
B50: Quarterly CPI
J51: 2005 | K51: 2006 | L51: 2007 | M51: 2008 | N51: 2009 | O51: 2010 | P51: 2011
B52: March | J52: 147.5 | K52: 151.6609409 | L52: 155.4524644 | M52: 159.3387761 | N52: 163.3222455 | O52: 167.4053016 | P52: 171.5904341
B53: June | J53: 148.4 | K53: 152.6000628 | L53: 156.4150644 | M53: 160.325441 | N53: 164.333577 | O53: 168.4419165 | P53: 172.6529644
B54: September | J54: 149.8 | K54: 153.545 | L54: 157.383625 | M54: 161.3182156 | N54: 165.351171 | O54: 169.4849503 | P54: 173.722074
B55: December | J55: 150.7275985 | K55: 154.4957885 | L55: 158.3581832 | M55: 162.3171378 | N55: 166.3750662 | O55: 170.5344429 | P55: 174.7978039
B57: Quarterly Inflation
J58: 2005 | K58: 2006 | L58: 2007 | M58: 2008 | N58: 2009 | O58: 2010 | P58: 2011
B59: March | J59: 0.006825938567 | K59: 0.006192246326 | L59: 0.006192246326 | M59: 0.006192246326 | N59: 0.006192246326 | O59: 0.006192246326 | P59: 0.006192246326
B60: June | J60: 0.006101694915 | K60: 0.006192246326 | L60: 0.006192246326 | M60: 0.006192246326 | N60: 0.006192246326 | O60: 0.006192246326 | P60: 0.006192246326
B61: September | J61: 0.009433962264 | K61: 0.006192246326 | L61: 0.006192246326 | M61: 0.006192246326 | N61: 0.006192246326 | O61: 0.006192246326 | P61: 0.006192246326
B62: December | J62: 0.006192246326 | K62: 0.006192246326 | L62: 0.006192246326 | M62: 0.006192246326 | N62: 0.006192246326 | O62: 0.006192246326 | P62: 0.006192246326
B64: Six Month Inflation
J65: 2005 | K65: 2006 | L65: 2007 | M65: 2008 | N65: 2009 | O65: 2010 | P65: 2011
B66: March | J66: 0.01444291609 | K66: 0.01242283657 | L66: 0.01242283657 | M66: 0.01242283657 | N66: 0.01242283657 | O66: 0.01242283657 | P66: 0.01242283657
B67: June | J67: 0.01296928328 | K67: 0.01242283657 | L67: 0.01242283657 | M67: 0.01242283657 | N67: 0.01242283657 | O67: 0.01242283657 | P67: 0.01242283657
B68: September | J68: 0.01559322034 | K68: 0.01242283657 | L68: 0.01242283657 | M68: 0.01242283657 | N68: 0.01242283657 | O68: 0.01242283657 | P68: 0.01242283657
B69: December | J69: 0.01568462601 | K69: 0.01242283657 | L69: 0.01242283657 | M69: 0.01242283657 | N69: 0.01242283657 | O69: 0.01242283657 | P69: 0.01242283657
B71: Annual Inflation
J72: 2005 | K72: 2006 | L72: 2007 | M72: 2008 | N72: 2009 | O72: 2010 | P72: 2011
B73: March | J73: 0.02359472588 | K73: 0.02820976893 | L73: 0.025 | M73: 0.025 | N73: 0.025 | O73: 0.025 | P73: 0.025
B74: June | J74: 0.02486187845 | K74: 0.02830231012 | L74: 0.025 | M74: 0.025 | N74: 0.025 | O74: 0.025 | P74: 0.025
B75: September | J75: 0.03026134801 | K75: 0.025 | L75: 0.025 | M75: 0.025 | N75: 0.025 | O75: 0.025 | P75: 0.025
B76: December | J76: 0.02885732764 | K76: 0.025 | L76: 0.025 | M76: 0.025 | N76: 0.025 | O76: 0.025 | P76: 0.025
B78: Inflation factor to 31 December 2005
J79: 2005 | K79: 2006 | L79: 2007 | M79: 2008 | N79: 2009 | O79: 2010 | P79: 2011
B80: March | J80: 1 | K80: 1.028209769 | L80: 1.053915013 | M80: 1.080262888 | N80: 1.107269461 | O80: 1.134951197 | P80: 1.163324977
B81: June | J81: 1.006101695 | K81: 1.034576697 | L81: 1.060441115 | M81: 1.086952142 | N81: 1.114125946 | O81: 1.141979095 | P81: 1.170528572
B82: September | J82: 1.01559322 | K82: 1.040983051 | L82: 1.067007627 | M82: 1.093682818 | N82: 1.121024888 | O82: 1.14905051 | P82: 1.177776773
B83: December | J83: 1.021882024 | K83: 1.047429074 | L83: 1.073614801 | M83: 1.100455171 | N83: 1.12796655 | O83: 1.156165714 | P83: 1.185069857
B85: Model Inflation
B87: Quarterly CPI
J88: 2005 | K88: 2006 | L88: 2007 | M88: 2008 | N88: 2009 | O88: 2010 | P88: 2011
B89: March | J89: 147.5 | K89: 151.9 | L89: 155.6 | M89: 162.2 | N89: 166.2 | O89: 170.355 | P89: 174.613875
B90: June | J90: 148.4 | K90: 154.3 | L90: 157.5 | M90: 164.6 | N90: 167.2291513 | O90: 171.4098801 | P90: 175.6951271
B91: September | J91: 149.8 | K91: 155.7 | L91: 158.6 | M91: 166.5 | N91: 168.2646754 | O91: 172.4712923 | P91: 176.7830746
B92: December | J92: 150.6 | K92: 155.5 | L92: 160.1 | M92: 166 | N92: 169.3066118 | O92: 173.539277 | P92: 177.877759
B94: Quarterly Inflation
J95: 2005 | K95: 2006 | L95: 2007 | M95: 2008 | N95: 2009 | O95: 2010 | P95: 2011
B96: March | J96: 0.006825938567 | K96: 0.008632138114 | L96: 0.0006430868167 | M96: 0.013116802 | N96: 0.001204819277 | O96: 0.006192246326 | P96: 0.006192246326
B97: June | J97: 0.006101694915 | K97: 0.01579986833 | L97: 0.01221079692 | M97: 0.01479654747 | N97: 0.006192246326 | O97: 0.006192246326 | P97: 0.006192246326
B98: September | J98: 0.009433962264 | K98: 0.00907323396 | L98: 0.006984126984 | M98: 0.01154313487 | N98: 0.006192246326 | O98: 0.006192246326 | P98: 0.006192246326
B99: December | J99: 0.005340453939 | K99: -0.001284521516 | L99: 0.009457755359 | M99: -0.003003003003 | N99: 0.006192246326 | O99: 0.006192246326 | P99: 0.006192246326
B101: Six Month Inflation
J102: 2005 | K102: 2006 | L102: 2007 | M102: 2008 | N102: 2009 | O102: 2010 | P102: 2011
B103: March | J103: 0.01444291609 | K103: 0.01401869159 | L103: -0.0006422607579 | M103: 0.02269861286 | N103: -0.001801801802 | O103: 0.01242283657 | P103: 0.01242283657
B104: June | J104: 0.01296928328 | K104: 0.02456839309 | L104: 0.01286173633 | M104: 0.02810743285 | N104: 0.00740452614 | O104: 0.01242283657 | P104: 0.01242283657
B105: September | J105: 0.01559322034 | K105: 0.0250164582 | L105: 0.01928020566 | M105: 0.02651048089 | N105: 0.01242283657 | O105: 0.01242283657 | P105: 0.01242283657
B106: December | J106: 0.01482479784 | K106: 0.00777705768 | L106: 0.01650793651 | M106: 0.008505467801 | N106: 0.01242283657 | O106: 0.01242283657 | P106: 0.01242283657
B108: Annual Inflation | J108: 2005 | K108: 2006 | L108: 2007 | M108: 2008 | N108: 2009 | O108: 2010 | P108: 2011
B110: March | J110: 0.02359472588 | K110: 0.02983050847 | L110: 0.02435813035 | M110: 0.04241645244 | N110: 0.02466091245 | O110: 0.025 | P110: 0.025
B111: June | J111: 0.02486187845 | K111: 0.0397574124 | L111: 0.02073882048 | M111: 0.04507936508 | N111: 0.0159729729 | O111: 0.025 | P111: 0.025
B112: September | J112: 0.03026134801 | K112: 0.0393858478 | L112: 0.01862556198 | M112: 0.04981084489 | N112: 0.01059865127 | O112: 0.025 | P112: 0.025
B113: December | J113: 0.02798634812 | K113: 0.03253652058 | L113: 0.02958199357 | M113: 0.03685196752 | N113: 0.01991934792 | O113: 0.025 | P113: 0.025
B115: Inflation factor to 31 December 2005
J116: 2005 | K116: 2006 | L116: 2007 | M116: 2008 | N116: 2009 | O116: 2010 | P116: 2011
B117: March | J117: 1 | K117: 1.029830508 | L117: 1.054915254 | M117: 1.099661017 | N117: 1.126779661 | O117: 1.154949153 | P117: 1.183822881
B118: June | J118: 1.006101695 | K118: 1.046101695 | L118: 1.06779661 | M118: 1.115932203 | N118: 1.133756958 | O118: 1.162100882 | P118: 1.191153404
B119: September | J119: 1.01559322 | K119: 1.05559322 | L119: 1.075254237 | M119: 1.128813559 | N119: 1.140777461 | O119: 1.169296897 | P119: 1.19852932
B120: December | J120: 1.021016949 | K120: 1.054237288 | L120: 1.085423729 | M120: 1.125423729 | N120: 1.147841436 | O120: 1.176537472 | P120: 1.205950908

Sheet Connection Numbers Inputs
A1: Connection Numbers Inputs
A4: Peak Price Band 1 | B4: =TRANSPOSE('General Inputs'!B20:B34) -> Tariff R: Res Central | C4: Tariff R: Res North | D4: Tariff R: Res MV (Vic) | E4: Tariff R: Res Bairnsdale | F4: Tariff R: Res Albury | G4: Tariff C: Non- Res Central | H4: Tariff C: Non- Res North | I4: Tariff C: Non- Res MV (Vic) | J4: Tariff C: Non- Res Bairnsdale | K4: Tariff C: Non- Res Albury | L4: Tariff D: Central | M4: Tariff D: North | N4: Tariff D: MV (Vic) | O4: Tariff D: Bairnsdale | P4: Tariff D: Albury
A5: 2013 | B5: 491543.0795 | C5: 68804.23562 | D5: 6850.430137 | E5: 2940.789041 | F5: 19795.88219 | G5: 19217.11781 | H5: 3169.945205 | I5: 310.2684932 | J5: 82.24657534 | K5: 913.4789954 | L5: 194 | M5: 47 | N5: 7 | O5: 2 | P5: 8
A6: 2014 | B6: 501388.7397 | C6: 70194.27397 | D6: 7102.926027 | E6: 3331.452055 | F6: 20194.32603 | G6: 19410.03562 | H6: 3185.915068 | I6: 323.8493151 | J6: 92.24657534 | K6: 920.3913242 | L6: 200 | M6: 50 | N6: 7 | O6: 2 | P6: 8
A7: 2015 | B7: 511835.0247 | C7: 71667.27397 | D7: 7364.926027 | E7: 3649.10411 | F7: 20689.11233 | G7: 19796.20548 | H7: 3213.257534 | I7: 334.660274 | J7: 99.35342466 | K7: 927.8378995 | L7: 198 | M7: 48 | N7: 7 | O7: 2 | P7: 7
A8: 2016 | B8: 523065.8367 | C8: 73384.00099 | D8: 7815.284451 | E8: 3919.143934 | F8: 21072.76988 | G8: 19910.80021 | H8: 3220.236728 | I8: 341.425835 | J8: 109.8031678 | K8: 933.2150502 | L8: 195 | M8: 48 | N8: 7 | O8: 2 | P8: 7
A9: 2017 | B9: 531277.1134 | C9: 74438.06214 | D9: 8161.157751 | E9: 4165.59015 | F9: 21166.04196 | G9: 19132.5583 | H9: 3030.731081 | I9: 338.32817 | J9: 118.752911 | K9: 892.6233633 | L9: 194 | M9: 46 | N9: 7 | O9: 2 | P9: 7
A10: 2018 | B10: 538799.0908 | C10: 75386.75791 | D10: 8479.38997 | E10: 4395.462472 | F10: 21266.56048 | G10: 18354.98358 | H10: 2841.240626 | I10: 335.3700441 | J10: 127.7026541 | K10: 852.0630195 | L10: 195 | M10: 47 | N10: 7 | O10: 2 | P10: 7
A11: 2019 | B11: 549061.8096 | C11: 76955.50348 | D11: 8890.927609 | E11: 4642.22493 | F11: 21671.95984 | G11: 18471.57993 | H11: 2848.265396 | I11: 342.5542781 | J11: 138.1523973 | K11: 857.5342005 | L11: 197 | M11: 48 | N11: 7 | O11: 2 | P11: 7
A12: 2020 | B12: 559439.1506 | C12: 78541.77004 | D12: 9307.061626 | E12: 4891.743428 | F12: 22084.87689 | G12: 18588.85121 | H12: 2855.305423 | I12: 349.88375 | J12: 148.6021404 | K12: 863.0370889 | L12: 199 | M12: 48 | N12: 7 | O12: 2 | P12: 7
A13: 2021 | B13: 569993.0755 | C13: 80155.029 | D13: 9730.276706 | E13: 5145.507807 | F13: 22505.45105 | G13: 18706.80135 | H13: 2862.360741 | I13: 357.3613961 | J13: 159.0518836 | K13: 868.5718685 | L13: 200 | M13: 50 | N13: 7 | O13: 2 | P13: 7
A14: 2022 | B14: 580723.0269 | C14: 81795.19513 | D14: 10160.55049 | E14: 5403.504664 | F14: 22933.82431 | G14: 18825.43427 | H14: 2869.431383 | I14: 364.9902119 | J14: 169.5016267 | K14: 874.1387241 | L14: 201 | M14: 52 | N14: 7 | O14: 2 | P14: 7
A16: Peak Price Band 2 | B16: =B$4 -> Tariff R: Res Central | C16: Tariff R: Res North | D16: Tariff R: Res MV (Vic) | E16: Tariff R: Res Bairnsdale | F16: Tariff R: Res Albury | G16: Tariff C: Non- Res Central | H16: Tariff C: Non- Res North | I16: Tariff C: Non- Res MV (Vic) | J16: Tariff C: Non- Res Bairnsdale | K16: Tariff C: Non- Res Albury | L16: Tariff D: Central | M16: Tariff D: North | N16: Tariff D: MV (Vic) | O16: Tariff D: Bairnsdale | P16: Tariff D: Albury
A17: =A5 -> 2013 | B17: 0 | C17: 0 | D17: 0 | E17: 0 | F17: 0 | G17: 0 | H17: 0 | I17: 0 | J17: 0 | K17: 0 | L17: 0 | M17: 0 | N17: 0 | O17: 0 | P17: 0
A18: 2014 | B18: 0 | C18: 0 | D18: 0 | E18: 0 | F18: 0 | G18: 0 | H18: 0 | I18: 0 | J18: 0 | K18: 0 | L18: 0 | M18: 0 | N18: 0 | O18: 0 | P18: 0
A19: 2015 | B19: 0 | C19: 0 | D19: 0 | E19: 0 | F19: 0 | G19: 0 | H19: 0 | I19: 0 | J19: 0 | K19: 0 | L19: 0 | M19: 0 | N19: 0 | O19: 0 | P19: 0
A20: 2016 | B20: 0 | C20: 0 | D20: 0 | E20: 0 | F20: 0 | G20: 0 | H20: 0 | I20: 0 | J20: 0 | K20: 0 | L20: 0 | M20: 0 | N20: 0 | O20: 0 | P20: 0
A21: 2017 | B21: 0 | C21: 0 | D21: 0 | E21: 0 | F21: 0 | G21: 0 | H21: 0 | I21: 0 | J21: 0 | K21: 0 | L21: 0 | M21: 0 | N21: 0 | O21: 0 | P21: 0
A22: 2018 | B22: 0 | C22: 0 | D22: 0 | E22: 0 | F22: 0 | G22: 0 | H22: 0 | I22: 0 | J22: 0 | K22: 0 | L22: 0 | M22: 0 | N22: 0 | O22: 0 | P22: 0
A23: 2019 | B23: 0 | C23: 0 | D23: 0 | E23: 0 | F23: 0 | G23: 0 | H23: 0 | I23: 0 | J23: 0 | K23: 0 | L23: 0 | M23: 0 | N23: 0 | O23: 0 | P23: 0
A24: 2020 | B24: 0 | C24: 0 | D24: 0 | E24: 0 | F24: 0 | G24: 0 | H24: 0 | I24: 0 | J24: 0 | K24: 0 | L24: 0 | M24: 0 | N24: 0 | O24: 0 | P24: 0
A25: 2021 | B25: 0 | C25: 0 | D25: 0 | E25: 0 | F25: 0 | G25: 0 | H25: 0 | I25: 0 | J25: 0 | K25: 0 | L25: 0 | M25: 0 | N25: 0 | O25: 0 | P25: 0
A26: 2022 | B26: 0 | C26: 0 | D26: 0 | E26: 0 | F26: 0 | G26: 0 | H26: 0 | I26: 0 | J26: 0 | K26: 0 | L26: 0 | M26: 0 | N26: 0 | O26: 0 | P26: 0
A28: Peak Price Band 3 | B28: =B$4 -> Tariff R: Res Central | C28: =C$4 -> Tariff R: Res North | D28: Tariff R: Res MV (Vic) | E28: Tariff R: Res Bairnsdale | F28: Tariff R: Res Albury | G28: Tariff C: Non- Res Central | H28: Tariff C: Non- Res North | I28: Tariff C: Non- Res MV (Vic) | J28: Tariff C: Non- Res Bairnsdale | K28: Tariff C: Non- Res Albury | L28: Tariff D: Central | M28: Tariff D: North | N28: Tariff D: MV (Vic) | O28: Tariff D: Bairnsdale | P28: Tariff D: Albury
A29: =A5 -> 2013 | B29: 0 | C29: 0 | D29: 0 | E29: 0 | F29: 0 | G29: 0 | H29: 0 | I29: 0 | J29: 0 | K29: 0 | L29: 0 | M29: 0 | N29: 0 | O29: 0 | P29: 0
A30: =A6 -> 2014 | B30: 0 | C30: 0 | D30: 0 | E30: 0 | F30: 0 | G30: 0 | H30: 0 | I30: 0 | J30: 0 | K30: 0 | L30: 0 | M30: 0 | N30: 0 | O30: 0 | P30: 0
A31: =A7 -> 2015 | B31: 0 | C31: 0 | D31: 0 | E31: 0 | F31: 0 | G31: 0 | H31: 0 | I31: 0 | J31: 0 | K31: 0 | L31: 0 | M31: 0 | N31: 0 | O31: 0 | P31: 0
A32: =A8 -> 2016 | B32: 0 | C32: 0 | D32: 0 | E32: 0 | F32: 0 | G32: 0 | H32: 0 | I32: 0 | J32: 0 | K32: 0 | L32: 0 | M32: 0 | N32: 0 | O32: 0 | P32: 0
A33: =A9 -> 2017 | B33: 0 | C33: 0 | D33: 0 | E33: 0 | F33: 0 | G33: 0 | H33: 0 | I33: 0 | J33: 0 | K33: 0 | L33: 0 | M33: 0 | N33: 0 | O33: 0 | P33: 0
A34: =A22 -> 2018 | B34: 0 | C34: 0 | D34: 0 | E34: 0 | F34: 0 | G34: 0 | H34: 0 | I34: 0 | J34: 0 | K34: 0 | L34: 0 | M34: 0 | N34: 0 | O34: 0 | P34: 0
A35: =A23 -> 2019 | B35: 0 | C35: 0 | D35: 0 | E35: 0 | F35: 0 | G35: 0 | H35: 0 | I35: 0 | J35: 0 | K35: 0 | L35: 0 | M35: 0 | N35: 0 | O35: 0 | P35: 0
A36: =A24 -> 2020 | B36: 0 | C36: 0 | D36: 0 | E36: 0 | F36: 0 | G36: 0 | H36: 0 | I36: 0 | J36: 0 | K36: 0 | L36: 0 | M36: 0 | N36: 0 | O36: 0 | P36: 0
A37: =A25 -> 2021 | B37: 0 | C37: 0 | D37: 0 | E37: 0 | F37: 0 | G37: 0 | H37: 0 | I37: 0 | J37: 0 | K37: 0 | L37: 0 | M37: 0 | N37: 0 | O37: 0 | P37: 0
A38: =A26 -> 2022 | B38: 0 | C38: 0 | D38: 0 | E38: 0 | F38: 0 | G38: 0 | H38: 0 | I38: 0 | J38: 0 | K38: 0 | L38: 0 | M38: 0 | N38: 0 | O38: 0 | P38: 0
A40: Peak Price Band 4 | B40: =B$4 -> Tariff R: Res Central | C40: =C$4 -> Tariff R: Res North | D40: Tariff R: Res MV (Vic) | E40: Tariff R: Res Bairnsdale | F40: Tariff R: Res Albury | G40: Tariff C: Non- Res Central | H40: Tariff C: Non- Res North | I40: Tariff C: Non- Res MV (Vic) | J40: Tariff C: Non- Res Bairnsdale | K40: Tariff C: Non- Res Albury | L40: Tariff D: Central | M40: Tariff D: North | N40: Tariff D: MV (Vic) | O40: Tariff D: Bairnsdale | P40: Tariff D: Albury
A41: =A5 -> 2013 | B41: 0 | C41: 0 | D41: 0 | E41: 0 | F41: 0 | G41: 0 | H41: 0 | I41: 0 | J41: 0 | K41: 0 | L41: 0 | M41: 0 | N41: 0 | O41: 0 | P41: 0
A42: =A6 -> 2014 | B42: 0 | C42: 0 | D42: 0 | E42: 0 | F42: 0 | G42: 0 | H42: 0 | I42: 0 | J42: 0 | K42: 0 | L42: 0 | M42: 0 | N42: 0 | O42: 0 | P42: 0
A43: =A7 -> 2015 | B43: 0 | C43: 0 | D43: 0 | E43: 0 | F43: 0 | G43: 0 | H43: 0 | I43: 0 | J43: 0 | K43: 0 | L43: 0 | M43: 0 | N43: 0 | O43: 0 | P43: 0
A44: =A8 -> 2016 | B44: 0 | C44: 0 | D44: 0 | E44: 0 | F44: 0 | G44: 0 | H44: 0 | I44: 0 | J44: 0 | K44: 0 | L44: 0 | M44: 0 | N44: 0 | O44: 0 | P44: 0
A45: =A9 -> 2017 | B45: 0 | C45: 0 | D45: 0 | E45: 0 | F45: 0 | G45: 0 | H45: 0 | I45: 0 | J45: 0 | K45: 0 | L45: 0 | M45: 0 | N45: 0 | O45: 0 | P45: 0
A46: =A34 -> 2018 | B46: 0 | C46: 0 | D46: 0 | E46: 0 | F46: 0 | G46: 0 | H46: 0 | I46: 0 | J46: 0 | K46: 0 | L46: 0 | M46: 0 | N46: 0 | O46: 0 | P46: 0
A47: =A35 -> 2019 | B47: 0 | C47: 0 | D47: 0 | E47: 0 | F47: 0 | G47: 0 | H47: 0 | I47: 0 | J47: 0 | K47: 0 | L47: 0 | M47: 0 | N47: 0 | O47: 0 | P47: 0
A48: =A36 -> 2020 | B48: 0 | C48: 0 | D48: 0 | E48: 0 | F48: 0 | G48: 0 | H48: 0 | I48: 0 | J48: 0 | K48: 0 | L48: 0 | M48: 0 | N48: 0 | O48: 0 | P48: 0
A49: =A37 -> 2021 | B49: 0 | C49: 0 | D49: 0 | E49: 0 | F49: 0 | G49: 0 | H49: 0 | I49: 0 | J49: 0 | K49: 0 | L49: 0 | M49: 0 | N49: 0 | O49: 0 | P49: 0
A50: =A38 -> 2022 | B50: 0 | C50: 0 | D50: 0 | E50: 0 | F50: 0 | G50: 0 | H50: 0 | I50: 0 | J50: 0 | K50: 0 | L50: 0 | M50: 0 | N50: 0 | O50: 0 | P50: 0
A52: Peak Price Band 5 | B52: =B$4 -> Tariff R: Res Central | C52: =C$4 -> Tariff R: Res North | D52: Tariff R: Res MV (Vic) | E52: Tariff R: Res Bairnsdale | F52: Tariff R: Res Albury | G52: Tariff C: Non- Res Central | H52: Tariff C: Non- Res North | I52: Tariff C: Non- Res MV (Vic) | J52: Tariff C: Non- Res Bairnsdale | K52: Tariff C: Non- Res Albury | L52: Tariff D: Central | M52: Tariff D: North | N52: Tariff D: MV (Vic) | O52: Tariff D: Bairnsdale | P52: Tariff D: Albury
A53: =A5 -> 2013 | B53: 0 | C53: 0 | D53: 0 | E53: 0 | F53: 0 | G53: 0 | N53: =B53+F53 -> 0 | O53: =C53+G53 -> 0 | P53: =D53+H53 -> 0
A54: =A6 -> 2014 | B54: 0 | C54: 0 | D54: 0 | E54: 0 | F54: 0 | G54: 0 | N54: =B54+F54 -> 0 | O54: 0 | P54: 0
A55: =A7 -> 2015 | B55: 0 | C55: 0 | D55: 0 | E55: 0 | F55: 0 | G55: 0 | N55: 0 | O55: 0 | P55: 0
A56: =A8 -> 2016 | B56: 0 | C56: 0 | D56: 0 | E56: 0 | F56: 0 | G56: 0 | N56: 0 | O56: 0 | P56: 0
A57: =A9 -> 2017 | B57: 0 | C57: 0 | D57: 0 | E57: 0 | F57: 0 | G57: 0 | N57: 0 | O57: 0 | P57: 0
A58: =A46 -> 2018 | B58: 0 | C58: 0 | D58: 0 | E58: 0 | F58: 0 | G58: 0 | N58: 0 | O58: 0 | P58: 0
A59: =A47 -> 2019 | B59: 0 | C59: 0 | D59: 0 | E59: 0 | F59: 0 | G59: 0 | N59: 0 | O59: 0 | P59: 0
A60: =A48 -> 2020 | B60: 0 | C60: 0 | D60: 0 | E60: 0 | F60: 0 | G60: 0 | N60: 0 | O60: 0 | P60: 0
A61: =A49 -> 2021 | B61: 0 | C61: 0 | D61: 0 | E61: 0 | F61: 0 | G61: 0 | N61: 0 | O61: 0 | P61: 0
A62: =A50 -> 2022 | B62: 0 | C62: 0 | D62: 0 | E62: 0 | F62: 0 | G62: 0 | N62: 0 | O62: 0 | P62: 0
A64: Peak Price Band 6 | B64: =B$4 -> Tariff R: Res Central | C64: =C$4 -> Tariff R: Res North | D64: Tariff R: Res MV (Vic) | E64: Tariff R: Res Bairnsdale | F64: Tariff R: Res Albury | G64: Tariff C: Non- Res Central | H64: Tariff C: Non- Res North | I64: Tariff C: Non- Res MV (Vic) | J64: Tariff C: Non- Res Bairnsdale | K64: Tariff C: Non- Res Albury | L64: Tariff D: Central | M64: Tariff D: North | N64: Tariff D: MV (Vic) | O64: Tariff D: Bairnsdale | P64: Tariff D: Albury
A65: =A5 -> 2013 | B65: 0 | C65: 0 | D65: 0 | E65: 0 | F65: 0 | G65: 0 | H65: 0 | I65: 0 | J65: 0 | K65: 0 | L65: 0 | M65: 0 | N65: 0 | O65: 0 | P65: 0
A66: =A6 -> 2014 | B66: 0 | C66: 0 | D66: 0 | E66: 0 | F66: 0 | G66: 0 | H66: 0 | I66: 0 | J66: 0 | K66: 0 | L66: 0 | M66: 0 | N66: 0 | O66: 0 | P66: 0
A67: =A7 -> 2015 | B67: 0 | C67: 0 | D67: 0 | E67: 0 | F67: 0 | G67: 0 | H67: 0 | I67: 0 | J67: 0 | K67: 0 | L67: 0 | M67: 0 | N67: 0 | O67: 0 | P67: 0
A68: =A8 -> 2016 | B68: 0 | C68: 0 | D68: 0 | E68: 0 | F68: 0 | G68: 0 | H68: 0 | I68: 0 | J68: 0 | K68: 0 | L68: 0 | M68: 0 | N68: 0 | O68: 0 | P68: 0
A69: =A9 -> 2017 | B69: 0 | C69: 0 | D69: 0 | E69: 0 | F69: 0 | G69: 0 | H69: 0 | I69: 0 | J69: 0 | K69: 0 | L69: 0 | M69: 0 | N69: 0 | O69: 0 | P69: 0
A70: =A58 -> 2018 | B70: 0 | C70: 0 | D70: 0 | E70: 0 | F70: 0 | G70: 0 | H70: 0 | I70: 0 | J70: 0 | K70: 0 | L70: 0 | M70: 0 | N70: 0 | O70: 0 | P70: 0
A71: =A59 -> 2019 | B71: 0 | C71: 0 | D71: 0 | E71: 0 | F71: 0 | G71: 0 | H71: 0 | I71: 0 | J71: 0 | K71: 0 | L71: 0 | M71: 0 | N71: 0 | O71: 0 | P71: 0
A72: =A60 -> 2020 | B72: 0 | C72: 0 | D72: 0 | E72: 0 | F72: 0 | G72: 0 | H72: 0 | I72: 0 | J72: 0 | K72: 0 | L72: 0 | M72: 0 | N72: 0 | O72: 0 | P72: 0
A73: =A61 -> 2021 | B73: 0 | C73: 0 | D73: 0 | E73: 0 | F73: 0 | G73: 0 | H73: 0 | I73: 0 | J73: 0 | K73: 0 | L73: 0 | M73: 0 | N73: 0 | O73: 0 | P73: 0
A74: =A62 -> 2022 | B74: 0 | C74: 0 | D74: 0 | E74: 0 | F74: 0 | G74: 0 | H74: 0 | I74: 0 | J74: 0 | K74: 0 | L74: 0 | M74: 0 | N74: 0 | O74: 0 | P74: 0
A76: Peak Price Band 7 | B76: =B$4 -> Tariff R: Res Central | C76: =C$4 -> Tariff R: Res North | D76: Tariff R: Res MV (Vic) | E76: Tariff R: Res Bairnsdale | F76: Tariff R: Res Albury | G76: Tariff C: Non- Res Central | H76: Tariff C: Non- Res North | I76: Tariff C: Non- Res MV (Vic) | J76: Tariff C: Non- Res Bairnsdale | K76: Tariff C: Non- Res Albury | L76: Tariff D: Central | M76: Tariff D: North | N76: Tariff D: MV (Vic) | O76: Tariff D: Bairnsdale | P76: Tariff D: Albury
A77: =A17 -> 2013 | B77: 0 | C77: 0 | D77: 0 | E77: 0 | F77: 0 | G77: 0 | H77: 0 | I77: 0 | J77: 0 | K77: 0 | L77: 0 | M77: 0 | N77: 0 | O77: 0 | P77: 0
A78: =A18 -> 2014 | B78: 0 | C78: 0 | D78: 0 | E78: 0 | F78: 0 | G78: 0 | H78: 0 | I78: 0 | J78: 0 | K78: 0 | L78: 0 | M78: 0 | N78: 0 | O78: 0 | P78: 0
A79: =A19 -> 2015 | B79: 0 | C79: 0 | D79: 0 | E79: 0 | F79: 0 | G79: 0 | H79: 0 | I79: 0 | J79: 0 | K79: 0 | L79: 0 | M79: 0 | N79: 0 | O79: 0 | P79: 0
A80: =A20 -> 2016 | B80: 0 | C80: 0 | D80: 0 | E80: 0 | F80: 0 | G80: 0 | H80: 0 | I80: 0 | J80: 0 | K80: 0 | L80: 0 | M80: 0 | N80: 0 | O80: 0 | P80: 0
A81: =A21 -> 2017 | B81: 0 | C81: 0 | D81: 0 | E81: 0 | F81: 0 | G81: 0 | H81: 0 | I81: 0 | J81: 0 | K81: 0 | L81: 0 | M81: 0 | N81: 0 | O81: 0 | P81: 0
A82: =A70 -> 2018 | B82: 0 | C82: 0 | D82: 0 | E82: 0 | F82: 0 | G82: 0 | H82: 0 | I82: 0 | J82: 0 | K82: 0 | L82: 0 | M82: 0 | N82: 0 | O82: 0 | P82: 0
A83: =A71 -> 2019 | B83: 0 | C83: 0 | D83: 0 | E83: 0 | F83: 0 | G83: 0 | H83: 0 | I83: 0 | J83: 0 | K83: 0 | L83: 0 | M83: 0 | N83: 0 | O83: 0 | P83: 0
A84: =A72 -> 2020 | B84: 0 | C84: 0 | D84: 0 | E84: 0 | F84: 0 | G84: 0 | H84: 0 | I84: 0 | J84: 0 | K84: 0 | L84: 0 | M84: 0 | N84: 0 | O84: 0 | P84: 0
A85: =A73 -> 2021 | B85: 0 | C85: 0 | D85: 0 | E85: 0 | F85: 0 | G85: 0 | H85: 0 | I85: 0 | J85: 0 | K85: 0 | L85: 0 | M85: 0 | N85: 0 | O85: 0 | P85: 0
A86: =A74 -> 2022 | B86: 0 | C86: 0 | D86: 0 | E86: 0 | F86: 0 | G86: 0 | H86: 0 | I86: 0 | J86: 0 | K86: 0 | L86: 0 | M86: 0 | N86: 0 | O86: 0 | P86: 0
A88: Off Peak Price Band 1 | B88: =B$4 -> Tariff R: Res Central | C88: =C$4 -> Tariff R: Res North | D88: Tariff R: Res MV (Vic) | E88: Tariff R: Res Bairnsdale | F88: Tariff R: Res Albury | G88: Tariff C: Non- Res Central | H88: Tariff C: Non- Res North | I88: Tariff C: Non- Res MV (Vic) | J88: Tariff C: Non- Res Bairnsdale | K88: Tariff C: Non- Res Albury | L88: Tariff D: Central | M88: Tariff D: North | N88: Tariff D: MV (Vic) | O88: Tariff D: Bairnsdale | P88: Tariff D: Albury
A89: 2008 | B89: 0 | C89: 0 | D89: 0 | E89: 0 | F89: 0 | G89: 0 | H89: 0 | I89: 0 | J89: 0 | K89: 0 | L89: 0 | M89: 0 | N89: 0 | O89: 0 | P89: 0
A90: 2009 | B90: 0 | C90: 0 | D90: 0 | E90: 0 | F90: 0 | G90: 0 | H90: 0 | I90: 0 | J90: 0 | K90: 0 | L90: 0 | M90: 0 | N90: 0 | O90: 0 | P90: 0
A91: 2010 | B91: 0 | C91: 0 | D91: 0 | E91: 0 | F91: 0 | G91: 0 | H91: 0 | I91: 0 | J91: 0 | K91: 0 | L91: 0 | M91: 0 | N91: 0 | O91: 0 | P91: 0
A92: 2011 | B92: 0 | C92: 0 | D92: 0 | E92: 0 | F92: 0 | G92: 0 | H92: 0 | I92: 0 | J92: 0 | K92: 0 | L92: 0 | M92: 0 | N92: 0 | O92: 0 | P92: 0
A93: 2012 | B93: 0 | C93: 0 | D93: 0 | E93: 0 | F93: 0 | G93: 0 | H93: 0 | I93: 0 | J93: 0 | K93: 0 | L93: 0 | M93: 0 | N93: 0 | O93: 0 | P93: 0
A94: 2013 | B94: 0 | C94: 0 | D94: 0 | E94: 0 | F94: 0 | G94: 0 | H94: 0 | I94: 0 | J94: 0 | K94: 0 | L94: 0 | M94: 0 | N94: 0 | O94: 0 | P94: 0
A95: 2014 | B95: 0 | C95: 0 | D95: 0 | E95: 0 | F95: 0 | G95: 0 | H95: 0 | I95: 0 | J95: 0 | K95: 0 | L95: 0 | M95: 0 | N95: 0 | O95: 0 | P95: 0
A96: 2015 | B96: 0 | C96: 0 | D96: 0 | E96: 0 | F96: 0 | G96: 0 | H96: 0 | I96: 0 | J96: 0 | K96: 0 | L96: 0 | M96: 0 | N96: 0 | O96: 0 | P96: 0
A97: 2016 | B97: 0 | C97: 0 | D97: 0 | E97: 0 | F97: 0 | G97: 0 | H97: 0 | I97: 0 | J97: 0 | K97: 0 | L97: 0 | M97: 0 | N97: 0 | O97: 0 | P97: 0
A98: 2017 | B98: 0 | C98: 0 | D98: 0 | E98: 0 | F98: 0 | G98: 0 | H98: 0 | I98: 0 | J98: 0 | K98: 0 | L98: 0 | M98: 0 | N98: 0 | O98: 0 | P98: 0
A100: Off Peak Price Band 2 | B100: =B$4 -> Tariff R: Res Central | C100: =C$4 -> Tariff R: Res North | D100: Tariff R: Res MV (Vic) | E100: Tariff R: Res Bairnsdale | F100: Tariff R: Res Albury | G100: Tariff C: Non- Res Central | H100: Tariff C: Non- Res North | I100: Tariff C: Non- Res MV (Vic) | J100: Tariff C: Non- Res Bairnsdale | K100: Tariff C: Non- Res Albury | L100: Tariff D: Central | M100: Tariff D: North | N100: Tariff D: MV (Vic) | O100: Tariff D: Bairnsdale | P100: Tariff D: Albury
A101: =A89 -> 2008 | B101: 0 | C101: 0 | D101: 0 | E101: 0 | F101: 0 | G101: 0 | H101: 0 | I101: 0 | J101: 0 | K101: 0 | L101: 0 | M101: 0 | N101: 0 | O101: 0 | P101: 0
A102: 2009 | B102: 0 | C102: 0 | D102: 0 | E102: 0 | F102: 0 | G102: 0 | H102: 0 | I102: 0 | J102: 0 | K102: 0 | L102: 0 | M102: 0 | N102: 0 | O102: 0 | P102: 0
A103: 2010 | B103: 0 | C103: 0 | D103: 0 | E103: 0 | F103: 0 | G103: 0 | H103: 0 | I103: 0 | J103: 0 | K103: 0 | L103: 0 | M103: 0 | N103: 0 | O103: 0 | P103: 0
A104: 2011 | B104: 0 | C104: 0 | D104: 0 | E104: 0 | F104: 0 | G104: 0 | H104: 0 | I104: 0 | J104: 0 | K104: 0 | L104: 0 | M104: 0 | N104: 0 | O104: 0 | P104: 0
A105: 2012 | B105: 0 | C105: 0 | D105: 0 | E105: 0 | F105: 0 | G105: 0 | H105: 0 | I105: 0 | J105: 0 | K105: 0 | L105: 0 | M105: 0 | N105: 0 | O105: 0 | P105: 0
A106: 2013 | B106: 0 | C106: 0 | D106: 0 | E106: 0 | F106: 0 | G106: 0 | H106: 0 | I106: 0 | J106: 0 | K106: 0 | L106: 0 | M106: 0 | N106: 0 | O106: 0 | P106: 0
A107: 2014 | B107: 0 | C107: 0 | D107: 0 | E107: 0 | F107: 0 | G107: 0 | H107: 0 | I107: 0 | J107: 0 | K107: 0 | L107: 0 | M107: 0 | N107: 0 | O107: 0 | P107: 0
A108: 2015 | B108: 0 | C108: 0 | D108: 0 | E108: 0 | F108: 0 | G108: 0 | H108: 0 | I108: 0 | J108: 0 | K108: 0 | L108: 0 | M108: 0 | N108: 0 | O108: 0 | P108: 0
A109: 2016 | B109: 0 | C109: 0 | D109: 0 | E109: 0 | F109: 0 | G109: 0 | H109: 0 | I109: 0 | J109: 0 | K109: 0 | L109: 0 | M109: 0 | N109: 0 | O109: 0 | P109: 0
A110: 2017 | B110: 0 | C110: 0 | D110: 0 | E110: 0 | F110: 0 | G110: 0 | H110: 0 | I110: 0 | J110: 0 | K110: 0 | L110: 0 | M110: 0 | N110: 0 | O110: 0 | P110: 0
A112: Off Peak Price Band 3 | B112: =B$4 -> Tariff R: Res Central | C112: =C$4 -> Tariff R: Res North | D112: Tariff R: Res MV (Vic) | E112: Tariff R: Res Bairnsdale | F112: Tariff R: Res Albury | G112: Tariff C: Non- Res Central | H112: Tariff C: Non- Res North | I112: Tariff C: Non- Res MV (Vic) | J112: Tariff C: Non- Res Bairnsdale | K112: Tariff C: Non- Res Albury | L112: Tariff D: Central | M112: Tariff D: North | N112: Tariff D: MV (Vic) | O112: Tariff D: Bairnsdale | P112: Tariff D: Albury
A113: =A89 -> 2008 | B113: 0 | C113: 0 | D113: 0 | E113: 0 | F113: 0 | G113: 0 | H113: 0 | I113: 0 | J113: 0 | K113: 0 | L113: 0 | M113: 0 | N113: 0 | O113: 0 | P113: 0
A114: =A90 -> 2009 | B114: 0 | C114: 0 | D114: 0 | E114: 0 | F114: 0 | G114: 0 | H114: 0 | I114: 0 | J114: 0 | K114: 0 | L114: 0 | M114: 0 | N114: 0 | O114: 0 | P114: 0
A115: =A91 -> 2010 | B115: 0 | C115: 0 | D115: 0 | E115: 0 | F115: 0 | G115: 0 | H115: 0 | I115: 0 | J115: 0 | K115: 0 | L115: 0 | M115: 0 | N115: 0 | O115: 0 | P115: 0
A116: =A92 -> 2011 | B116: 0 | C116: 0 | D116: 0 | E116: 0 | F116: 0 | G116: 0 | H116: 0 | I116: 0 | J116: 0 | K116: 0 | L116: 0 | M116: 0 | N116: 0 | O116: 0 | P116: 0
A117: =A93 -> 2012 | B117: 0 | C117: 0 | D117: 0 | E117: 0 | F117: 0 | G117: 0 | H117: 0 | I117: 0 | J117: 0 | K117: 0 | L117: 0 | M117: 0 | N117: 0 | O117: 0 | P117: 0
A118: =A106 -> 2013 | B118: 0 | C118: 0 | D118: 0 | E118: 0 | F118: 0 | G118: 0 | H118: 0 | I118: 0 | J118: 0 | K118: 0 | L118: 0 | M118: 0 | N118: 0 | O118: 0 | P118: 0
A119: =A107 -> 2014 | B119: 0 | C119: 0 | D119: 0 | E119: 0 | F119: 0 | G119: 0 | H119: 0 | I119: 0 | J119: 0 | K119: 0 | L119: 0 | M119: 0 | N119: 0 | O119: 0 | P119: 0
A120: =A108 -> 2015 | B120: 0 | C120: 0 | D120: 0 | E120: 0 | F120: 0 | G120: 0 | H120: 0 | I120: 0 | J120: 0 | K120: 0 | L120: 0 | M120: 0 | N120: 0 | O120: 0 | P120: 0
A121: =A109 -> 2016 | B121: 0 | C121: 0 | D121: 0 | E121: 0 | F121: 0 | G121: 0 | H121: 0 | I121: 0 | J121: 0 | K121: 0 | L121: 0 | M121: 0 | N121: 0 | O121: 0 | P121: 0
A122: =A110 -> 2017 | B122: 0 | C122: 0 | D122: 0 | E122: 0 | F122: 0 | G122: 0 | H122: 0 | I122: 0 | J122: 0 | K122: 0 | L122: 0 | M122: 0 | N122: 0 | O122: 0 | P122: 0
A124: Off Peak Price Band 4 | B124: =B$4 -> Tariff R: Res Central | C124: =C$4 -> Tariff R: Res North | D124: Tariff R: Res MV (Vic) | E124: Tariff R: Res Bairnsdale | F124: Tariff R: Res Albury | G124: Tariff C: Non- Res Central | H124: Tariff C: Non- Res North | I124: Tariff C: Non- Res MV (Vic) | J124: Tariff C: Non- Res Bairnsdale | K124: Tariff C: Non- Res Albury | L124: Tariff D: Central | M124: Tariff D: North | N124: Tariff D: MV (Vic) | O124: Tariff D: Bairnsdale | P124: Tariff D: Albury
A125: =A89 -> 2008 | B125: 0 | C125: 0 | D125: 0 | E125: 0 | F125: 0 | G125: 0 | H125: 0 | I125: 0 | J125: 0 | K125: 0 | L125: 0 | M125: 0 | N125: 0 | O125: 0 | P125: 0
A126: =A90 -> 2009 | B126: 0 | C126: 0 | D126: 0 | E126: 0 | F126: 0 | G126: 0 | H126: 0 | I126: 0 | J126: 0 | K126: 0 | L126: 0 | M126: 0 | N126: 0 | O126: 0 | P126: 0
A127: =A91 -> 2010 | B127: 0 | C127: 0 | D127: 0 | E127: 0 | F127: 0 | G127: 0 | H127: 0 | I127: 0 | J127: 0 | K127: 0 | L127: 0 | M127: 0 | N127: 0 | O127: 0 | P127: 0
A128: =A92 -> 2011 | B128: 0 | C128: 0 | D128: 0 | E128: 0 | F128: 0 | G128: 0 | H128: 0 | I128: 0 | J128: 0 | K128: 0 | L128: 0 | M128: 0 | N128: 0 | O128: 0 | P128: 0
A129: =A93 -> 2012 | B129: 0 | C129: 0 | D129: 0 | E129: 0 | F129: 0 | G129: 0 | H129: 0 | I129: 0 | J129: 0 | K129: 0 | L129: 0 | M129: 0 | N129: 0 | O129: 0 | P129: 0
A130: =A118 -> 2013 | B130: 0 | C130: 0 | D130: 0 | E130: 0 | F130: 0 | G130: 0 | H130: 0 | I130: 0 | J130: 0 | K130: 0 | L130: 0 | M130: 0 | N130: 0 | O130: 0 | P130: 0
A131: =A119 -> 2014 | B131: 0 | C131: 0 | D131: 0 | E131: 0 | F131: 0 | G131: 0 | H131: 0 | I131: 0 | J131: 0 | K131: 0 | L131: 0 | M131: 0 | N131: 0 | O131: 0 | P131: 0
A132: =A120 -> 2015 | B132: 0 | C132: 0 | D132: 0 | E132: 0 | F132: 0 | G132: 0 | H132: 0 | I132: 0 | J132: 0 | K132: 0 | L132: 0 | M132: 0 | N132: 0 | O132: 0 | P132: 0
A133: =A121 -> 2016 | B133: 0 | C133: 0 | D133: 0 | E133: 0 | F133: 0 | G133: 0 | H133: 0 | I133: 0 | J133: 0 | K133: 0 | L133: 0 | M133: 0 | N133: 0 | O133: 0 | P133: 0
A134: =A122 -> 2017 | B134: 0 | C134: 0 | D134: 0 | E134: 0 | F134: 0 | G134: 0 | H134: 0 | I134: 0 | J134: 0 | K134: 0 | L134: 0 | M134: 0 | N134: 0 | O134: 0 | P134: 0
A136: Off Peak Price Band 5 | B136: =B$4 -> Tariff R: Res Central | C136: =C$4 -> Tariff R: Res North | D136: Tariff R: Res MV (Vic) | E136: Tariff R: Res Bairnsdale | F136: Tariff R: Res Albury | G136: Tariff C: Non- Res Central | H136: Tariff C: Non- Res North | I136: Tariff C: Non- Res MV (Vic) | J136: Tariff C: Non- Res Bairnsdale | K136: Tariff C: Non- Res Albury | L136: Tariff D: Central | M136: Tariff D: North | N136: Tariff D: MV (Vic) | O136: Tariff D: Bairnsdale | P136: Tariff D: Albury
A137: =A89 -> 2008 | B137: 0 | C137: 0 | D137: 0 | E137: 0 | F137: 0 | G137: 0 | H137: 0 | I137: 0 | J137: 0 | K137: 0 | L137: 0 | M137: 0 | N137: 0 | O137: 0 | P137: 0
A138: =A90 -> 2009 | B138: 0 | C138: 0 | D138: 0 | E138: 0 | F138: 0 | G138: 0 | H138: 0 | I138: 0 | J138: 0 | K138: 0 | L138: 0 | M138: 0 | N138: 0 | O138: 0 | P138: 0
A139: =A91 -> 2010 | B139: 0 | C139: 0 | D139: 0 | E139: 0 | F139: 0 | G139: 0 | H139: 0 | I139: 0 | J139: 0 | K139: 0 | L139: 0 | M139: 0 | N139: 0 | O139: 0 | P139: 0
A140: =A92 -> 2011 | B140: 0 | C140: 0 | D140: 0 | E140: 0 | F140: 0 | G140: 0 | H140: 0 | I140: 0 | J140: 0 | K140: 0 | L140: 0 | M140: 0 | N140: 0 | O140: 0 | P140: 0
A141: =A93 -> 2012 | B141: 0 | C141: 0 | D141: 0 | E141: 0 | F141: 0 | G141: 0 | H141: 0 | I141: 0 | J141: 0 | K141: 0 | L141: 0 | M141: 0 | N141: 0 | O141: 0 | P141: 0
A142: =A130 -> 2013 | B142: 0 | C142: 0 | D142: 0 | E142: 0 | F142: 0 | G142: 0 | H142: 0 | I142: 0 | J142: 0 | K142: 0 | L142: 0 | M142: 0 | N142: 0 | O142: 0 | P142: 0
A143: =A131 -> 2014 | B143: 0 | C143: 0 | D143: 0 | E143: 0 | F143: 0 | G143: 0 | H143: 0 | I143: 0 | J143: 0 | K143: 0 | L143: 0 | M143: 0 | N143: 0 | O143: 0 | P143: 0
A144: =A132 -> 2015 | B144: 0 | C144: 0 | D144: 0 | E144: 0 | F144: 0 | G144: 0 | H144: 0 | I144: 0 | J144: 0 | K144: 0 | L144: 0 | M144: 0 | N144: 0 | O144: 0 | P144: 0
A145: =A133 -> 2016 | B145: 0 | C145: 0 | D145: 0 | E145: 0 | F145: 0 | G145: 0 | H145: 0 | I145: 0 | J145: 0 | K145: 0 | L145: 0 | M145: 0 | N145: 0 | O145: 0 | P145: 0
A146: =A134 -> 2017 | B146: 0 | C146: 0 | D146: 0 | E146: 0 | F146: 0 | G146: 0 | H146: 0 | I146: 0 | J146: 0 | K146: 0 | L146: 0 | M146: 0 | N146: 0 | O146: 0 | P146: 0
A148: Off Peak Price Band 6 | B148: =B$4 -> Tariff R: Res Central | C148: =C$4 -> Tariff R: Res North | D148: Tariff R: Res MV (Vic) | E148: Tariff R: Res Bairnsdale | F148: Tariff R: Res Albury | G148: Tariff C: Non- Res Central | H148: Tariff C: Non- Res North | I148: Tariff C: Non- Res MV (Vic) | J148: Tariff C: Non- Res Bairnsdale | K148: Tariff C: Non- Res Albury | L148: Tariff D: Central | M148: Tariff D: North | N148: Tariff D: MV (Vic) | O148: Tariff D: Bairnsdale | P148: Tariff D: Albury
A149: =A89 -> 2008 | B149: 0 | C149: 0 | D149: 0 | E149: 0 | F149: 0 | G149: 0 | H149: 0 | I149: 0 | J149: 0 | K149: 0 | L149: 0 | M149: 0 | N149: 0 | O149: 0 | P149: 0
A150: =A90 -> 2009 | B150: 0 | C150: 0 | D150: 0 | E150: 0 | F150: 0 | G150: 0 | H150: 0 | I150: 0 | J150: 0 | K150: 0 | L150: 0 | M150: 0 | N150: 0 | O150: 0 | P150: 0
A151: =A91 -> 2010 | B151: 0 | C151: 0 | D151: 0 | E151: 0 | F151: 0 | G151: 0 | H151: 0 | I151: 0 | J151: 0 | K151: 0 | L151: 0 | M151: 0 | N151: 0 | O151: 0 | P151: 0
A152: =A92 -> 2011 | B152: 0 | C152: 0 | D152: 0 | E152: 0 | F152: 0 | G152: 0 | H152: 0 | I152: 0 | J152: 0 | K152: 0 | L152: 0 | M152: 0 | N152: 0 | O152: 0 | P152: 0
A153: =A93 -> 2012 | B153: 0 | C153: 0 | D153: 0 | E153: 0 | F153: 0 | G153: 0 | H153: 0 | I153: 0 | J153: 0 | K153: 0 | L153: 0 | M153: 0 | N153: 0 | O153: 0 | P153: 0
A154: =A142 -> 2013 | B154: 0 | C154: 0 | D154: 0 | E154: 0 | F154: 0 | G154: 0 | H154: 0 | I154: 0 | J154: 0 | K154: 0 | L154: 0 | M154: 0 | N154: 0 | O154: 0 | P154: 0
A155: =A143 -> 2014 | B155: 0 | C155: 0 | D155: 0 | E155: 0 | F155: 0 | G155: 0 | H155: 0 | I155: 0 | J155: 0 | K155: 0 | L155: 0 | M155: 0 | N155: 0 | O155: 0 | P155: 0
A156: =A144 -> 2015 | B156: 0 | C156: 0 | D156: 0 | E156: 0 | F156: 0 | G156: 0 | H156: 0 | I156: 0 | J156: 0 | K156: 0 | L156: 0 | M156: 0 | N156: 0 | O156: 0 | P156: 0
A157: =A145 -> 2016 | B157: 0 | C157: 0 | D157: 0 | E157: 0 | F157: 0 | G157: 0 | H157: 0 | I157: 0 | J157: 0 | K157: 0 | L157: 0 | M157: 0 | N157: 0 | O157: 0 | P157: 0
A158: =A146 -> 2017 | B158: 0 | C158: 0 | D158: 0 | E158: 0 | F158: 0 | G158: 0 | H158: 0 | I158: 0 | J158: 0 | K158: 0 | L158: 0 | M158: 0 | N158: 0 | O158: 0 | P158: 0
A160: Off Peak Price Band 7 | B160: =B$4 -> Tariff R: Res Central | C160: =C$4 -> Tariff R: Res North | D160: Tariff R: Res MV (Vic) | E160: Tariff R: Res Bairnsdale | F160: Tariff R: Res Albury | G160: Tariff C: Non- Res Central | H160: Tariff C: Non- Res North | I160: Tariff C: Non- Res MV (Vic) | J160: Tariff C: Non- Res Bairnsdale | K160: Tariff C: Non- Res Albury | L160: Tariff D: Central | M160: Tariff D: North | N160: Tariff D: MV (Vic) | O160: Tariff D: Bairnsdale | P160: Tariff D: Albury
A161: =A101 -> 2008 | B161: 0 | C161: 0 | D161: 0 | E161: 0 | F161: 0 | G161: 0 | H161: 0 | I161: 0 | J161: 0 | K161: 0 | L161: 0 | M161: 0 | N161: 0 | O161: 0 | P161: 0
A162: =A102 -> 2009 | B162: 0 | C162: 0 | D162: 0 | E162: 0 | F162: 0 | G162: 0 | H162: 0 | I162: 0 | J162: 0 | K162: 0 | L162: 0 | M162: 0 | N162: 0 | O162: 0 | P162: 0
A163: =A103 -> 2010 | B163: 0 | C163: 0 | D163: 0 | E163: 0 | F163: 0 | G163: 0 | H163: 0 | I163: 0 | J163: 0 | K163: 0 | L163: 0 | M163: 0 | N163: 0 | O163: 0 | P163: 0
A164: =A104 -> 2011 | B164: 0 | C164: 0 | D164: 0 | E164: 0 | F164: 0 | G164: 0 | H164: 0 | I164: 0 | J164: 0 | K164: 0 | L164: 0 | M164: 0 | N164: 0 | O164: 0 | P164: 0
A165: =A105 -> 2012 | B165: 0 | C165: 0 | D165: 0 | E165: 0 | F165: 0 | G165: 0 | H165: 0 | I165: 0 | J165: 0 | K165: 0 | L165: 0 | M165: 0 | N165: 0 | O165: 0 | P165: 0
A166: =A154 -> 2013 | B166: 0 | C166: 0 | D166: 0 | E166: 0 | F166: 0 | G166: 0 | H166: 0 | I166: 0 | J166: 0 | K166: 0 | L166: 0 | M166: 0 | N166: 0 | O166: 0 | P166: 0
A167: =A155 -> 2014 | B167: 0 | C167: 0 | D167: 0 | E167: 0 | F167: 0 | G167: 0 | H167: 0 | I167: 0 | J167: 0 | K167: 0 | L167: 0 | M167: 0 | N167: 0 | O167: 0 | P167: 0
A168: =A156 -> 2015 | B168: 0 | C168: 0 | D168: 0 | E168: 0 | F168: 0 | G168: 0 | H168: 0 | I168: 0 | J168: 0 | K168: 0 | L168: 0 | M168: 0 | N168: 0 | O168: 0 | P168: 0
A169: =A157 -> 2016 | B169: 0 | C169: 0 | D169: 0 | E169: 0 | F169: 0 | G169: 0 | H169: 0 | I169: 0 | J169: 0 | K169: 0 | L169: 0 | M169: 0 | N169: 0 | O169: 0 | P169: 0
A170: =A158 -> 2017 | B170: 0 | C170: 0 | D170: 0 | E170: 0 | F170: 0 | G170: 0 | H170: 0 | I170: 0 | J170: 0 | K170: 0 | L170: 0 | M170: 0 | N170: 0 | O170: 0 | P170: 0
A172: Summary | B172: =B$4 -> Tariff R: Res Central | C172: =C$4 -> Tariff R: Res North | D172: Tariff R: Res MV (Vic) | E172: Tariff R: Res Bairnsdale | F172: Tariff R: Res Albury | G172: Tariff C: Non- Res Central | H172: Tariff C: Non- Res North | I172: Tariff C: Non- Res MV (Vic) | J172: Tariff C: Non- Res Bairnsdale | K172: Tariff C: Non- Res Albury | L172: Tariff D: Central | M172: Tariff D: North | N172: Tariff D: MV (Vic) | O172: Tariff D: Bairnsdale | P172: Tariff D: Albury
A173: =A65 -> 2013 | B173: =SUMIF($A$5:$A$170,$A173,B$5:B$170) -> 491543.0795 | C173: =SUMIF($A$5:$A$170,$A173,C$5:C$170) -> 68804.23562 | D173: 6850.430137 | E173: 2940.789041 | F173: 19795.88219 | G173: 19217.11781 | H173: 3169.945205 | I173: 310.2684932 | J173: 82.24657534 | K173: 913.4789954 | L173: 194 | M173: 47 | N173: 7 | O173: 2 | P173: 8
A174: 2014 | B174: =SUMIF($A$5:$A$170,$A174,B$5:B$170) -> 501388.7397 | C174: 70194.27397 | D174: 7102.926027 | E174: 3331.452055 | F174: 20194.32603 | G174: 19410.03562 | H174: 3185.915068 | I174: 323.8493151 | J174: 92.24657534 | K174: 920.3913242 | L174: 200 | M174: 50 | N174: 7 | O174: 2 | P174: 8
A175: 2015 | B175: 511835.0247 | C175: 71667.27397 | D175: 7364.926027 | E175: 3649.10411 | F175: 20689.11233 | G175: 19796.20548 | H175: 3213.257534 | I175: 334.660274 | J175: 99.35342466 | K175: 927.8378995 | L175: 198 | M175: 48 | N175: 7 | O175: 2 | P175: 7
A176: 2016 | B176: 523065.8367 | C176: 73384.00099 | D176: 7815.284451 | E176: 3919.143934 | F176: 21072.76988 | G176: 19910.80021 | H176: 3220.236728 | I176: 341.425835 | J176: 109.8031678 | K176: 933.2150502 | L176: 195 | M176: 48 | N176: 7 | O176: 2 | P176: 7
A177: 2017 | B177: 531277.1134 | C177: 74438.06214 | D177: 8161.157751 | E177: 4165.59015 | F177: 21166.04196 | G177: 19132.5583 | H177: 3030.731081 | I177: 338.32817 | J177: 118.752911 | K177: 892.6233633 | L177: 194 | M177: 46 | N177: 7 | O177: 2 | P177: 7
A178: 2018 | B178: 538799.0908 | C178: 75386.75791 | D178: 8479.38997 | E178: 4395.462472 | F178: 21266.56048 | G178: 18354.98358 | H178: 2841.240626 | I178: 335.3700441 | J178: 127.7026541 | K178: 852.0630195 | L178: 195 | M178: 47 | N178: 7 | O178: 2 | P178: 7
A179: 2019 | B179: 549061.8096 | C179: 76955.50348 | D179: 8890.927609 | E179: 4642.22493 | F179: 21671.95984 | G179: 18471.57993 | H179: 2848.265396 | I179: 342.5542781 | J179: 138.1523973 | K179: 857.5342005 | L179: 197 | M179: 48 | N179: 7 | O179: 2 | P179: 7
A180: 2020 | B180: 559439.1506 | C180: 78541.77004 | D180: 9307.061626 | E180: 4891.743428 | F180: 22084.87689 | G180: 18588.85121 | H180: 2855.305423 | I180: 349.88375 | J180: 148.6021404 | K180: 863.0370889 | L180: 199 | M180: 48 | N180: 7 | O180: 2 | P180: 7
A181: 2021 | B181: 569993.0755 | C181: 80155.029 | D181: 9730.276706 | E181: 5145.507807 | F181: 22505.45105 | G181: 18706.80135 | H181: 2862.360741 | I181: 357.3613961 | J181: 159.0518836 | K181: 868.5718685 | L181: 200 | M181: 50 | N181: 7 | O181: 2 | P181: 7
A182: 2022 | B182: 580723.0269 | C182: 81795.19513 | D182: 10160.55049 | E182: 5403.504664 | F182: 22933.82431 | G182: 18825.43427 | H182: 2869.431383 | I182: 364.9902119 | J182: 169.5016267 | K182: 874.1387241 | L182: 201 | M182: 52 | N182: 7 | O182: 2 | P182: 7

Sheet No of Connections Summ (hidden)
B1: ="ENVESTRA - Tariff model for "&'General Inputs'!#REF!&" ("&'General Inputs'!#REF!&")" -> 
B2: Number of connections - Summary
B3: Back to table of contents
B4: This page summarises the total number of connections input for each cost pools
B7: Period Ending 30 June | J7: 2005 | K7: =J7+1 -> 2006 | L7: 2007 | M7: 2008 | N7: 2009 | O7: 2010 | P7: 2011
B11: Connections data
C13: Number of connections
C16: Total number of connections
C17: in connections units
F18: Short name | G18: Price bands
C20: ='General Inputs'!#REF! ->  | F20: ='General Inputs'!B20 -> Tariff R: Res Central | G20: Total | L20: =MAX('Connection Numbers Inputs'!B5,SUM('Connection Numbers Inputs'!B17,'Connection Numbers Inputs'!B29,'Connection Numbers Inputs'!B41,'Connection Numbers Inputs'!B53,'Connection Numbers Inputs'!B65)) -> 491543.0795 | M20: =MAX('Connection Numbers Inputs'!B6,SUM('Connection Numbers Inputs'!B18,'Connection Numbers Inputs'!B30,'Connection Numbers Inputs'!B42,'Connection Numbers Inputs'!B54,'Connection Numbers Inputs'!B66)) -> 501388.7397 | N20: =MAX('Connection Numbers Inputs'!B7,SUM('Connection Numbers Inputs'!B19,'Connection Numbers Inputs'!B31,'Connection Numbers Inputs'!B43,'Connection Numbers Inputs'!B55,'Connection Numbers Inputs'!B67)) -> 511835.0247 | O20: =MAX('Connection Numbers Inputs'!B8,SUM('Connection Numbers Inputs'!B20,'Connection Numbers Inputs'!B32,'Connection Numbers Inputs'!B44,'Connection Numbers Inputs'!B56,'Connection Numbers Inputs'!B68)) -> 523065.8367 | P20: =MAX('Connection Numbers Inputs'!B9,SUM('Connection Numbers Inputs'!B21,'Connection Numbers Inputs'!B33,'Connection Numbers Inputs'!B45,'Connection Numbers Inputs'!B57,'Connection Numbers Inputs'!B69)) -> 531277.1134
C21: ='General Inputs'!#REF! ->  | F21: ='General Inputs'!B21 -> Tariff R: Res North | G21: Total | L21: =MAX('Connection Numbers Inputs'!C5,SUM('Connection Numbers Inputs'!C17,'Connection Numbers Inputs'!C29,'Connection Numbers Inputs'!C41,'Connection Numbers Inputs'!C53,'Connection Numbers Inputs'!C65)) -> 68804.23562 | M21: =MAX('Connection Numbers Inputs'!C6,SUM('Connection Numbers Inputs'!C18,'Connection Numbers Inputs'!C30,'Connection Numbers Inputs'!C42,'Connection Numbers Inputs'!C54,'Connection Numbers Inputs'!C66)) -> 70194.27397 | N21: =MAX('Connection Numbers Inputs'!C7,SUM('Connection Numbers Inputs'!C19,'Connection Numbers Inputs'!C31,'Connection Numbers Inputs'!C43,'Connection Numbers Inputs'!C55,'Connection Numbers Inputs'!C67)) -> 71667.27397 | O21: =MAX('Connection Numbers Inputs'!C8,SUM('Connection Numbers Inputs'!C20,'Connection Numbers Inputs'!C32,'Connection Numbers Inputs'!C44,'Connection Numbers Inputs'!C56,'Connection Numbers Inputs'!C68)) -> 73384.00099 | P21: =MAX('Connection Numbers Inputs'!C9,SUM('Connection Numbers Inputs'!C21,'Connection Numbers Inputs'!C33,'Connection Numbers Inputs'!C45,'Connection Numbers Inputs'!C57,'Connection Numbers Inputs'!C69)) -> 74438.06214
C22: ='General Inputs'!#REF! ->  | F22: ='General Inputs'!B30 -> Tariff D: Central | G22: Total | L22: =MAX('Connection Numbers Inputs'!J5,SUM('Connection Numbers Inputs'!J17,'Connection Numbers Inputs'!J29,'Connection Numbers Inputs'!J41,'Connection Numbers Inputs'!J53,'Connection Numbers Inputs'!J65)) -> 82.24657534 | M22: =MAX('Connection Numbers Inputs'!J6,SUM('Connection Numbers Inputs'!J18,'Connection Numbers Inputs'!J30,'Connection Numbers Inputs'!J42,'Connection Numbers Inputs'!J54,'Connection Numbers Inputs'!J66)) -> 92.24657534 | N22: =MAX('Connection Numbers Inputs'!J7,SUM('Connection Numbers Inputs'!J19,'Connection Numbers Inputs'!J31,'Connection Numbers Inputs'!J43,'Connection Numbers Inputs'!J55,'Connection Numbers Inputs'!J67)) -> 99.35342466 | O22: =MAX('Connection Numbers Inputs'!J8,SUM('Connection Numbers Inputs'!J20,'Connection Numbers Inputs'!J32,'Connection Numbers Inputs'!J44,'Connection Numbers Inputs'!J56,'Connection Numbers Inputs'!J68)) -> 109.8031678 | P22: =MAX('Connection Numbers Inputs'!J9,SUM('Connection Numbers Inputs'!J21,'Connection Numbers Inputs'!J33,'Connection Numbers Inputs'!J45,'Connection Numbers Inputs'!J57,'Connection Numbers Inputs'!J69)) -> 118.752911
C23: ='General Inputs'!#REF! ->  | F23: ='General Inputs'!B32 -> Tariff D: MV (Vic) | G23: Total | L23: =MAX('Connection Numbers Inputs'!L5,SUM('Connection Numbers Inputs'!L17,'Connection Numbers Inputs'!L29,'Connection Numbers Inputs'!L41,'Connection Numbers Inputs'!L53,'Connection Numbers Inputs'!L65)) -> 194 | M23: =MAX('Connection Numbers Inputs'!L6,SUM('Connection Numbers Inputs'!L18,'Connection Numbers Inputs'!L30,'Connection Numbers Inputs'!L42,'Connection Numbers Inputs'!L54,'Connection Numbers Inputs'!L66)) -> 200 | N23: =MAX('Connection Numbers Inputs'!L7,SUM('Connection Numbers Inputs'!L19,'Connection Numbers Inputs'!L31,'Connection Numbers Inputs'!L43,'Connection Numbers Inputs'!L55,'Connection Numbers Inputs'!L67)) -> 198 | O23: =MAX('Connection Numbers Inputs'!L8,SUM('Connection Numbers Inputs'!L20,'Connection Numbers Inputs'!L32,'Connection Numbers Inputs'!L44,'Connection Numbers Inputs'!L56,'Connection Numbers Inputs'!L68)) -> 195 | P23: =MAX('Connection Numbers Inputs'!L9,SUM('Connection Numbers Inputs'!L21,'Connection Numbers Inputs'!L33,'Connection Numbers Inputs'!L45,'Connection Numbers Inputs'!L57,'Connection Numbers Inputs'!L69)) -> 194
C24: ='General Inputs'!#REF! ->  | F24: ='General Inputs'!B33 -> Tariff D: Bairnsdale | G24: Total | L24: =MAX('Connection Numbers Inputs'!M5,SUM('Connection Numbers Inputs'!M17,'Connection Numbers Inputs'!M29,'Connection Numbers Inputs'!M41,'Connection Numbers Inputs'!M53,'Connection Numbers Inputs'!M65)) -> 47 | M24: =MAX('Connection Numbers Inputs'!M6,SUM('Connection Numbers Inputs'!M18,'Connection Numbers Inputs'!M30,'Connection Numbers Inputs'!M42,'Connection Numbers Inputs'!M54,'Connection Numbers Inputs'!M66)) -> 50 | N24: =MAX('Connection Numbers Inputs'!M7,SUM('Connection Numbers Inputs'!M19,'Connection Numbers Inputs'!M31,'Connection Numbers Inputs'!M43,'Connection Numbers Inputs'!M55,'Connection Numbers Inputs'!M67)) -> 48 | O24: =MAX('Connection Numbers Inputs'!M8,SUM('Connection Numbers Inputs'!M20,'Connection Numbers Inputs'!M32,'Connection Numbers Inputs'!M44,'Connection Numbers Inputs'!M56,'Connection Numbers Inputs'!M68)) -> 48 | P24: =MAX('Connection Numbers Inputs'!M9,SUM('Connection Numbers Inputs'!M21,'Connection Numbers Inputs'!M33,'Connection Numbers Inputs'!M45,'Connection Numbers Inputs'!M57,'Connection Numbers Inputs'!M69)) -> 46
C25: ='General Inputs'!#REF! ->  | F25: ='General Inputs'!B35 -> 0 | G25: Total | L25: =MAX('Connection Numbers Inputs'!#REF!,SUM('Connection Numbers Inputs'!#REF!,'Connection Numbers Inputs'!#REF!,'Connection Numbers Inputs'!#REF!,'Connection Numbers Inputs'!#REF!,'Connection Numbers Inputs'!#REF!)) ->  | M25: =MAX('Connection Numbers Inputs'!#REF!,SUM('Connection Numbers Inputs'!#REF!,'Connection Numbers Inputs'!#REF!,'Connection Numbers Inputs'!#REF!,'Connection Numbers Inputs'!#REF!,'Connection Numbers Inputs'!#REF!)) ->  | N25: =MAX('Connection Numbers Inputs'!#REF!,SUM('Connection Numbers Inputs'!#REF!,'Connection Numbers Inputs'!#REF!,'Connection Numbers Inputs'!#REF!,'Connection Numbers Inputs'!#REF!,'Connection Numbers Inputs'!#REF!)) ->  | O25: =MAX('Connection Numbers Inputs'!#REF!,SUM('Connection Numbers Inputs'!#REF!,'Connection Numbers Inputs'!#REF!,'Connection Numbers Inputs'!#REF!,'Connection Numbers Inputs'!#REF!,'Connection Numbers Inputs'!#REF!)) ->  | P25: =MAX('Connection Numbers Inputs'!#REF!,SUM('Connection Numbers Inputs'!#REF!,'Connection Numbers Inputs'!#REF!,'Connection Numbers Inputs'!#REF!,'Connection Numbers Inputs'!#REF!,'Connection Numbers Inputs'!#REF!)) -> 
C26: ='General Inputs'!#REF! ->  | F26: ='General Inputs'!B36 -> 0 | G26: Total | L26: =MAX('Connection Numbers Inputs'!N5,SUM('Connection Numbers Inputs'!N17,'Connection Numbers Inputs'!N29,'Connection Numbers Inputs'!N41,'Connection Numbers Inputs'!N53,'Connection Numbers Inputs'!N65)) -> 7 | M26: =MAX('Connection Numbers Inputs'!N6,SUM('Connection Numbers Inputs'!N18,'Connection Numbers Inputs'!N30,'Connection Numbers Inputs'!N42,'Connection Numbers Inputs'!N54,'Connection Numbers Inputs'!N66)) -> 7 | N26: =MAX('Connection Numbers Inputs'!N7,SUM('Connection Numbers Inputs'!N19,'Connection Numbers Inputs'!N31,'Connection Numbers Inputs'!N43,'Connection Numbers Inputs'!N55,'Connection Numbers Inputs'!N67)) -> 7 | O26: =MAX('Connection Numbers Inputs'!N8,SUM('Connection Numbers Inputs'!N20,'Connection Numbers Inputs'!N32,'Connection Numbers Inputs'!N44,'Connection Numbers Inputs'!N56,'Connection Numbers Inputs'!N68)) -> 7 | P26: =MAX('Connection Numbers Inputs'!N9,SUM('Connection Numbers Inputs'!N21,'Connection Numbers Inputs'!N33,'Connection Numbers Inputs'!N45,'Connection Numbers Inputs'!N57,'Connection Numbers Inputs'!N69)) -> 7
C27: ='General Inputs'!#REF! ->  | F27: ='General Inputs'!B37 -> 0 | G27: Total | L27: =MAX('Connection Numbers Inputs'!#REF!,SUM('Connection Numbers Inputs'!#REF!,'Connection Numbers Inputs'!#REF!,'Connection Numbers Inputs'!#REF!,'Connection Numbers Inputs'!#REF!,'Connection Numbers Inputs'!#REF!)) ->  | M27: =MAX('Connection Numbers Inputs'!#REF!,SUM('Connection Numbers Inputs'!#REF!,'Connection Numbers Inputs'!#REF!,'Connection Numbers Inputs'!#REF!,'Connection Numbers Inputs'!#REF!,'Connection Numbers Inputs'!#REF!)) ->  | N27: =MAX('Connection Numbers Inputs'!#REF!,SUM('Connection Numbers Inputs'!#REF!,'Connection Numbers Inputs'!#REF!,'Connection Numbers Inputs'!#REF!,'Connection Numbers Inputs'!#REF!,'Connection Numbers Inputs'!#REF!)) ->  | O27: =MAX('Connection Numbers Inputs'!#REF!,SUM('Connection Numbers Inputs'!#REF!,'Connection Numbers Inputs'!#REF!,'Connection Numbers Inputs'!#REF!,'Connection Numbers Inputs'!#REF!,'Connection Numbers Inputs'!#REF!)) ->  | P27: =MAX('Connection Numbers Inputs'!#REF!,SUM('Connection Numbers Inputs'!#REF!,'Connection Numbers Inputs'!#REF!,'Connection Numbers Inputs'!#REF!,'Connection Numbers Inputs'!#REF!,'Connection Numbers Inputs'!#REF!)) -> 
C28: ='General Inputs'!#REF! ->  | F28: ='General Inputs'!B38 -> 0 | G28: Total | L28: =MAX('Connection Numbers Inputs'!#REF!,SUM('Connection Numbers Inputs'!#REF!,'Connection Numbers Inputs'!#REF!,'Connection Numbers Inputs'!#REF!,'Connection Numbers Inputs'!#REF!,'Connection Numbers Inputs'!#REF!)) ->  | M28: =MAX('Connection Numbers Inputs'!#REF!,SUM('Connection Numbers Inputs'!#REF!,'Connection Numbers Inputs'!#REF!,'Connection Numbers Inputs'!#REF!,'Connection Numbers Inputs'!#REF!,'Connection Numbers Inputs'!#REF!)) ->  | N28: =MAX('Connection Numbers Inputs'!#REF!,SUM('Connection Numbers Inputs'!#REF!,'Connection Numbers Inputs'!#REF!,'Connection Numbers Inputs'!#REF!,'Connection Numbers Inputs'!#REF!,'Connection Numbers Inputs'!#REF!)) ->  | O28: =MAX('Connection Numbers Inputs'!#REF!,SUM('Connection Numbers Inputs'!#REF!,'Connection Numbers Inputs'!#REF!,'Connection Numbers Inputs'!#REF!,'Connection Numbers Inputs'!#REF!,'Connection Numbers Inputs'!#REF!)) ->  | P28: =MAX('Connection Numbers Inputs'!#REF!,SUM('Connection Numbers Inputs'!#REF!,'Connection Numbers Inputs'!#REF!,'Connection Numbers Inputs'!#REF!,'Connection Numbers Inputs'!#REF!,'Connection Numbers Inputs'!#REF!)) -> 
C29: ='General Inputs'!#REF! ->  | F29: ='General Inputs'!B39 -> 0 | G29: Total | L29: =MAX('Connection Numbers Inputs'!#REF!,SUM('Connection Numbers Inputs'!#REF!,'Connection Numbers Inputs'!#REF!,'Connection Numbers Inputs'!#REF!,'Connection Numbers Inputs'!#REF!,'Connection Numbers Inputs'!#REF!)) ->  | M29: =MAX('Connection Numbers Inputs'!#REF!,SUM('Connection Numbers Inputs'!#REF!,'Connection Numbers Inputs'!#REF!,'Connection Numbers Inputs'!#REF!,'Connection Numbers Inputs'!#REF!,'Connection Numbers Inputs'!#REF!)) ->  | N29: =MAX('Connection Numbers Inputs'!#REF!,SUM('Connection Numbers Inputs'!#REF!,'Connection Numbers Inputs'!#REF!,'Connection Numbers Inputs'!#REF!,'Connection Numbers Inputs'!#REF!,'Connection Numbers Inputs'!#REF!)) ->  | O29: =MAX('Connection Numbers Inputs'!#REF!,SUM('Connection Numbers Inputs'!#REF!,'Connection Numbers Inputs'!#REF!,'Connection Numbers Inputs'!#REF!,'Connection Numbers Inputs'!#REF!,'Connection Numbers Inputs'!#REF!)) ->  | P29: =MAX('Connection Numbers Inputs'!#REF!,SUM('Connection Numbers Inputs'!#REF!,'Connection Numbers Inputs'!#REF!,'Connection Numbers Inputs'!#REF!,'Connection Numbers Inputs'!#REF!,'Connection Numbers Inputs'!#REF!)) -> 
C30: ='General Inputs'!#REF! ->  | F30: ='General Inputs'!B40 -> 0 | G30: Total | L30: =MAX('Connection Numbers Inputs'!Q5,SUM('Connection Numbers Inputs'!Q17,'Connection Numbers Inputs'!Q29,'Connection Numbers Inputs'!Q41,'Connection Numbers Inputs'!Q53,'Connection Numbers Inputs'!Q65)) -> 0 | M30: =MAX('Connection Numbers Inputs'!Q6,SUM('Connection Numbers Inputs'!Q18,'Connection Numbers Inputs'!Q30,'Connection Numbers Inputs'!Q42,'Connection Numbers Inputs'!Q54,'Connection Numbers Inputs'!Q66)) -> 0 | N30: =MAX('Connection Numbers Inputs'!Q7,SUM('Connection Numbers Inputs'!Q19,'Connection Numbers Inputs'!Q31,'Connection Numbers Inputs'!Q43,'Connection Numbers Inputs'!Q55,'Connection Numbers Inputs'!Q67)) -> 0 | O30: =MAX('Connection Numbers Inputs'!Q8,SUM('Connection Numbers Inputs'!Q20,'Connection Numbers Inputs'!Q32,'Connection Numbers Inputs'!Q44,'Connection Numbers Inputs'!Q56,'Connection Numbers Inputs'!Q68)) -> 0 | P30: =MAX('Connection Numbers Inputs'!Q9,SUM('Connection Numbers Inputs'!Q21,'Connection Numbers Inputs'!Q33,'Connection Numbers Inputs'!Q45,'Connection Numbers Inputs'!Q57,'Connection Numbers Inputs'!Q69)) -> 0
C31: ='General Inputs'!#REF! ->  | F31: ='General Inputs'!B41 -> 0 | G31: Total | L31: =MAX('Connection Numbers Inputs'!R5,SUM('Connection Numbers Inputs'!R17,'Connection Numbers Inputs'!R29,'Connection Numbers Inputs'!R41,'Connection Numbers Inputs'!R53,'Connection Numbers Inputs'!R65)) -> 0 | M31: =MAX('Connection Numbers Inputs'!R6,SUM('Connection Numbers Inputs'!R18,'Connection Numbers Inputs'!R30,'Connection Numbers Inputs'!R42,'Connection Numbers Inputs'!R54,'Connection Numbers Inputs'!R66)) -> 0 | N31: =MAX('Connection Numbers Inputs'!R7,SUM('Connection Numbers Inputs'!R19,'Connection Numbers Inputs'!R31,'Connection Numbers Inputs'!R43,'Connection Numbers Inputs'!R55,'Connection Numbers Inputs'!R67)) -> 0 | O31: =MAX('Connection Numbers Inputs'!R8,SUM('Connection Numbers Inputs'!R20,'Connection Numbers Inputs'!R32,'Connection Numbers Inputs'!R44,'Connection Numbers Inputs'!R56,'Connection Numbers Inputs'!R68)) -> 0 | P31: =MAX('Connection Numbers Inputs'!R9,SUM('Connection Numbers Inputs'!R21,'Connection Numbers Inputs'!R33,'Connection Numbers Inputs'!R45,'Connection Numbers Inputs'!R57,'Connection Numbers Inputs'!R69)) -> 0
C32: ='General Inputs'!#REF! ->  | F32: ='General Inputs'!B42 -> 0 | G32: Total | L32: =MAX('Connection Numbers Inputs'!T5,SUM('Connection Numbers Inputs'!T17,'Connection Numbers Inputs'!T29,'Connection Numbers Inputs'!T41,'Connection Numbers Inputs'!T53,'Connection Numbers Inputs'!T65)) -> 0 | M32: =MAX('Connection Numbers Inputs'!T6,SUM('Connection Numbers Inputs'!T18,'Connection Numbers Inputs'!T30,'Connection Numbers Inputs'!T42,'Connection Numbers Inputs'!T54,'Connection Numbers Inputs'!T66)) -> 0 | N32: =MAX('Connection Numbers Inputs'!T7,SUM('Connection Numbers Inputs'!T19,'Connection Numbers Inputs'!T31,'Connection Numbers Inputs'!T43,'Connection Numbers Inputs'!T55,'Connection Numbers Inputs'!T67)) -> 0 | O32: =MAX('Connection Numbers Inputs'!T8,SUM('Connection Numbers Inputs'!T20,'Connection Numbers Inputs'!T32,'Connection Numbers Inputs'!T44,'Connection Numbers Inputs'!T56,'Connection Numbers Inputs'!T68)) -> 0 | P32: =MAX('Connection Numbers Inputs'!T9,SUM('Connection Numbers Inputs'!T21,'Connection Numbers Inputs'!T33,'Connection Numbers Inputs'!T45,'Connection Numbers Inputs'!T57,'Connection Numbers Inputs'!T69)) -> 0
C33: ='General Inputs'!#REF! ->  | F33: ='General Inputs'!B43 -> 0 | G33: Total | L33: =MAX('Connection Numbers Inputs'!S5,SUM('Connection Numbers Inputs'!S17,'Connection Numbers Inputs'!S29,'Connection Numbers Inputs'!S41,'Connection Numbers Inputs'!S53,'Connection Numbers Inputs'!S65)) -> 0 | M33: =MAX('Connection Numbers Inputs'!S6,SUM('Connection Numbers Inputs'!S18,'Connection Numbers Inputs'!S30,'Connection Numbers Inputs'!S42,'Connection Numbers Inputs'!S54,'Connection Numbers Inputs'!S66)) -> 0 | N33: =MAX('Connection Numbers Inputs'!S7,SUM('Connection Numbers Inputs'!S19,'Connection Numbers Inputs'!S31,'Connection Numbers Inputs'!S43,'Connection Numbers Inputs'!S55,'Connection Numbers Inputs'!S67)) -> 0 | O33: =MAX('Connection Numbers Inputs'!S8,SUM('Connection Numbers Inputs'!S20,'Connection Numbers Inputs'!S32,'Connection Numbers Inputs'!S44,'Connection Numbers Inputs'!S56,'Connection Numbers Inputs'!S68)) -> 0 | P33: =MAX('Connection Numbers Inputs'!S9,SUM('Connection Numbers Inputs'!S21,'Connection Numbers Inputs'!S33,'Connection Numbers Inputs'!S45,'Connection Numbers Inputs'!S57,'Connection Numbers Inputs'!S69)) -> 0
C34: ='General Inputs'!#REF! ->  | F34: ='General Inputs'!#REF! ->  | G34: Total | L34: =MAX('Connection Numbers Inputs'!#REF!,SUM('Connection Numbers Inputs'!#REF!,'Connection Numbers Inputs'!#REF!,'Connection Numbers Inputs'!#REF!,'Connection Numbers Inputs'!#REF!,'Connection Numbers Inputs'!#REF!)) ->  | M34: =MAX('Connection Numbers Inputs'!#REF!,SUM('Connection Numbers Inputs'!#REF!,'Connection Numbers Inputs'!#REF!,'Connection Numbers Inputs'!#REF!,'Connection Numbers Inputs'!#REF!,'Connection Numbers Inputs'!#REF!)) ->  | N34: =MAX('Connection Numbers Inputs'!#REF!,SUM('Connection Numbers Inputs'!#REF!,'Connection Numbers Inputs'!#REF!,'Connection Numbers Inputs'!#REF!,'Connection Numbers Inputs'!#REF!,'Connection Numbers Inputs'!#REF!)) ->  | O34: =MAX('Connection Numbers Inputs'!#REF!,SUM('Connection Numbers Inputs'!#REF!,'Connection Numbers Inputs'!#REF!,'Connection Numbers Inputs'!#REF!,'Connection Numbers Inputs'!#REF!,'Connection Numbers Inputs'!#REF!)) ->  | P34: =MAX('Connection Numbers Inputs'!#REF!,SUM('Connection Numbers Inputs'!#REF!,'Connection Numbers Inputs'!#REF!,'Connection Numbers Inputs'!#REF!,'Connection Numbers Inputs'!#REF!,'Connection Numbers Inputs'!#REF!)) -> 
C35: ='General Inputs'!#REF! ->  | F35: ='General Inputs'!#REF! ->  | G35: Total | L35: =MAX('Connection Numbers Inputs'!#REF!,SUM('Connection Numbers Inputs'!#REF!,'Connection Numbers Inputs'!#REF!,'Connection Numbers Inputs'!#REF!,'Connection Numbers Inputs'!#REF!,'Connection Numbers Inputs'!#REF!)) ->  | M35: =MAX('Connection Numbers Inputs'!#REF!,SUM('Connection Numbers Inputs'!#REF!,'Connection Numbers Inputs'!#REF!,'Connection Numbers Inputs'!#REF!,'Connection Numbers Inputs'!#REF!,'Connection Numbers Inputs'!#REF!)) ->  | N35: =MAX('Connection Numbers Inputs'!#REF!,SUM('Connection Numbers Inputs'!#REF!,'Connection Numbers Inputs'!#REF!,'Connection Numbers Inputs'!#REF!,'Connection Numbers Inputs'!#REF!,'Connection Numbers Inputs'!#REF!)) ->  | O35: =MAX('Connection Numbers Inputs'!#REF!,SUM('Connection Numbers Inputs'!#REF!,'Connection Numbers Inputs'!#REF!,'Connection Numbers Inputs'!#REF!,'Connection Numbers Inputs'!#REF!,'Connection Numbers Inputs'!#REF!)) ->  | P35: =MAX('Connection Numbers Inputs'!#REF!,SUM('Connection Numbers Inputs'!#REF!,'Connection Numbers Inputs'!#REF!,'Connection Numbers Inputs'!#REF!,'Connection Numbers Inputs'!#REF!,'Connection Numbers Inputs'!#REF!)) -> 
C36: ='General Inputs'!#REF! ->  | F36: ='General Inputs'!#REF! ->  | G36: Total | L36: =MAX('Connection Numbers Inputs'!#REF!,SUM('Connection Numbers Inputs'!#REF!,'Connection Numbers Inputs'!#REF!,'Connection Numbers Inputs'!#REF!,'Connection Numbers Inputs'!#REF!,'Connection Numbers Inputs'!#REF!)) ->  | M36: =MAX('Connection Numbers Inputs'!#REF!,SUM('Connection Numbers Inputs'!#REF!,'Connection Numbers Inputs'!#REF!,'Connection Numbers Inputs'!#REF!,'Connection Numbers Inputs'!#REF!,'Connection Numbers Inputs'!#REF!)) ->  | N36: =MAX('Connection Numbers Inputs'!#REF!,SUM('Connection Numbers Inputs'!#REF!,'Connection Numbers Inputs'!#REF!,'Connection Numbers Inputs'!#REF!,'Connection Numbers Inputs'!#REF!,'Connection Numbers Inputs'!#REF!)) ->  | O36: =MAX('Connection Numbers Inputs'!#REF!,SUM('Connection Numbers Inputs'!#REF!,'Connection Numbers Inputs'!#REF!,'Connection Numbers Inputs'!#REF!,'Connection Numbers Inputs'!#REF!,'Connection Numbers Inputs'!#REF!)) ->  | P36: =MAX('Connection Numbers Inputs'!#REF!,SUM('Connection Numbers Inputs'!#REF!,'Connection Numbers Inputs'!#REF!,'Connection Numbers Inputs'!#REF!,'Connection Numbers Inputs'!#REF!,'Connection Numbers Inputs'!#REF!)) -> 
C37: ='General Inputs'!#REF! ->  | F37: ='General Inputs'!#REF! ->  | G37: Total | L37: =MAX('Connection Numbers Inputs'!#REF!,SUM('Connection Numbers Inputs'!#REF!,'Connection Numbers Inputs'!#REF!,'Connection Numbers Inputs'!#REF!,'Connection Numbers Inputs'!#REF!,'Connection Numbers Inputs'!#REF!)) ->  | M37: =MAX('Connection Numbers Inputs'!#REF!,SUM('Connection Numbers Inputs'!#REF!,'Connection Numbers Inputs'!#REF!,'Connection Numbers Inputs'!#REF!,'Connection Numbers Inputs'!#REF!,'Connection Numbers Inputs'!#REF!)) ->  | N37: =MAX('Connection Numbers Inputs'!#REF!,SUM('Connection Numbers Inputs'!#REF!,'Connection Numbers Inputs'!#REF!,'Connection Numbers Inputs'!#REF!,'Connection Numbers Inputs'!#REF!,'Connection Numbers Inputs'!#REF!)) ->  | O37: =MAX('Connection Numbers Inputs'!#REF!,SUM('Connection Numbers Inputs'!#REF!,'Connection Numbers Inputs'!#REF!,'Connection Numbers Inputs'!#REF!,'Connection Numbers Inputs'!#REF!,'Connection Numbers Inputs'!#REF!)) ->  | P37: =MAX('Connection Numbers Inputs'!#REF!,SUM('Connection Numbers Inputs'!#REF!,'Connection Numbers Inputs'!#REF!,'Connection Numbers Inputs'!#REF!,'Connection Numbers Inputs'!#REF!,'Connection Numbers Inputs'!#REF!)) -> 
C38: ='General Inputs'!#REF! ->  | F38: ='General Inputs'!#REF! ->  | G38: Total | L38: =MAX('Connection Numbers Inputs'!#REF!,SUM('Connection Numbers Inputs'!#REF!,'Connection Numbers Inputs'!#REF!,'Connection Numbers Inputs'!#REF!,'Connection Numbers Inputs'!#REF!,'Connection Numbers Inputs'!#REF!)) ->  | M38: =MAX('Connection Numbers Inputs'!#REF!,SUM('Connection Numbers Inputs'!#REF!,'Connection Numbers Inputs'!#REF!,'Connection Numbers Inputs'!#REF!,'Connection Numbers Inputs'!#REF!,'Connection Numbers Inputs'!#REF!)) ->  | N38: =MAX('Connection Numbers Inputs'!#REF!,SUM('Connection Numbers Inputs'!#REF!,'Connection Numbers Inputs'!#REF!,'Connection Numbers Inputs'!#REF!,'Connection Numbers Inputs'!#REF!,'Connection Numbers Inputs'!#REF!)) ->  | O38: =MAX('Connection Numbers Inputs'!#REF!,SUM('Connection Numbers Inputs'!#REF!,'Connection Numbers Inputs'!#REF!,'Connection Numbers Inputs'!#REF!,'Connection Numbers Inputs'!#REF!,'Connection Numbers Inputs'!#REF!)) ->  | P38: =MAX('Connection Numbers Inputs'!#REF!,SUM('Connection Numbers Inputs'!#REF!,'Connection Numbers Inputs'!#REF!,'Connection Numbers Inputs'!#REF!,'Connection Numbers Inputs'!#REF!,'Connection Numbers Inputs'!#REF!)) -> 
C39: ='General Inputs'!#REF! ->  | F39: ='General Inputs'!#REF! ->  | G39: Total | L39: =MAX('Connection Numbers Inputs'!#REF!,SUM('Connection Numbers Inputs'!#REF!,'Connection Numbers Inputs'!#REF!,'Connection Numbers Inputs'!#REF!,'Connection Numbers Inputs'!#REF!,'Connection Numbers Inputs'!#REF!)) ->  | M39: =MAX('Connection Numbers Inputs'!#REF!,SUM('Connection Numbers Inputs'!#REF!,'Connection Numbers Inputs'!#REF!,'Connection Numbers Inputs'!#REF!,'Connection Numbers Inputs'!#REF!,'Connection Numbers Inputs'!#REF!)) ->  | N39: =MAX('Connection Numbers Inputs'!#REF!,SUM('Connection Numbers Inputs'!#REF!,'Connection Numbers Inputs'!#REF!,'Connection Numbers Inputs'!#REF!,'Connection Numbers Inputs'!#REF!,'Connection Numbers Inputs'!#REF!)) ->  | O39: =MAX('Connection Numbers Inputs'!#REF!,SUM('Connection Numbers Inputs'!#REF!,'Connection Numbers Inputs'!#REF!,'Connection Numbers Inputs'!#REF!,'Connection Numbers Inputs'!#REF!,'Connection Numbers Inputs'!#REF!)) ->  | P39: =MAX('Connection Numbers Inputs'!#REF!,SUM('Connection Numbers Inputs'!#REF!,'Connection Numbers Inputs'!#REF!,'Connection Numbers Inputs'!#REF!,'Connection Numbers Inputs'!#REF!,'Connection Numbers Inputs'!#REF!)) -> 
C40: ='General Inputs'!#REF! ->  | F40: ='General Inputs'!#REF! ->  | G40: Total | L40: =MAX('Connection Numbers Inputs'!#REF!,SUM('Connection Numbers Inputs'!#REF!,'Connection Numbers Inputs'!#REF!,'Connection Numbers Inputs'!#REF!,'Connection Numbers Inputs'!#REF!,'Connection Numbers Inputs'!#REF!)) ->  | M40: =MAX('Connection Numbers Inputs'!#REF!,SUM('Connection Numbers Inputs'!#REF!,'Connection Numbers Inputs'!#REF!,'Connection Numbers Inputs'!#REF!,'Connection Numbers Inputs'!#REF!,'Connection Numbers Inputs'!#REF!)) ->  | N40: =MAX('Connection Numbers Inputs'!#REF!,SUM('Connection Numbers Inputs'!#REF!,'Connection Numbers Inputs'!#REF!,'Connection Numbers Inputs'!#REF!,'Connection Numbers Inputs'!#REF!,'Connection Numbers Inputs'!#REF!)) ->  | O40: =MAX('Connection Numbers Inputs'!#REF!,SUM('Connection Numbers Inputs'!#REF!,'Connection Numbers Inputs'!#REF!,'Connection Numbers Inputs'!#REF!,'Connection Numbers Inputs'!#REF!,'Connection Numbers Inputs'!#REF!)) ->  | P40: =MAX('Connection Numbers Inputs'!#REF!,SUM('Connection Numbers Inputs'!#REF!,'Connection Numbers Inputs'!#REF!,'Connection Numbers Inputs'!#REF!,'Connection Numbers Inputs'!#REF!,'Connection Numbers Inputs'!#REF!)) -> 
C41: ='General Inputs'!#REF! ->  | F41: ='General Inputs'!#REF! ->  | G41: Total | L41: =MAX('Connection Numbers Inputs'!#REF!,SUM('Connection Numbers Inputs'!#REF!,'Connection Numbers Inputs'!#REF!,'Connection Numbers Inputs'!#REF!,'Connection Numbers Inputs'!#REF!,'Connection Numbers Inputs'!#REF!)) ->  | M41: =MAX('Connection Numbers Inputs'!#REF!,SUM('Connection Numbers Inputs'!#REF!,'Connection Numbers Inputs'!#REF!,'Connection Numbers Inputs'!#REF!,'Connection Numbers Inputs'!#REF!,'Connection Numbers Inputs'!#REF!)) ->  | N41: =MAX('Connection Numbers Inputs'!#REF!,SUM('Connection Numbers Inputs'!#REF!,'Connection Numbers Inputs'!#REF!,'Connection Numbers Inputs'!#REF!,'Connection Numbers Inputs'!#REF!,'Connection Numbers Inputs'!#REF!)) ->  | O41: =MAX('Connection Numbers Inputs'!#REF!,SUM('Connection Numbers Inputs'!#REF!,'Connection Numbers Inputs'!#REF!,'Connection Numbers Inputs'!#REF!,'Connection Numbers Inputs'!#REF!,'Connection Numbers Inputs'!#REF!)) ->  | P41: =MAX('Connection Numbers Inputs'!#REF!,SUM('Connection Numbers Inputs'!#REF!,'Connection Numbers Inputs'!#REF!,'Connection Numbers Inputs'!#REF!,'Connection Numbers Inputs'!#REF!,'Connection Numbers Inputs'!#REF!)) -> 
C42: ='General Inputs'!#REF! ->  | F42: ='General Inputs'!#REF! ->  | G42: Total | L42: =MAX('Connection Numbers Inputs'!#REF!,SUM('Connection Numbers Inputs'!#REF!,'Connection Numbers Inputs'!#REF!,'Connection Numbers Inputs'!#REF!,'Connection Numbers Inputs'!#REF!,'Connection Numbers Inputs'!#REF!)) ->  | M42: =MAX('Connection Numbers Inputs'!#REF!,SUM('Connection Numbers Inputs'!#REF!,'Connection Numbers Inputs'!#REF!,'Connection Numbers Inputs'!#REF!,'Connection Numbers Inputs'!#REF!,'Connection Numbers Inputs'!#REF!)) ->  | N42: =MAX('Connection Numbers Inputs'!#REF!,SUM('Connection Numbers Inputs'!#REF!,'Connection Numbers Inputs'!#REF!,'Connection Numbers Inputs'!#REF!,'Connection Numbers Inputs'!#REF!,'Connection Numbers Inputs'!#REF!)) ->  | O42: =MAX('Connection Numbers Inputs'!#REF!,SUM('Connection Numbers Inputs'!#REF!,'Connection Numbers Inputs'!#REF!,'Connection Numbers Inputs'!#REF!,'Connection Numbers Inputs'!#REF!,'Connection Numbers Inputs'!#REF!)) ->  | P42: =MAX('Connection Numbers Inputs'!#REF!,SUM('Connection Numbers Inputs'!#REF!,'Connection Numbers Inputs'!#REF!,'Connection Numbers Inputs'!#REF!,'Connection Numbers Inputs'!#REF!,'Connection Numbers Inputs'!#REF!)) -> 
C43: ='General Inputs'!#REF! ->  | F43: ='General Inputs'!#REF! ->  | G43: Total | L43: =MAX('Connection Numbers Inputs'!#REF!,SUM('Connection Numbers Inputs'!#REF!,'Connection Numbers Inputs'!#REF!,'Connection Numbers Inputs'!#REF!,'Connection Numbers Inputs'!#REF!,'Connection Numbers Inputs'!#REF!)) ->  | M43: =MAX('Connection Numbers Inputs'!#REF!,SUM('Connection Numbers Inputs'!#REF!,'Connection Numbers Inputs'!#REF!,'Connection Numbers Inputs'!#REF!,'Connection Numbers Inputs'!#REF!,'Connection Numbers Inputs'!#REF!)) ->  | N43: =MAX('Connection Numbers Inputs'!#REF!,SUM('Connection Numbers Inputs'!#REF!,'Connection Numbers Inputs'!#REF!,'Connection Numbers Inputs'!#REF!,'Connection Numbers Inputs'!#REF!,'Connection Numbers Inputs'!#REF!)) ->  | O43: =MAX('Connection Numbers Inputs'!#REF!,SUM('Connection Numbers Inputs'!#REF!,'Connection Numbers Inputs'!#REF!,'Connection Numbers Inputs'!#REF!,'Connection Numbers Inputs'!#REF!,'Connection Numbers Inputs'!#REF!)) ->  | P43: =MAX('Connection Numbers Inputs'!#REF!,SUM('Connection Numbers Inputs'!#REF!,'Connection Numbers Inputs'!#REF!,'Connection Numbers Inputs'!#REF!,'Connection Numbers Inputs'!#REF!,'Connection Numbers Inputs'!#REF!)) -> 
C44: ='General Inputs'!#REF! ->  | F44: ='General Inputs'!#REF! ->  | G44: Total | L44: =MAX('Connection Numbers Inputs'!#REF!,SUM('Connection Numbers Inputs'!#REF!,'Connection Numbers Inputs'!#REF!,'Connection Numbers Inputs'!#REF!,'Connection Numbers Inputs'!#REF!,'Connection Numbers Inputs'!#REF!)) ->  | M44: =MAX('Connection Numbers Inputs'!#REF!,SUM('Connection Numbers Inputs'!#REF!,'Connection Numbers Inputs'!#REF!,'Connection Numbers Inputs'!#REF!,'Connection Numbers Inputs'!#REF!,'Connection Numbers Inputs'!#REF!)) ->  | N44: =MAX('Connection Numbers Inputs'!#REF!,SUM('Connection Numbers Inputs'!#REF!,'Connection Numbers Inputs'!#REF!,'Connection Numbers Inputs'!#REF!,'Connection Numbers Inputs'!#REF!,'Connection Numbers Inputs'!#REF!)) ->  | O44: =MAX('Connection Numbers Inputs'!#REF!,SUM('Connection Numbers Inputs'!#REF!,'Connection Numbers Inputs'!#REF!,'Connection Numbers Inputs'!#REF!,'Connection Numbers Inputs'!#REF!,'Connection Numbers Inputs'!#REF!)) ->  | P44: =MAX('Connection Numbers Inputs'!#REF!,SUM('Connection Numbers Inputs'!#REF!,'Connection Numbers Inputs'!#REF!,'Connection Numbers Inputs'!#REF!,'Connection Numbers Inputs'!#REF!,'Connection Numbers Inputs'!#REF!)) -> 
C45: ='General Inputs'!#REF! ->  | F45: ='General Inputs'!#REF! ->  | G45: Total | L45: =MAX('Connection Numbers Inputs'!#REF!,SUM('Connection Numbers Inputs'!#REF!,'Connection Numbers Inputs'!#REF!,'Connection Numbers Inputs'!#REF!,'Connection Numbers Inputs'!#REF!,'Connection Numbers Inputs'!#REF!)) ->  | M45: =MAX('Connection Numbers Inputs'!#REF!,SUM('Connection Numbers Inputs'!#REF!,'Connection Numbers Inputs'!#REF!,'Connection Numbers Inputs'!#REF!,'Connection Numbers Inputs'!#REF!,'Connection Numbers Inputs'!#REF!)) ->  | N45: =MAX('Connection Numbers Inputs'!#REF!,SUM('Connection Numbers Inputs'!#REF!,'Connection Numbers Inputs'!#REF!,'Connection Numbers Inputs'!#REF!,'Connection Numbers Inputs'!#REF!,'Connection Numbers Inputs'!#REF!)) ->  | O45: =MAX('Connection Numbers Inputs'!#REF!,SUM('Connection Numbers Inputs'!#REF!,'Connection Numbers Inputs'!#REF!,'Connection Numbers Inputs'!#REF!,'Connection Numbers Inputs'!#REF!,'Connection Numbers Inputs'!#REF!)) ->  | P45: =MAX('Connection Numbers Inputs'!#REF!,SUM('Connection Numbers Inputs'!#REF!,'Connection Numbers Inputs'!#REF!,'Connection Numbers Inputs'!#REF!,'Connection Numbers Inputs'!#REF!,'Connection Numbers Inputs'!#REF!)) -> 
C46: ='General Inputs'!#REF! ->  | F46: ='General Inputs'!#REF! ->  | G46: Total | L46: =MAX('Connection Numbers Inputs'!#REF!,SUM('Connection Numbers Inputs'!#REF!,'Connection Numbers Inputs'!#REF!,'Connection Numbers Inputs'!#REF!,'Connection Numbers Inputs'!#REF!,'Connection Numbers Inputs'!#REF!)) ->  | M46: =MAX('Connection Numbers Inputs'!#REF!,SUM('Connection Numbers Inputs'!#REF!,'Connection Numbers Inputs'!#REF!,'Connection Numbers Inputs'!#REF!,'Connection Numbers Inputs'!#REF!,'Connection Numbers Inputs'!#REF!)) ->  | N46: =MAX('Connection Numbers Inputs'!#REF!,SUM('Connection Numbers Inputs'!#REF!,'Connection Numbers Inputs'!#REF!,'Connection Numbers Inputs'!#REF!,'Connection Numbers Inputs'!#REF!,'Connection Numbers Inputs'!#REF!)) ->  | O46: =MAX('Connection Numbers Inputs'!#REF!,SUM('Connection Numbers Inputs'!#REF!,'Connection Numbers Inputs'!#REF!,'Connection Numbers Inputs'!#REF!,'Connection Numbers Inputs'!#REF!,'Connection Numbers Inputs'!#REF!)) ->  | P46: =MAX('Connection Numbers Inputs'!#REF!,SUM('Connection Numbers Inputs'!#REF!,'Connection Numbers Inputs'!#REF!,'Connection Numbers Inputs'!#REF!,'Connection Numbers Inputs'!#REF!,'Connection Numbers Inputs'!#REF!)) -> 
C47: ='General Inputs'!#REF! ->  | F47: ='General Inputs'!#REF! ->  | G47: Total | L47: =MAX('Connection Numbers Inputs'!#REF!,SUM('Connection Numbers Inputs'!#REF!,'Connection Numbers Inputs'!#REF!,'Connection Numbers Inputs'!#REF!,'Connection Numbers Inputs'!#REF!,'Connection Numbers Inputs'!#REF!)) ->  | M47: =MAX('Connection Numbers Inputs'!#REF!,SUM('Connection Numbers Inputs'!#REF!,'Connection Numbers Inputs'!#REF!,'Connection Numbers Inputs'!#REF!,'Connection Numbers Inputs'!#REF!,'Connection Numbers Inputs'!#REF!)) ->  | N47: =MAX('Connection Numbers Inputs'!#REF!,SUM('Connection Numbers Inputs'!#REF!,'Connection Numbers Inputs'!#REF!,'Connection Numbers Inputs'!#REF!,'Connection Numbers Inputs'!#REF!,'Connection Numbers Inputs'!#REF!)) ->  | O47: =MAX('Connection Numbers Inputs'!#REF!,SUM('Connection Numbers Inputs'!#REF!,'Connection Numbers Inputs'!#REF!,'Connection Numbers Inputs'!#REF!,'Connection Numbers Inputs'!#REF!,'Connection Numbers Inputs'!#REF!)) ->  | P47: =MAX('Connection Numbers Inputs'!#REF!,SUM('Connection Numbers Inputs'!#REF!,'Connection Numbers Inputs'!#REF!,'Connection Numbers Inputs'!#REF!,'Connection Numbers Inputs'!#REF!,'Connection Numbers Inputs'!#REF!)) -> 
C48: ='General Inputs'!#REF! ->  | F48: ='General Inputs'!#REF! ->  | G48: Total | L48: =MAX('Connection Numbers Inputs'!#REF!,SUM('Connection Numbers Inputs'!#REF!,'Connection Numbers Inputs'!#REF!,'Connection Numbers Inputs'!#REF!,'Connection Numbers Inputs'!#REF!,'Connection Numbers Inputs'!#REF!)) ->  | M48: =MAX('Connection Numbers Inputs'!#REF!,SUM('Connection Numbers Inputs'!#REF!,'Connection Numbers Inputs'!#REF!,'Connection Numbers Inputs'!#REF!,'Connection Numbers Inputs'!#REF!,'Connection Numbers Inputs'!#REF!)) ->  | N48: =MAX('Connection Numbers Inputs'!#REF!,SUM('Connection Numbers Inputs'!#REF!,'Connection Numbers Inputs'!#REF!,'Connection Numbers Inputs'!#REF!,'Connection Numbers Inputs'!#REF!,'Connection Numbers Inputs'!#REF!)) ->  | O48: =MAX('Connection Numbers Inputs'!#REF!,SUM('Connection Numbers Inputs'!#REF!,'Connection Numbers Inputs'!#REF!,'Connection Numbers Inputs'!#REF!,'Connection Numbers Inputs'!#REF!,'Connection Numbers Inputs'!#REF!)) ->  | P48: =MAX('Connection Numbers Inputs'!#REF!,SUM('Connection Numbers Inputs'!#REF!,'Connection Numbers Inputs'!#REF!,'Connection Numbers Inputs'!#REF!,'Connection Numbers Inputs'!#REF!,'Connection Numbers Inputs'!#REF!)) -> 
C49: ='General Inputs'!#REF! ->  | F49: ='General Inputs'!#REF! ->  | G49: Total | L49: =MAX('Connection Numbers Inputs'!#REF!,SUM('Connection Numbers Inputs'!#REF!,'Connection Numbers Inputs'!#REF!,'Connection Numbers Inputs'!#REF!,'Connection Numbers Inputs'!#REF!,'Connection Numbers Inputs'!#REF!)) ->  | M49: =MAX('Connection Numbers Inputs'!#REF!,SUM('Connection Numbers Inputs'!#REF!,'Connection Numbers Inputs'!#REF!,'Connection Numbers Inputs'!#REF!,'Connection Numbers Inputs'!#REF!,'Connection Numbers Inputs'!#REF!)) ->  | N49: =MAX('Connection Numbers Inputs'!#REF!,SUM('Connection Numbers Inputs'!#REF!,'Connection Numbers Inputs'!#REF!,'Connection Numbers Inputs'!#REF!,'Connection Numbers Inputs'!#REF!,'Connection Numbers Inputs'!#REF!)) ->  | O49: =MAX('Connection Numbers Inputs'!#REF!,SUM('Connection Numbers Inputs'!#REF!,'Connection Numbers Inputs'!#REF!,'Connection Numbers Inputs'!#REF!,'Connection Numbers Inputs'!#REF!,'Connection Numbers Inputs'!#REF!)) ->  | P49: =MAX('Connection Numbers Inputs'!#REF!,SUM('Connection Numbers Inputs'!#REF!,'Connection Numbers Inputs'!#REF!,'Connection Numbers Inputs'!#REF!,'Connection Numbers Inputs'!#REF!,'Connection Numbers Inputs'!#REF!)) -> 
C50: Total | L50: =SUM(L20:L49) ->  | M50: =SUM(M20:M49) ->  | N50: =SUM(N20:N49) ->  | O50: =SUM(O20:O49) ->  | P50: =SUM(P20:P49) -> 

Sheet Volume Inputs
A1: Volume Inputs
B3: GJ/day | J3: MHQ(GJ)
A4: Peak Price Band 1 | B4: ='Connection Numbers Inputs'!B4 -> Tariff R: Res Central | C4: ='Connection Numbers Inputs'!C4 -> Tariff R: Res North | D4: ='Connection Numbers Inputs'!D4 -> Tariff R: Res MV (Vic) | E4: ='Connection Numbers Inputs'!E4 -> Tariff R: Res Bairnsdale | F4: ='Connection Numbers Inputs'!F4 -> Tariff R: Res Albury | G4: ='Connection Numbers Inputs'!G4 -> Tariff C: Non- Res Central | H4: ='Connection Numbers Inputs'!H4 -> Tariff C: Non- Res North | I4: ='Connection Numbers Inputs'!I4 -> Tariff C: Non- Res MV (Vic) | J4: ='Connection Numbers Inputs'!J4 -> Tariff C: Non- Res Bairnsdale | K4: ='Connection Numbers Inputs'!K4 -> Tariff C: Non- Res Albury | L4: ='Connection Numbers Inputs'!L4 -> Tariff D: Central | M4: ='Connection Numbers Inputs'!M4 -> Tariff D: North | N4: ='Connection Numbers Inputs'!N4 -> Tariff D: MV (Vic) | O4: ='Connection Numbers Inputs'!O4 -> Tariff D: Bairnsdale | P4: ='Connection Numbers Inputs'!P4 -> Tariff D: Albury | Q4: Total | S4: Residential | T4: Central | V4: North | X4: Murray Valley | Z4: Bairnsdale | AB4: Albury
A5: ='Connection Numbers Inputs'!A5 -> 2013 | B5: 4384838.689 | C5: 588999.065 | D5: 49681.54685 | E5: 21153.32802 | F5: 166004.6427 | G5: 263770.7218 | H5: 38558.93382 | I5: 4071.508382 | J5: 1263.113605 | K5: 11025.74581 | L5: 1416.9754 | M5: 406.8596 | N5: 40 | O5: =[45]Prop2015DistTar!$F$75 -> 12.8776 | P5: 66.8772 | Q5: =E5+I5 -> 25224.8364 | S5: 2016 | T5: 24417785.97 | U5: =1+T5/T6-1 -> 1.003878904 | V5: 3200755.965 | W5: =1+V5/V6-1 -> 0.9959081437 | X5: 265490.7686 | Y5: =1+X5/X6-1 -> 0.9589504528 | Z5: 107449.209 | AA5: =1+Z5/Z6-1 -> 0.9632467348 | AB5: 885973.772 | AC5: =1+AB5/AB6-1 -> 0.9906456233
A6: ='Connection Numbers Inputs'!A6 -> 2014 | B6: 4472289.253 | C6: 600542.3217 | D6: 51754.70734 | E6: 24288.79181 | F6: 169544.2798 | G6: 266739.7974 | H6: 38308.45392 | I6: 4208.629624 | J6: 1405.549529 | K6: 11150.55598 | L6: 1415.6868 | M6: 368.1083 | N6: 60 | O6: 13 | P6: 67.4837 | Q6: =E6+I6 -> 28497.42143 | S6: 2017 | T6: 24323437.69 | U6: =1+T6/T7-1 -> 1.005639454 | V6: 3213906.81 | W6: =1+V6/V7-1 -> 0.9978451899 | X6: 276855.5641 | Y6: =1+X6/X7-1 -> 0.9649726617 | Z6: 111548.9989 | AA6: =1+Z6/Z7-1 -> 0.9710116946 | AB6: 894339.763 | AC6: =1+AB6/AB7-1 -> 0.9918618904
A7: ='Connection Numbers Inputs'!A7 -> 2015 | B7: 4557394.333 | C7: 606892.9919 | D7: 52551.43079 | E7: 26809.94568 | F7: 172251.6231 | G7: 270528.2982 | H7: 37742.10817 | I7: 4348.678024 | J7: 1455.466113 | K7: 11176.57238 | L7: 1434.9436 | M7: 367.4133 | N7: 64.7418 | O7: 13 | P7: 54.1299 | Q7: 31158.62371 | S7: 2018 | T7: 24187036 | V7: 3220847.124 | X7: 286905.0856 | Z7: 114879.1508 | AB7: 901677.715
A8: ='Connection Numbers Inputs'!A8 -> 2016 | B8: =B9*$U$5 -> 4286562.483 | C8: =C9*$W$5 -> 575461.3383 | D8: =D9*$Y$5 -> 51872.77094 | E8: =E9*$AA$5 -> 26376.23128 | F8: =F9*$AC$5 -> 165148.5595 | G8: =G9*$U$10 -> 265639.1608 | H8: =H9*$W$10 -> 37162.20803 | I8: =I9*$Y$10 -> 4383.247674 | J8: =J9*$AA$10 -> 1478.241116 | K8: =K9*$AC$10 -> 11066.5231 | L8: =L9*$U$15 -> 1485.936097 | M8: =M9*$W$15 -> 396.6925969 | N8: =N9*$Y$15 -> 67.46866799 | O8: =O9*$AA$15 -> 13.46813915 | P8: =P9*$AC$15 -> 53.66196974 | Q8: 30759.47895
A9: ='Connection Numbers Inputs'!A9 -> 2017 | B9: =B10*$U$6 -> 4269999.565 | C9: =C10*$W$6 -> 577825.7181 | D9: =D10*$Y$6 -> 54093.2754 | E9: =E10*$AA$6 -> 27382.63243 | F9: =F10*$AC$6 -> 166708.0091 | G9: =G10*$U$11 -> 265351.1464 | H9: =H10*$W$11 -> 36733.78315 | I9: =I10*$Y$11 -> 4481.628654 | J9: =J10*$AA$11 -> 1491.330611 | K9: =K10*$AC$11 -> 11102.16254 | L9: =L10*$U$16 -> 1472.631056 | M9: =M10*$W$16 -> 396.8626029 | N9: =N10*$Y$16 -> 67.50388694 | O9: =O10*$AA$16 -> 13.47516958 | P9: =P10*$AC$16 -> 57.26327764 | Q9: =E9+I9 -> 31864.26108 | S9: Commercial | T9: Central | V9: North | X9: Murray Valley | Z9: Bairnsdale | AB9: Albury
A10: ='Connection Numbers Inputs'!A10 -> 2018 | B10: 4246054.136 | C10: 579073.5116 | D10: 56056.79575 | E10: 28200.10571 | F10: 168075.8286 | G10: 265201.1181 | H10: 36329.28766 | I10: 4584.576359 | J10: 1494.011006 | K10: 11156.58911 | L10: ='[43]PTRM input'!$M$287*L197 -> 1483.199342 | M10: ='[43]PTRM input'!$M$287*M197 -> 397.0326977 | N10: 67.53912426 | O10: 13.48220368 | P10: 58.59856564 | Q10: 32784.68207 | S10: 2016 | T10: 6517817.599 | U10: =1+T10/T11-1 -> 1.001085408 | V10: 801445.362 | W10: =1+V10/V11-1 -> 1.011662966 | X10: 67050.99174 | Y10: =1+X10/X11-1 -> 0.9780479402 | Z10: 81449.57051 | AA10: =1+Z10/Z11-1 -> 0.9912229424 | AB10: 276769.1349 | AC10: =1+AB10/AB11-1 -> 0.9967898646
A11: ='Connection Numbers Inputs'!A11 -> 2019 | B11: 4228164.228 | C11: 581051.3157 | D11: 57985.98171 | E11: 28954.62874 | F11: 169782.8191 | G11: 265903.6168 | H11: 36045.60046 | I11: 4704.836575 | J11: 1492.285538 | K11: 11227.69125 | L11: ='[43]PTRM input'!$N$287*L197 -> 1483.902136 | M11: ='[43]PTRM input'!$N$287*M197 -> 397.2208266 | N11: 67.57112681 | O11: 13.48859205 | P11: 58.42715596 | Q11: 33659.46531 | S11: 2017 | T11: 6510750.775 | U11: =1+T11/T12-1 -> 1.000565715 | V11: 792205.8914 | W11: =1+V11/V12-1 -> 1.011134143 | X11: 68555.93574 | Y11: =1+X11/X12-1 -> 0.9775447726 | Z11: 82170.78825 | AA11: =1+Z11/Z12-1 -> 0.9982059069 | AB11: 277660.4626 | AC11: =1+AB11/AB12-1 -> 0.9951215763
A12: ='Connection Numbers Inputs'!A12 -> 2020 | B12: 4216044.978 | C12: 583793.057 | D12: 59975.98408 | E12: 29708.07302 | F12: 171721.0594 | G12: 266933.0893 | H12: 35808.04197 | I12: 4834.086383 | J12: 1484.341138 | K12: 11303.19171 | L12: ='[43]PTRM input'!$O$287*L197 -> 1491.675569 | M12: ='[43]PTRM input'!$O$287*M197 -> 399.3016708 | N12: 67.92509866 | O12: 13.55925214 | P12: 58.26806114 | Q12: 34542.1594 | S12: 2018 | T12: 6507069.627 | V12: 783482.4852 | X12: 70130.7374 | Z12: 82318.47526 | AB12: 279021.6484
A13: ='Connection Numbers Inputs'!A13 -> 2021 | B13: 4196854.463 | C13: 585541.7835 | D13: 61857.74967 | E13: 30377.46833 | F13: 173367.1879 | G13: 267814.6337 | H13: 35551.74376 | I13: 4964.096321 | J13: 1468.526438 | K13: 11370.35829 | L13: ='[43]PTRM input'!$P$287*L197 -> 1492.379098 | M13: ='[43]PTRM input'!$P$287*M197 -> 399.4899961 | N13: 67.95713463 | O13: 13.56564718 | P13: 58.12104708 | Q13: 35341.56465
A14: ='Connection Numbers Inputs'!A14 -> 2022 | B14: 4184114.516 | C14: 588164.5024 | D14: 63824.32334 | E14: 31060.42905 | F14: 175288.1105 | G14: 268030.2472 | H14: 35208.8121 | I14: 5085.027597 | J14: 1442.957364 | K14: 11407.73378 | L14: ='[43]PTRM input'!$Q$287*L197 -> 1493.082994 | M14: ='[43]PTRM input'!$Q$287*M197 -> 399.6784198 | N14: 67.98918732 | O14: 13.57204556 | P14: 57.98592232 | Q14: 36145.45664 | S14: Industrial | T14: Central | V14: North | X14: Murray Valley | Z14: Bairnsdale | AB14: Albury
S15: 2016 | T15: 3925.040659 | U15: =1+T15/T16-1 -> 1.009034877 | V15: 1653.508293 | W15: =1+V15/V16-1 -> 0.9995716249 | X15: 285.0352458 | Y15: =1+X15/X16-1 -> 0.9994782679 | Z15: 15.74511473 | AA15: =1+Z15/Z16-1 -> 0.9994782679 | AB15: 353.2041735 | AC15: =1+AB15/AB16-1 -> 0.9371096442
A16: Peak Price Band 2 | B16: =B$4 -> Tariff R: Res Central | C16: =C$4 -> Tariff R: Res North | D16: Tariff R: Res MV (Vic) | E16: Tariff R: Res Bairnsdale | F16: Tariff R: Res Albury | G16: Tariff C: Non- Res Central | H16: Tariff C: Non- Res North | I16: Tariff C: Non- Res MV (Vic) | J16: Tariff C: Non- Res Bairnsdale | K16: Tariff C: Non- Res Albury | L16: Tariff D: Central | M16: Tariff D: North | N16: Tariff D: MV (Vic) | O16: Tariff D: Bairnsdale | P16: Tariff D: Albury | Q16: Total | S16: 2017 | T16: 3889.895926 | U16: =1+T16/T17-1 -> 0.9928746697 | V16: 1654.216918 | W16: =1+V16/V17-1 -> 0.9995715849 | X16: 285.1840354 | Y16: =1+X16/X17-1 -> 0.9994782679 | Z16: 15.75333375 | AA16: =1+Z16/Z17-1 -> 0.9994782679 | AB16: 376.9080552 | AC16: =1+AB16/AB17-1 -> 0.9772129576
A17: =A5 -> 2013 | B17: 2866508.113 | C17: 363666.3425 | D17: 27385.90687 | E17: 10977.13939 | F17: 101733.2484 | G17: 1311405.322 | H17: 176474.3782 | I17: 18572.52522 | J17: 9807.472681 | K17: 54479.68301 | L17: 1279.1971 | M17: 663.3348 | N17: 58.6951 | O17: 4 | P17: 102.3841 | Q17: =E17+I17 -> 29549.66461 | S17: 2018 | T17: 3917.811628 | V17: 1654.925914 | X17: 285.3329028 | Z17: 15.76155706 | AB17: 385.6969479
A18: 2014 | B18: 2909707.964 | C18: 368031.7407 | D18: 28286.96583 | E18: 12452.84232 | F18: 102359.083 | G18: 1329296.645 | H18: 175393.207 | I18: 19413.2942 | J18: 10742.27485 | K18: 55518.10515 | L18: 1270.4632 | M18: 572.982 | N18: 110.3977 | O18: 3 | P18: 103.7491 | Q18: 31866.13651
A19: 2015 | B19: 2958021.453 | C19: 367144.2861 | D19: 28640.66561 | E19: 13774.29847 | F19: 102986.9887 | G19: 1397621.906 | H19: 180636.3762 | I19: 20168.11079 | J19: 10892.33432 | K19: 56881.59809 | L19: 1252.2732 | M19: 615.5281 | N19: 101.7224 | O19: 3 | P19: 110.4578 | Q19: 33942.40925
A20: 2016 | B20: =B21*$U$5 -> 2784331.859 | C20: =C21*$W$5 -> 348421.6405 | D20: =D21*$Y$5 -> 28299.16913 | E20: =E21*$AA$5 -> 13565.7823 | F20: =F21*$AC$5 -> 98823.78434 | G20: =G21*$U$10 -> 1372363.308 | H20: =H21*$W$10 -> 177860.9335 | I20: =I21*$Y$10 -> 20328.43641 | J20: =J21*$AA$10 -> 11062.7766 | K20: =K21*$AC$10 -> 56321.51769 | L20: =L21*$U$15 -> 1539.891114 | M20: =M21*$W$15 -> 411.0966857 | N20: =N21*$Y$15 -> 106.0068585 | O20: =O21*$AA$15 -> 2.931585312 | P20: =P21*$AC$15 -> 109.5029387 | Q20: 33894.21872
A21: 2017 | B21: =B22*$U$6 -> 2773573.434 | C21: =C22*$W$6 -> 349853.1895 | D21: =D22*$Y$6 -> 29510.56443 | E21: =E22*$AA$6 -> 14083.39298 | F21: =F22*$AC$6 -> 99756.94841 | G21: =G22*$U$11 -> 1370875.349 | H21: =H22*$W$11 -> 175810.462 | I21: =I22*$Y$11 -> 20784.70347 | J21: =J22*$AA$11 -> 11160.73501 | K21: =K22*$AC$11 -> 56502.89965 | L21: =L22*$U$16 -> 1526.102961 | M21: =M22*$W$16 -> 411.2728648 | N21: =N22*$Y$16 -> 106.0621946 | O21: =O22*$AA$16 -> 2.933115612 | P21: =P22*$AC$16 -> 116.8517893 | Q21: =E21+I21 -> 34868.09645
A22: 2018 | B22: 2758019.707 | C22: 350608.6846 | D22: 30581.76216 | E22: 14503.83457 | F22: 100575.4424 | G22: 1370100.262 | H22: 173874.5182 | I22: 21262.14988 | J22: 11180.7944 | K22: 56779.89604 | L22: ='[43]PTRM input'!$S$287*L197 -> 1537.054985 | M22: ='[43]PTRM input'!$S$287*M197 -> 411.4491358 | N22: 106.1175595 | O22: 2.934646711 | P22: 119.576586 | Q22: 35765.98444
A23: 2019 | B23: 2748484.748 | C23: 352099.165 | D23: 31663.83708 | E23: 14906.79583 | F23: 101681.1362 | G23: 1373729.559 | H23: 172516.7713 | I23: 21819.8875 | J23: 11167.88144 | K23: 57141.76039 | L23: ='[43]PTRM input'!$T$287*L197 -> 1537.783299 | M23: ='[43]PTRM input'!$T$287*M197 -> 411.6440957 | N23: 106.1678419 | O23: 2.936037256 | P23: 119.2268064 | Q23: 36726.68333
A24: 2020 | B24: 2742695.289 | C24: 354051.7946 | D24: 32779.0571 | E24: 15309.20285 | F24: 102925.0913 | G24: 1379048.091 | H24: 171379.7998 | I24: 22419.31667 | J24: 11108.42759 | K24: 57526.0094 | L24: ='[43]PTRM input'!$U$287*L197 -> 1545.838988 | M24: ='[43]PTRM input'!$U$287*M197 -> 413.8004964 | N24: 106.724003 | O24: 2.951417709 | P24: 118.9021565 | Q24: 37728.51952
A25: 2021 | B25: 2732316.158 | C25: 355403.6928 | D25: 33835.28779 | E25: 15668.42756 | F25: 103994.3965 | G25: 1383602.386 | H25: 170153.1385 | I25: 23022.27114 | J25: 10990.07444 | K25: 57867.8443 | L25: ='[43]PTRM input'!$V$287*L197 -> 1546.568063 | M25: ='[43]PTRM input'!$V$287*M197 -> 413.9956599 | N25: 106.7743379 | O25: 2.952809706 | P25: 118.6021588 | Q25: 38690.69869
A26: 2022 | B26: 2726123.831 | C26: 357284.319 | D26: 34937.73911 | E26: 16034.62184 | F26: 105227.9976 | G26: 1384716.303 | H26: 168511.8436 | I26: 23583.12098 | J26: 10798.72206 | K26: 58058.06161 | L26: ='[43]PTRM input'!$W$287*L197 -> 1547.297517 | M26: ='[43]PTRM input'!$W$287*M197 -> 414.1909252 | N26: 106.8246992 | O26: 2.954202429 | P26: 118.3264224 | Q26: 39617.74282
A28: Peak Price Band 3 | B28: =B$4 -> Tariff R: Res Central | C28: =C$4 -> Tariff R: Res North | D28: Tariff R: Res MV (Vic) | E28: Tariff R: Res Bairnsdale | F28: Tariff R: Res Albury | G28: Tariff C: Non- Res Central | H28: Tariff C: Non- Res North | I28: Tariff C: Non- Res MV (Vic) | J28: Tariff C: Non- Res Bairnsdale | K28: Tariff C: Non- Res Albury | L28: Tariff D: Central | M28: Tariff D: North | N28: Tariff D: MV (Vic) | O28: Tariff D: Bairnsdale | P28: Tariff D: Albury | Q28: Total
A29: =A17 -> 2013 | B29: 16451322.11 | C29: 2092151.732 | D29: 150307.4206 | E29: 48723.00298 | F29: 547324.2269 | G29: 979645.9324 | H29: 116429.4365 | I29: 12130.25977 | J29: 8284.112602 | K29: 39283.68016 | L29: 1341.6714 | M29: 520.6867 | N29: 0 | O29: 0 | P29: 180.8542 | Q29: =E29+I29 -> 60853.26275
A30: 2014 | B30: 15755587.46 | C30: 2114899.797 | D30: 160551.9833 | E30: 54714.3524 | F30: 560283.4057 | G30: 1005312.234 | H30: 116882.5255 | I30: 11869.30345 | J30: 8922.189519 | K30: 39082.25016 | L30: 1174.7717 | M30: 474.7491 | N30: 117.6025 | O30: 0 | P30: 170.3595 | Q30: 66583.65584
A31: 2015 | B31: 18448337.71 | C31: 2401972.61 | D31: 187808.406 | E31: 68646.2967 | F31: 648957.9128 | G31: 1071120.573 | H31: 121896.3459 | I31: 12415.26552 | J31: 9210.46459 | K31: 41245.66211 | L31: 1250.5217 | M31: 409.2473 | N31: 118.4223 | O31: 0 | P31: 191.6964 | Q31: 81061.56222
A32: 2016 | B32: =B33*$U$5 -> 17364109.01 | C32: =C33*$W$5 -> 2279245.884 | D32: =D33*$Y$5 -> 185545.8808 | E32: =E33*$AA$5 -> 67620.8732 | F32: =F33*$AC$5 -> 622679.419 | G32: =G33*$U$10 -> 1051762.688 | H32: =H33*$W$10 -> 120023.4323 | I32: =I33*$Y$10 -> 12513.9602 | J32: =J33*$AA$10 -> 9354.589114 | K32: =K33*$AC$10 -> 40839.53979 | L32: =L33*$U$15 -> 1368.380852 | M32: =M33*$W$15 -> 365.3094872 | N32: =N33*$Y$15 -> 123.4101437 | O32: =O33*$AA$15 -> 0 | P32: =P33*$AC$15 -> 190.0392651 | Q32: 80134.8334
A33: 2017 | B33: =B34*$U$6 -> 17297015.55 | C33: =C34*$W$6 -> 2288610.549 | D33: =D34*$Y$6 -> 193488.496 | E33: =E34*$AA$6 -> 70200.98875 | F33: =F34*$AC$6 -> 628559.1985 | G33: =G34*$U$11 -> 1050622.334 | H33: =H34*$W$11 -> 118639.741 | I33: =I34*$Y$11 -> 12794.83314 | J33: =J34*$AA$11 -> 9437.42191 | K33: =K34*$AC$11 -> 40971.06244 | L33: =L34*$U$16 -> 1356.128398 | M33: =M34*$W$16 -> 365.4660437 | N33: =N34*$Y$16 -> 123.4745643 | O33: =O34*$AA$16 -> 0 | P33: =P34*$AC$16 -> 202.7929883 | Q33: 82995.82189
A34: 2018 | B34: 17200016.84 | C34: 2293552.72 | D34: 200511.8939 | E34: 72296.749 | F34: 633716.4524 | G34: 1050028.317 | H34: 117333.3348 | I34: 13088.74386 | J34: 9454.383954 | K34: 41171.9165 | L34: ='[43]PTRM input'!$Y$287*L197 -> 1365.860606 | M34: ='[43]PTRM input'!$Y$287*M197 -> 365.622682 | N34: 123.5390186 | O34: 0 | P34: 207.5217963 | Q34: 85385.49285
A35: 2019 | B35: 17139583.09 | C35: 2303065.088 | D35: 207582.4302 | E35: 74319.66627 | F35: 640638.3823 | G35: 1052809.766 | H35: 116417.1053 | I35: 13432.08096 | J35: 9443.464869 | K35: 41434.30952 | L35: ='[43]PTRM input'!$Z$287*L197 -> 1366.507802 | M35: ='[43]PTRM input'!$Z$287*M197 -> 365.7959276 | N35: 123.597556 | O35: 0 | P35: 206.9147636 | Q35: 87751.74723
A36: 2020 | B36: 17102508.97 | C36: 2315600.981 | D36: 214870.3123 | E36: 76339.82143 | F36: 648431.5456 | G36: 1056885.825 | H36: 115649.8585 | I36: 13801.08291 | J36: 9393.191206 | K36: 41712.93399 | L36: ='[43]PTRM input'!$AA$287*L197 -> 1373.666263 | M36: ='[43]PTRM input'!$AA$287*M197 -> 367.7121523 | N36: 124.2450227 | O36: 0 | P36: 206.3513429 | Q36: 90140.90434
A37: 2021 | B37: 17036810.36 | C37: 2324206.701 | D37: 221771.3776 | E37: 78144.77097 | F37: 655124.1775 | G37: 1060376.182 | H37: 114822.0877 | I37: 14172.255 | J37: 9293.112793 | K37: 41960.80337 | L37: ='[43]PTRM input'!$AB$287*L197 -> 1374.314134 | M37: ='[43]PTRM input'!$AB$287*M197 -> 367.8855788 | N37: 124.3036212 | O37: 0 | P37: 205.8307052 | Q37: 92317.02597
A38: 2022 | B38: 16997223.67 | C38: 2336271.525 | D38: 228975.5302 | E38: 79984.45447 | F38: 662852.0965 | G38: 1061229.875 | H38: 113714.5153 | I38: 14517.50795 | J38: 9131.306861 | K38: 42098.73267 | L38: ='[43]PTRM input'!$AC$287*L197 -> 1374.962344 | M38: ='[43]PTRM input'!$AC$287*M197 -> 368.0590959 | N38: 124.3622503 | O38: 0 | P38: 205.3521725 | Q38: 94501.96241
A40: Peak Price Band 4 | B40: =B$4 -> Tariff R: Res Central | C40: =C$4 -> Tariff R: Res North | D40: Tariff R: Res MV (Vic) | E40: Tariff R: Res Bairnsdale | F40: Tariff R: Res Albury | G40: Tariff C: Non- Res Central | H40: Tariff C: Non- Res North | I40: Tariff C: Non- Res MV (Vic) | J40: Tariff C: Non- Res Bairnsdale | K40: Tariff C: Non- Res Albury | L40: Tariff D: Central | M40: Tariff D: North | N40: Tariff D: MV (Vic) | O40: Tariff D: Bairnsdale | P40: Tariff D: Albury | Q40: Total
A41: =A29 -> 2013 | G41: 3652205.386 | H41: 463921.4087 | I41: 26242.29126 | J41: 46819.98127 | K41: 163442.1308 | Q41: =E41+I41 -> 26242.29126
A42: 2014 | G42: 3550771.752 | H42: 433139.7391 | I42: 23909.9857 | J42: 55000.59036 | K42: 166019.4118 | Q42: 23909.9857
A43: 2015 | G43: 3898508.447 | H43: 473676.7391 | I43: 29590.12191 | J43: 58636.42614 | K43: 170217.5891 | Q43: 29590.12191
A44: 2016 | G44: =G45*$U$10 -> 3828052.441 | H44: =H45*$W$10 -> 466398.7882 | I44: =I45*$Y$10 -> 29825.34746 | J44: =J45*$AA$10 -> 59553.96368 | K44: =K45*$AC$10 -> 168541.5544 | Q44: 29825.34746
A45: 2017 | G45: =G46*$U$11 -> 3823901.946 | H45: =H46*$W$11 -> 461021.9053 | I45: =I46*$Y$11 -> 30494.77049 | J45: =J46*$AA$11 -> 60081.30072 | K45: =K46*$AC$11 -> 169084.338 | Q45: 30494.77049
A46: 2018 | G46: 3821739.929 | H46: 455945.3446 | I46: 31195.26731 | J46: 60189.2859 | K46: 169913.2468 | Q46: 31195.26731
A47: 2019 | G47: 3831863.443 | H47: 452384.9703 | I47: 32013.56529 | J47: 60119.77191 | K47: 170996.1221 | Q47: 32013.56529
A48: 2020 | G48: 3846698.886 | H48: 449403.5277 | I48: 32893.032 | J48: 59799.71553 | K48: 172145.9832 | Q48: 32893.032
A49: 2021 | G49: 3859402.578 | H49: 446186.8949 | I49: 33777.67094 | J49: 59162.58801 | K49: 173168.9206 | Q49: 33777.67094
A50: 2022 | G50: 3862509.725 | H50: 441882.982 | I50: 34600.53508 | J50: 58132.48562 | K50: 173738.1439 | Q50: 34600.53508
A52: Peak Price Band 5 | B52: =B$4 -> Tariff R: Res Central | C52: =C$4 -> Tariff R: Res North | D52: Tariff R: Res MV (Vic) | E52: Tariff R: Res Bairnsdale | F52: Tariff R: Res Albury | G52: Tariff C: Non- Res Central | H52: Tariff C: Non- Res North | I52: Tariff C: Non- Res MV (Vic) | J52: Tariff C: Non- Res Bairnsdale | K52: Tariff C: Non- Res Albury | L52: Tariff D: Central | M52: Tariff D: North | N52: Tariff D: MV (Vic) | O52: Tariff D: Bairnsdale | P52: Tariff D: Albury | Q52: Total
A53: =A41 -> 2013 | Q53: =E53+I53 -> 0
A54: 2014 | Q54: 0
A55: 2015 | Q55: 0
A56: 2016 | Q56: 0
A57: 2017 | Q57: 0
A58: 2018 | Q58: 0
A59: 2019 | Q59: 0
A60: 2020 | Q60: 0
A61: 2021 | Q61: 0
A62: 2022 | Q62: 0
A64: Peak Price Band 6 | B64: =B$4 -> Tariff R: Res Central | C64: =C$4 -> Tariff R: Res North | D64: Tariff R: Res MV (Vic) | E64: Tariff R: Res Bairnsdale | F64: Tariff R: Res Albury | G64: Tariff C: Non- Res Central | H64: Tariff C: Non- Res North | I64: Tariff C: Non- Res MV (Vic) | J64: Tariff C: Non- Res Bairnsdale | K64: Tariff C: Non- Res Albury | L64: Tariff D: Central | M64: Tariff D: North | N64: Tariff D: MV (Vic) | O64: Tariff D: Bairnsdale | P64: Tariff D: Albury | Q64: Total
A65: =A53 -> 2013 | Q65: =E65+I65 -> 0
A66: 2014 | Q66: 0
A67: 2015 | Q67: 0
A68: 2016 | Q68: 0
A69: 2017 | Q69: 0
A70: 2018 | Q70: 0
A71: 2019 | Q71: 0
A72: 2020 | Q72: 0
A73: 2021 | Q73: 0
A74: 2022 | Q74: 0
A76: Peak Price Band 7 | B76: =B$4 -> Tariff R: Res Central | C76: =C$4 -> Tariff R: Res North | D76: Tariff R: Res MV (Vic) | E76: Tariff R: Res Bairnsdale | F76: Tariff R: Res Albury | G76: Tariff C: Non- Res Central | H76: Tariff C: Non- Res North | I76: Tariff C: Non- Res MV (Vic) | J76: Tariff C: Non- Res Bairnsdale | K76: Tariff C: Non- Res Albury | L76: Tariff D: Central | M76: Tariff D: North | N76: Tariff D: MV (Vic) | O76: Tariff D: Bairnsdale | P76: Tariff D: Albury | Q76: Total
A77: =A65 -> 2013 | Q77: =E77+I77 -> 0
A78: 2014 | Q78: 0
A79: 2015 | Q79: 0
A80: 2016 | Q80: 0
A81: 2017 | Q81: 0
A82: 2018 | Q82: 0
A83: 2019 | Q83: 0
A84: 2020 | Q84: 0
A85: 2021 | Q85: 0
A86: 2022 | Q86: 0
A88: Off Peak Price Band 1 | B88: ='Connection Numbers Inputs'!B88 -> Tariff R: Res Central | C88: ='Connection Numbers Inputs'!C88 -> Tariff R: Res North | D88: ='Connection Numbers Inputs'!D88 -> Tariff R: Res MV (Vic) | E88: ='Connection Numbers Inputs'!E88 -> Tariff R: Res Bairnsdale | F88: ='Connection Numbers Inputs'!F88 -> Tariff R: Res Albury | G88: ='Connection Numbers Inputs'!G88 -> Tariff C: Non- Res Central | H88: ='Connection Numbers Inputs'!H88 -> Tariff C: Non- Res North | I88: ='Connection Numbers Inputs'!I88 -> Tariff C: Non- Res MV (Vic) | J88: ='Connection Numbers Inputs'!J88 -> Tariff C: Non- Res Bairnsdale | K88: ='Connection Numbers Inputs'!K88 -> Tariff C: Non- Res Albury | L88: ='Connection Numbers Inputs'!L88 -> Tariff D: Central | M88: ='Connection Numbers Inputs'!M88 -> Tariff D: North | N88: ='Connection Numbers Inputs'!N88 -> Tariff D: MV (Vic) | O88: ='Connection Numbers Inputs'!O88 -> Tariff D: Bairnsdale | P88: ='Connection Numbers Inputs'!P88 -> Tariff D: Albury | Q88: Total
A89: ='Connection Numbers Inputs'!A89 -> 2008
A90: ='Connection Numbers Inputs'!A90 -> 2009
A91: ='Connection Numbers Inputs'!A91 -> 2010
A92: ='Connection Numbers Inputs'!A92 -> 2011
A93: ='Connection Numbers Inputs'!A93 -> 2012
A94: ='Connection Numbers Inputs'!A94 -> 2013
A95: ='Connection Numbers Inputs'!A95 -> 2014
A96: ='Connection Numbers Inputs'!A96 -> 2015
A97: ='Connection Numbers Inputs'!A97 -> 2016
A98: ='Connection Numbers Inputs'!A98 -> 2017
A100: Off Peak Price Band 2 | B100: =B$4 -> Tariff R: Res Central | C100: =C$4 -> Tariff R: Res North | D100: Tariff R: Res MV (Vic) | E100: Tariff R: Res Bairnsdale | F100: Tariff R: Res Albury | G100: Tariff C: Non- Res Central | H100: Tariff C: Non- Res North | I100: Tariff C: Non- Res MV (Vic) | J100: Tariff C: Non- Res Bairnsdale | K100: Tariff C: Non- Res Albury | L100: Tariff D: Central | M100: Tariff D: North | N100: Tariff D: MV (Vic) | O100: Tariff D: Bairnsdale | P100: Tariff D: Albury | Q100: Total
A101: =A89 -> 2008
A102: 2009
A103: 2010
A104: 2011
A105: 2012
A106: 2013
A107: 2014
A108: 2015
A109: 2016
A110: 2017
A112: Off Peak Price Band 3 | B112: =B$4 -> Tariff R: Res Central | C112: =C$4 -> Tariff R: Res North | D112: Tariff R: Res MV (Vic) | E112: Tariff R: Res Bairnsdale | F112: Tariff R: Res Albury | G112: Tariff C: Non- Res Central | H112: Tariff C: Non- Res North | I112: Tariff C: Non- Res MV (Vic) | J112: Tariff C: Non- Res Bairnsdale | K112: Tariff C: Non- Res Albury | L112: Tariff D: Central | M112: Tariff D: North | N112: Tariff D: MV (Vic) | O112: Tariff D: Bairnsdale | P112: Tariff D: Albury | Q112: Total
A113: =A101 -> 2008
A114: 2009
A115: 2010
A116: 2011
A117: 2012
A118: 2013
A119: 2014
A120: 2015
A121: 2016
A122: 2017
A124: Off Peak Price Band 4 | B124: =B$4 -> Tariff R: Res Central | C124: =C$4 -> Tariff R: Res North | D124: Tariff R: Res MV (Vic) | E124: Tariff R: Res Bairnsdale | F124: Tariff R: Res Albury | G124: Tariff C: Non- Res Central | H124: Tariff C: Non- Res North | I124: Tariff C: Non- Res MV (Vic) | J124: Tariff C: Non- Res Bairnsdale | K124: Tariff C: Non- Res Albury | L124: Tariff D: Central | M124: Tariff D: North | N124: Tariff D: MV (Vic) | O124: Tariff D: Bairnsdale | P124: Tariff D: Albury | Q124: Total
A125: =A113 -> 2008
A126: 2009
A127: 2010
A128: 2011
A129: 2012
A130: 2013
A131: 2014
A132: 2015
A133: 2016
A134: 2017
A136: Off Peak Price Band 5 | B136: =B$4 -> Tariff R: Res Central | C136: =C$4 -> Tariff R: Res North | D136: Tariff R: Res MV (Vic) | E136: Tariff R: Res Bairnsdale | F136: Tariff R: Res Albury | G136: Tariff C: Non- Res Central | H136: Tariff C: Non- Res North | I136: Tariff C: Non- Res MV (Vic) | J136: Tariff C: Non- Res Bairnsdale | K136: Tariff C: Non- Res Albury | L136: Tariff D: Central | M136: Tariff D: North | N136: Tariff D: MV (Vic) | O136: Tariff D: Bairnsdale | P136: Tariff D: Albury | Q136: Total
A137: =A125 -> 2008
A138: 2009
A139: 2010
A140: 2011
A141: 2012
A142: 2013
A143: 2014
A144: 2015
A145: 2016
A146: 2017
A148: Off Peak Price Band 6 | B148: =B$4 -> Tariff R: Res Central | C148: =C$4 -> Tariff R: Res North | D148: Tariff R: Res MV (Vic) | E148: Tariff R: Res Bairnsdale | F148: Tariff R: Res Albury | G148: Tariff C: Non- Res Central | H148: Tariff C: Non- Res North | I148: Tariff C: Non- Res MV (Vic) | J148: Tariff C: Non- Res Bairnsdale | K148: Tariff C: Non- Res Albury | L148: Tariff D: Central | M148: Tariff D: North | N148: Tariff D: MV (Vic) | O148: Tariff D: Bairnsdale | P148: Tariff D: Albury | Q148: Total
A149: =A137 -> 2008
A150: 2009
A151: 2010
A152: 2011
A153: 2012
A154: 2013
A155: 2014
A156: 2015
A157: 2016
A158: 2017
A160: Off Peak Price Band 7 | B160: =B$4 -> Tariff R: Res Central | C160: =C$4 -> Tariff R: Res North | D160: Tariff R: Res MV (Vic) | E160: Tariff R: Res Bairnsdale | F160: Tariff R: Res Albury | G160: Tariff C: Non- Res Central | H160: Tariff C: Non- Res North | I160: Tariff C: Non- Res MV (Vic) | J160: Tariff C: Non- Res Bairnsdale | K160: Tariff C: Non- Res Albury | L160: Tariff D: Central | M160: Tariff D: North | N160: Tariff D: MV (Vic) | O160: Tariff D: Bairnsdale | P160: Tariff D: Albury | Q160: Total
A161: =A149 -> 2008
A162: 2009
A163: 2010
A164: 2011
A165: 2012
A166: 2013
A167: 2014
A168: 2015
A169: 2016
A170: 2017
A172: Summary | B172: =B$4 -> Tariff R: Res Central | C172: =C$4 -> Tariff R: Res North | D172: Tariff R: Res MV (Vic) | E172: Tariff R: Res Bairnsdale | F172: Tariff R: Res Albury | G172: Tariff C: Non- Res Central | H172: Tariff C: Non- Res North | I172: Tariff C: Non- Res MV (Vic) | J172: Tariff C: Non- Res Bairnsdale | K172: Tariff C: Non- Res Albury | L172: Tariff D: Central | M172: Tariff D: North | N172: Tariff D: MV (Vic) | O172: Tariff D: Bairnsdale | P172: Tariff D: Albury | Q172: Total
A173: =A53 -> 2013 | B173: =SUMIF($A$5:$A$170,$A173,B$5:B$170) -> 23702668.91 | C173: =SUMIF($A$5:$A$170,$A173,C$5:C$170) -> 3044817.14 | D173: 227374.8743 | E173: 80853.47039 | F173: 815062.1181 | G173: =SUMIF($A$5:$A$170,$A173,G$5:G$170) -> 6207027.363 | H173: 795384.1572 | I173: =SUMIF($A$5:$A$170,$A173,I$5:I$170) -> 61016.58462 | J173: 66174.68016 | K173: 268231.2398 | L173: 4037.8439 | M173: =SUMIF($A$5:$A$170,$A173,M$5:M$170) -> 1590.8811 | N173: 98.6951 | O173: 16.8776 | P173: 350.1155 | Q173: 141870.055
A174: 2014 | B174: =SUMIF($A$5:$A$170,$A174,B$5:B$170) -> 23137584.67 | C174: 3083473.859 | D174: 240593.6564 | E174: 91455.98652 | F174: 832186.7685 | G174: 6152120.428 | H174: 763723.9255 | I174: 59401.21297 | J174: 76070.60426 | K174: 271770.3231 | L174: 3860.9217 | M174: 1415.8394 | N174: 288.0002 | O174: 16 | P174: 341.5923 | Q174: 150857.1995
A175: 2015 | B175: 25963753.5 | C175: 3376009.888 | D175: 269000.5024 | E175: 109230.5409 | F175: 924196.5245 | G175: 6637779.225 | H175: 813951.5694 | I175: 66522.17624 | J175: 80194.69117 | K175: =SUMIF($A$5:$A$170,$A175,K$5:K$170) -> 279521.4217 | L175: 3937.7385 | M175: =SUMIF($A$5:$A$170,$A175,M$5:M$170) -> 1392.1887 | N175: 284.8865 | O175: 16 | P175: 356.2841 | Q175: 175752.7171
A176: 2016 | B176: 24435003.35 | C176: 3203128.862 | D176: 265717.8209 | E176: 107562.8868 | F176: 886651.7629 | G176: 6517817.599 | H176: 801445.362 | I176: 67050.99174 | J176: 81449.57051 | K176: 276769.1349 | L176: 4394.208063 | M176: 1173.09877 | N176: 296.8856702 | O176: 16.39972446 | P176: 353.2041735 | Q176: 174613.8785
A177: 2017 | B177: =SUMIF($A$5:$A$170,$A177,B$5:B$170) -> 24340588.55 | C177: 3216289.457 | D177: 277092.3358 | E177: 111667.0142 | F177: 895024.156 | G177: 6510750.775 | H177: 792205.8914 | I177: 68555.93574 | J177: 82170.78825 | K177: 277660.4626 | L177: 4354.862415 | M177: 1173.601511 | N177: 297.0406459 | O177: 16.40828519 | P177: 376.9080552 | Q177: 180222.9499
A178: 2018 | B178: 24204090.68 | C178: 3223234.916 | D178: 287150.4518 | E178: 115000.6893 | F178: 902367.7234 | G178: 6507069.627 | H178: 783482.4852 | I178: 70130.7374 | J178: 82318.47526 | K178: 279021.6484 | L178: =SUMIF($A$5:$A$170,$A178,L$5:L$170) -> 4386.114933 | M178: 1174.104516 | N178: 297.1957024 | O178: 16.41685039 | P178: 385.6969479 | Q178: 185131.4267
A179: 2019 | B179: 24116232.07 | C179: 3236215.569 | D179: 297232.249 | E179: 118181.0908 | F179: 912102.3377 | G179: 6524306.385 | H179: 777364.4474 | I179: 71970.37033 | J179: 82223.40376 | K179: 280799.8832 | L179: 4388.193237 | M179: 1174.66085 | N179: 297.3365248 | O179: 16.4246293 | P179: 384.5687259 | Q179: 190151.4612
A180: 2020 | B180: =SUMIF($A$5:$A$170,$A180,B$5:B$170) -> 24061249.24 | C180: 3253445.832 | D180: 307625.3535 | E180: 121357.0973 | F180: 923077.6964 | G180: 6549565.89 | H180: 772241.228 | I180: 73947.51797 | J180: 81785.67547 | K180: 282688.1184 | L180: 4411.18082 | M180: 1180.814319 | N180: 298.8941244 | O180: 16.51066985 | P180: 383.5215606 | Q180: 195304.6153
A181: 2021 | B181: 23965980.98 | C181: 3265152.178 | D181: 317464.4151 | E181: 124190.6669 | F181: 932485.7619 | G181: 6571195.78 | H181: 766713.8649 | I181: 75936.2934 | J181: 80914.30168 | K181: 284367.9266 | L181: 4413.261295 | M181: 1181.371235 | N181: 299.0350938 | O181: 16.51845688 | P181: 382.5539111 | Q181: 200126.9603
A182: 2022 | B182: =SUMIF($A$5:$A$170,$A182,B$5:B$170) -> 23907462.01 | C182: 3281720.346 | D182: 327737.5927 | E182: 127079.5054 | F182: 943368.2046 | G182: 6576486.15 | H182: 759318.153 | I182: 77786.19161 | J182: 79505.4719 | K182: 285302.672 | L182: 4415.342855 | M182: 1181.928441 | N182: 299.1761368 | O182: 16.52624799 | P182: 381.6645172 | Q182: 204865.697
A185: Ancillary Reference Services | B185: Meter and Gas Installation Test | C185: Disconnection Test | D185: Reconnection | E185: Meter Removal | F185: Meter Reinstallation | G185: Special Meter Read - Metro | H185: Special Meter Read - Non Metro
A186: =A178 -> 2018 | B186: ='[46]Input - ARS'!$U$8 -> 61.41064717 | C186: 11696.21146 | D186: 5159.501094 | E186: 1661.107669 | F186: 6724.969231 | G186: 150765.1523 | H186: 45332.13166
A187: =A179 -> 2019 | B187: 61.7616496 | C187: 11763.06303 | D187: 5188.991052 | E187: 1670.601997 | F187: 6763.406874 | G187: 151626.8747 | H187: 45591.23475
A188: 2020 | B188: 62.19786108 | C188: 11846.14344 | D188: 5225.639968 | E188: 1682.40116 | F188: 6811.175607 | G188: 152697.7882 | H188: 45913.23749
A189: 2021 | B189: 62.73724505 | C189: 11948.87398 | D189: 5270.957063 | E189: 1696.991055 | F189: 6870.242572 | G189: 154021.9935 | H189: 46311.40012
A190: 2022 | B190: 63.34659658 | C190: 12064.93048 | D190: 5322.152581 | E190: 1713.473514 | F190: 6936.97156 | G190: 155517.9715 | H190: 46761.21143
L196: Tariff D 2013 - 2015 Split Central and Northern (Band 1)
L197: =SUM(L5:L7)/SUM(L5:M7) -> 0.7888384575 | M197: =1-L197 -> 0.2111615425 | N197: =SUM(L197:M197) -> 1

Sheet RAB Calculations (hidden)
B1: ="ENVESTRA - Cost allocation model for "&'General Inputs'!#REF!&" ("&'General Inputs'!#REF!&")" -> 
B2: Regulatory Asset Base Calculations
B7: Period Ending 30 June | J7: 2005 | K7: =J7+1 -> 2006 | L7: 2007 | M7: 2008 | N7: 2009 | O7: 2010 | P7: 2011
B11: Summary of Regulatory Asset Base Calculations (in $million)
C12: Depreciation | I12: 5-year NPV
E13: Mains and Inlets | I13: =NPV(realpretaxwacc,L13:P13) -> 43.49137246 | K13: =K82 ->  | L13: 8.229431322 | M13: 8.78436781 | N13: 9.515194969 | O13: 10.16377271 | P13: 10.82815563
E14: Meters | I14: 18.61005402 | K14: =K183 ->  | L14: 3.243611481 | M14: 3.611067427 | N14: 4.062632668 | O14: 4.501658544 | P14: 4.958169578
E15: Telemetry | I15: 0.374273198 | K15: =+K278 ->  | L15: 0.0330111862 | M15: 0.06029364986 | N15: 0.08374465191 | O15: 0.1062534621 | P15: 0.1309245159
E16: IT Systems | I16: 11.45876407 | K16: =+K383 ->  | L16: 0.9268954705 | M16: 1.76269944 | N16: 3.015914533 | O16: 3.46894675 | P16: 3.492349319
E17: Other Distribution Equipment | I17: 31.49764314 | K17: =+K483 ->  | L17: 6.367853716 | M17: 6.551339947 | N17: 6.851877563 | O17: 7.128210712 | P17: 7.459560126
E18: Other Assets | I18: 4.865651441 | K18: =+K583 ->  | L18: 0.8634685565 | M18: 0.9572901887 | N18: 1.073771653 | O18: 1.166238008 | P18: 1.263487708
D19: Total | I19: =SUM(I13:I18) -> 110.2977583 | K19: =SUM(K13:K18) ->  | L19: 19.66427173 | M19: 21.72705846 | N19: 24.60313604 | O19: 26.53508018 | P19: 28.13264688
C22: Asset return
E23: =E13 -> Mains and Inlets | I23: =NPV(NompretaxWACC,L23:P23) -> 171.0930029 | K23: =K115 ->  | L23: 34.74441109 | M23: 37.37545493 | N23: 40.33128804 | O23: 42.7832982 | P23: 45.24680553
E24: Meters | I24: 21.80170581 | K24: =K216 ->  | L24: 4.177223692 | M24: 4.642658937 | N24: 5.147506284 | O24: 5.600869307 | P24: 6.046685691
E25: Telemetry | I25: 1.011681028 | K25: =K316 ->  | L25: 0.09569911621 | M25: 0.1788543451 | N25: 0.2475225934 | O25: 0.3113030984 | P25: 0.3801311603
E26: IT Systems | I26: 1.947763479 | K26: =K416 ->  | L26: 0.1789110276 | M26: 0.3561481222 | N26: 0.591988572 | O26: 0.6408343434 | P26: 0.5530043123
E27: Other Distribution Equipment | I27: 56.74926906 | K27: =K516 ->  | L27: 12.83080704 | M27: 13.00539173 | N27: 13.23487476 | O27: 13.39594608 | P27: 13.68721066
E28: Other Assets | I28: 1.178952335 | K28: =K616 ->  | L28: 0.292352449 | M28: 0.2915760343 | N28: 0.2874172275 | O28: 0.2620369925 | P28: 0.2309973587
D29: =D19 -> Total | I29: =SUM(I23:I28) -> 253.7823746 | K29: =SUM(K23:K28) ->  | L29: 52.31940442 | M29: 55.8500841 | N29: 59.84059748 | O29: 62.99428802 | P29: 66.14483471
C32: Closing written down value
E33: =E23 -> Mains and Inlets | K33: =K147 -> 
E34: =E24 -> Meters | K34: =K247 -> 
E35: Telemetry | K35: =K347 -> 
E36: IT Systems | K36: =K447 -> 
E37: Other Distribution Equipment | K37: =K547 -> 
E38: Other Assets | K38: =K647 -> 
D39: Total | I39: =SUM(I33:I38) -> 0 | K39: =SUM(K34:K38) ->  | L39: =SUM(L33:L38) ->  | M39: =SUM(M33:M38) ->  | N39: =SUM(N33:N38) ->  | O39: =SUM(O33:O38) ->  | P39: =SUM(P33:P38) -> 
C46: Index
D47: For initial capital base and 2005/06 capex | J47: 1 | K47: =J47*(1+'General Inputs'!$B$6) -> 1.0239 | L47: =K47*(1+'General Inputs'!$B$6) -> 1.04837121 | M47: =L47*(1+'General Inputs'!$B$6) -> 1.073427282 | N47: =M47*(1+'General Inputs'!$B$6) -> 1.099082194 | O47: =N47*(1+'General Inputs'!$B$6) -> 1.125350258 | P47: =O47*(1+'General Inputs'!$B$6) -> 1.15224613
D48: For capex from | G48: 2005/06 | K48: 1 | L48: =K48*(1+'General Inputs'!$B$6) -> 1.0239 | M48: =L48*(1+'General Inputs'!$B$6) -> 1.04837121 | N48: =M48*(1+'General Inputs'!$B$6) -> 1.073427282 | O48: =N48*(1+'General Inputs'!$B$6) -> 1.099082194 | P48: =O48*(1+'General Inputs'!$B$6) -> 1.125350258
G49: 2006/07 | L49: 1 | M49: =L49*(1+'General Inputs'!$B$6) -> 1.0239 | N49: =M49*(1+'General Inputs'!$B$6) -> 1.04837121 | O49: =N49*(1+'General Inputs'!$B$6) -> 1.073427282 | P49: =O49*(1+'General Inputs'!$B$6) -> 1.099082194
G50: 2007/08 | M50: 1 | N50: =M50*(1+'General Inputs'!$B$6) -> 1.0239 | O50: =N50*(1+'General Inputs'!$B$6) -> 1.04837121 | P50: =O50*(1+'General Inputs'!$B$6) -> 1.073427282
G51: 2008/09 | N51: 1 | O51: =N51*(1+'General Inputs'!$B$6) -> 1.0239 | P51: =O51*(1+'General Inputs'!$B$6) -> 1.04837121
G52: 2009/10 | O52: 1 | P52: =O52*(1+'General Inputs'!$B$6) -> 1.0239
G53: 2010/11 | P53: 1
B60: RAB Calculations
C61: ="Asset Class 1 - "&E13 -> Asset Class 1 - Mains and Inlets
C63: Real calculations
D65: Real asset value
E67: Opening balance | K67: =#REF! ->  | L67: =K75 ->  | M67: =L75 ->  | N67: =M75 ->  | O67: =N75 ->  | P67: =O75 -> 
E69: Capex
F70: First 50% | K70: =#REF!/2 ->  | L70: =#REF!/2 ->  | M70: =#REF!/2 ->  | N70: =#REF!/2 ->  | O70: =#REF!/2 ->  | P70: =#REF!/2 -> 
F71: Remainder | K71: =K70 -> 
E73: Depreciation | K73: =K77 -> 
E75: Closing balance | K75: =-K73+K71+K70+K67 -> 
E77: Depreciation | J77: ='General Inputs'!#REF! ->  | K77: ='General Inputs'!#REF! ->  | L77: ='General Inputs'!#REF! ->  | M77: ='General Inputs'!#REF! ->  | N77: ='General Inputs'!#REF! ->  | O77: ='General Inputs'!#REF! ->  | P77: ='General Inputs'!#REF! -> 
C80: Depreciation
D82: Total depreciation | J82: =J77 -> 
C85: Asset Returns
D87: Initial assets
E88: Regulatory value of initial assets | K88: =IF($K82=0,0,$K67*'RAB Calculations'!K$47*('RAB Calculations'!K82/'RAB Calculations'!$K82)) ->  | L88: =IF($K82=0,0,$K67*'RAB Calculations'!L$47*('RAB Calculations'!L82/'RAB Calculations'!$K82)) ->  | M88: =IF($K82=0,0,$K67*'RAB Calculations'!M$47*('RAB Calculations'!M82/'RAB Calculations'!$K82)) ->  | N88: =IF($K82=0,0,$K67*'RAB Calculations'!N$47*('RAB Calculations'!N82/'RAB Calculations'!$K82)) ->  | O88: =IF($K82=0,0,$K67*'RAB Calculations'!O$47*('RAB Calculations'!O82/'RAB Calculations'!$K82)) ->  | P88: =IF($K82=0,0,$K67*'RAB Calculations'!P$47*('RAB Calculations'!P82/'RAB Calculations'!$K82)) -> 
D91: Capex
E92: Regulatory value of remainder of year1 capex | K92: =$K70*'RAB Calculations'!K$47 ->  | L92: =$K70*'RAB Calculations'!L$47 ->  | M92: =$K70*'RAB Calculations'!M$47 ->  | N92: =$K70*'RAB Calculations'!N$47 ->  | O92: =$K70*'RAB Calculations'!O$47 ->  | P92: =$K70*'RAB Calculations'!P$47 -> 
E93: cost base of 50% of capex
F94: Year 1 capex | K94: =$K70*'RAB Calculations'!K$47 ->  | L94: =$K70*'RAB Calculations'!L$47 ->  | M94: =$K70*'RAB Calculations'!M$47 ->  | N94: =$K70*'RAB Calculations'!N$47 ->  | O94: =$K70*'RAB Calculations'!O$47 ->  | P94: =$K70*'RAB Calculations'!P$47 -> 
F95: Year 2 capex | L95: =$L70*'RAB Calculations'!L$48 ->  | M95: =$L70*'RAB Calculations'!M$48 ->  | N95: =$L70*'RAB Calculations'!N$48 ->  | O95: =$L70*'RAB Calculations'!O$48 ->  | P95: =$L70*'RAB Calculations'!P$48 -> 
F96: Year 3 capex | M96: =$M70*'RAB Calculations'!M$49 ->  | N96: =$M70*'RAB Calculations'!N$49 ->  | O96: =$M70*'RAB Calculations'!O$49 ->  | P96: =$M70*'RAB Calculations'!P$49 -> 
F97: Year 4 capex | N97: =$N70*'RAB Calculations'!N$50 ->  | O97: =$N70*'RAB Calculations'!O$50 ->  | P97: =$N70*'RAB Calculations'!P$50 -> 
F98: Year 5 capex | O98: =$O70*'RAB Calculations'!O$51 ->  | P98: =$O70*'RAB Calculations'!P$51 -> 
F99: Year 6 capex | P99: =$P70*'RAB Calculations'!P$52 -> 
D100: Total | K100: =SUM(K94:K99) -> 
D103: Asset returns
E104: Regulatory value of initial assets for return purposes
F105: cost base | K105: =$K67*'RAB Calculations'!K$47 ->  | L105: =$K67*'RAB Calculations'!L$47 ->  | M105: =$K67*'RAB Calculations'!M$47 ->  | N105: =$K67*'RAB Calculations'!N$47 ->  | O105: =$K67*'RAB Calculations'!O$47 ->  | P105: =$K67*'RAB Calculations'!P$47 -> 
E106: Value of Year 1 remainder assets for return purposes
F107: cost base | K107: =$K92/'RAB Calculations'!$K$48*'RAB Calculations'!K$48 ->  | L107: =$K92/'RAB Calculations'!$K$48*'RAB Calculations'!L$48 ->  | M107: =$K92/'RAB Calculations'!$K$48*'RAB Calculations'!M$48 ->  | N107: =$K92/'RAB Calculations'!$K$48*'RAB Calculations'!N$48 ->  | O107: =$K92/'RAB Calculations'!$K$48*'RAB Calculations'!O$48 ->  | P107: =$K92/'RAB Calculations'!$K$48*'RAB Calculations'!P$48 -> 
E108: WDV of 50% of capex
F109: cost base | K109: =K94 ->  | L109: =K109*(1+'General Inputs'!$B$6)+'RAB Calculations'!L95 ->  | M109: =L109*(1+'General Inputs'!$B$6)+'RAB Calculations'!M96 ->  | N109: =M109*(1+'General Inputs'!$B$6)+'RAB Calculations'!N97 ->  | O109: =N109*(1+'General Inputs'!$B$6)+'RAB Calculations'!O98 ->  | P109: =O109*(1+'General Inputs'!$B$6)+'RAB Calculations'!P99 -> 
F111: accumulated depreciation (to start of year) | K111: =J82*'RAB Calculations'!K$47 ->  | L111: =(K111+K82)*(1+'General Inputs'!$B$6) ->  | M111: =(L111+L82)*(1+'General Inputs'!$B$6) ->  | N111: =(M111+M82)*(1+'General Inputs'!$B$6) ->  | O111: =(N111+N82)*(1+'General Inputs'!$B$6) ->  | P111: =(O111+O82)*(1+'General Inputs'!$B$6) -> 
E113: Total WDV of 50% of capex | K113: =K105-K111+K109+(K109+((J109-(J109/'RAB Calculations'!$J$47*'RAB Calculations'!I47)))+K70) ->  | L113: =L105-L111+L109+(L109+((K109-(K109/'RAB Calculations'!$J$47*'RAB Calculations'!J$47)))+L70) ->  | M113: =M105-M111+M109+(M109+((L109-(L109/'RAB Calculations'!$J$47*'RAB Calculations'!K$47)))+M70) ->  | N113: =N105-N111+N109+(N109+((M109-(M109/'RAB Calculations'!$J$47*'RAB Calculations'!L$47)))+N70) ->  | O113: =O105-O111+O109+(O109+((N109-(N109/'RAB Calculations'!$J$47*'RAB Calculations'!M$47)))+O70) ->  | P113: =P105-P111+P109+(P109+((O109-(O109/'RAB Calculations'!$J$47*'RAB Calculations'!N$47)))+P70) -> 
D115: Total asset returns | K115: =(K105+K109-K111)*'General Inputs'!$B$7 ->  | L115: =(L105+L109-L111)*'General Inputs'!$B$7+((K109-($K109/'RAB Calculations'!$K$47*'RAB Calculations'!K$47)))*'General Inputs'!$B$7+L107*'General Inputs'!$B$7 ->  | M115: =(M105+M109-M111)*'General Inputs'!$B$7+((L109-($K109/'RAB Calculations'!$K$47*'RAB Calculations'!L$47)))*'General Inputs'!$B$7+M107*'General Inputs'!$B$7 ->  | N115: =(N105+N109-N111)*'General Inputs'!$B$7+((M109-($K109/'RAB Calculations'!$K$47*'RAB Calculations'!M$47)))*'General Inputs'!$B$7+N107*'General Inputs'!$B$7 ->  | O115: =(O105+O109-O111)*'General Inputs'!$B$7+((N109-($K109/'RAB Calculations'!$K$47*'RAB Calculations'!N$47)))*'General Inputs'!$B$7+O107*'General Inputs'!$B$7 ->  | P115: =(P105+P109-P111)*'General Inputs'!$B$7+((O109-($K109/'RAB Calculations'!$K$47*'RAB Calculations'!O$47)))*'General Inputs'!$B$7+P107*'General Inputs'!$B$7 -> 
C119: Proof of Calculations
D121: Initial assets
E122: Opening balance | L122: =K88-K82-K111 -> 
D124: First 50% of capex
E125: Spend | K125: =K70 -> 
E126: Carried forward balance | L126: =K94 -> 
E127: NPV at nominal WACC of | I127: ='General Inputs'!B8 -> 0.0528 | L127: =L126+L125+NPV(I127,M125:P125) -> 
D129: Remainder of capex
E130: Spend | K130: =K71 -> 
E131: Carried forward balance | L131: =K92 -> 
E132: NPV at nominal WACC of | I132: =I127 -> 0.0528 | L132: =L131+NPV(I132,L130:P130) -> 
L133: =L135-L127-L132 -> 
D135: Total opening balance | L135: =L122+L127+L132 -> 
E136: Revenue stream
F137: depreciation | L137: =L82 ->  | M137: =M82 ->  | N137: =N82 ->  | O137: =O82 ->  | P137: =P82 -> 
F138: Return on assets | L138: =L115 ->  | M138: =M115 ->  | N138: =N115 ->  | O138: =O115 ->  | P138: =P115 -> 
F139: Residual value
F140: residual value of initial assets | P140: =(P105-P111-P137+P109+P107+P130)+(O109-(K109/'RAB Calculations'!K47*'RAB Calculations'!O47)) -> 
F141: residual value of remainder of capex
E142: Total | L142: =L137+L138+L140 ->  | M142: =M137+M138+M140 ->  | N142: =N137+N138+N140 ->  | O142: =O137+O138+O140 ->  | P142: =P137+P138+P140 -> 
E144: NPV at nominal WACC of | I144: =I132 -> 0.0528 | L144: =NPV(I144,L142:P142) ->  | M144: =L135-L144 -> 
F145: Check | L145: =IF(ROUND(L135-L144,5)=0,"ok","problem") -> 
D147: Closing written down value | K147: =K105-K111-K82+K100+K109 -> 
B161: RAB Calculations
C162: ="Asset Class 2 - "&E14 -> Asset Class 2 - Meters
C164: Real calculations
D166: Real asset value
E168: Opening balance | K168: =#REF! ->  | L168: =K176 ->  | M168: =L176 ->  | N168: =M176 ->  | O168: =N176 ->  | P168: =O176 -> 
E170: Capex
F171: First 50% | K171: =#REF!/2 ->  | L171: =#REF!/2 ->  | M171: =#REF!/2 ->  | N171: =#REF!/2 ->  | O171: =#REF!/2 ->  | P171: =#REF!/2 -> 
F172: Remainder | K172: =K171 -> 
E174: Depreciation | K174: =K178 -> 
E176: Closing balance | K176: =-K174+K172+K171+K168 -> 
E178: Depreciation | J178: ='General Inputs'!#REF! ->  | K178: ='General Inputs'!#REF! ->  | L178: ='General Inputs'!#REF! ->  | M178: ='General Inputs'!#REF! ->  | N178: ='General Inputs'!#REF! ->  | O178: ='General Inputs'!#REF! ->  | P178: ='General Inputs'!#REF! -> 
C181: Depreciation
D183: Total depreciation | J183: =J178 -> 
C186: Asset Returns
D188: Initial assets
E189: Regulatory value of initial assets | K189: =IF($K183=0,0,$K168*'RAB Calculations'!K$47*('RAB Calculations'!K183/'RAB Calculations'!$K183)) ->  | L189: =IF($K183=0,0,$K168*'RAB Calculations'!L$47*('RAB Calculations'!L183/'RAB Calculations'!$K183)) ->  | M189: =IF($K183=0,0,$K168*'RAB Calculations'!M$47*('RAB Calculations'!M183/'RAB Calculations'!$K183)) ->  | N189: =IF($K183=0,0,$K168*'RAB Calculations'!N$47*('RAB Calculations'!N183/'RAB Calculations'!$K183)) ->  | O189: =IF($K183=0,0,$K168*'RAB Calculations'!O$47*('RAB Calculations'!O183/'RAB Calculations'!$K183)) ->  | P189: =IF($K183=0,0,$K168*'RAB Calculations'!P$47*('RAB Calculations'!P183/'RAB Calculations'!$K183)) -> 
D192: Capex
E193: Regulatory value of remainder of year1 capex | K193: =$K171*'RAB Calculations'!K$47 ->  | L193: =$K171*'RAB Calculations'!L$47 ->  | M193: =$K171*'RAB Calculations'!M$47 ->  | N193: =$K171*'RAB Calculations'!N$47 ->  | O193: =$K171*'RAB Calculations'!O$47 ->  | P193: =$K171*'RAB Calculations'!P$47 -> 
E194: cost base of 50% of capex
F195: Year 1 capex | K195: =$K171*'RAB Calculations'!K$47 ->  | L195: =$K171*'RAB Calculations'!L$47 ->  | M195: =$K171*'RAB Calculations'!M$47 ->  | N195: =$K171*'RAB Calculations'!N$47 ->  | O195: =$K171*'RAB Calculations'!O$47 ->  | P195: =$K171*'RAB Calculations'!P$47 -> 
F196: Year 2 capex | L196: =$L171*'RAB Calculations'!L$48 ->  | M196: =$L171*'RAB Calculations'!M$48 ->  | N196: =$L171*'RAB Calculations'!N$48 ->  | O196: =$L171*'RAB Calculations'!O$48 ->  | P196: =$L171*'RAB Calculations'!P$48 -> 
F197: Year 3 capex | M197: =$M171*'RAB Calculations'!M$49 ->  | N197: =$M171*'RAB Calculations'!N$49 ->  | O197: =$M171*'RAB Calculations'!O$49 ->  | P197: =$M171*'RAB Calculations'!P$49 -> 
F198: Year 4 capex | N198: =$N171*'RAB Calculations'!N$50 ->  | O198: =$N171*'RAB Calculations'!O$50 ->  | P198: =$N171*'RAB Calculations'!P$50 -> 
F199: Year 5 capex | O199: =$O171*'RAB Calculations'!O$51 ->  | P199: =$O171*'RAB Calculations'!P$51 -> 
F200: Year 6 capex | P200: =$P171*'RAB Calculations'!P$52 -> 
D201: Total | K201: =SUM(K195:K200) -> 
D204: Asset returns
E205: Regulatory value of initial assets for return purposes
F206: cost base | K206: =$K168*'RAB Calculations'!K$47 ->  | L206: =$K168*'RAB Calculations'!L$47 ->  | M206: =$K168*'RAB Calculations'!M$47 ->  | N206: =$K168*'RAB Calculations'!N$47 ->  | O206: =$K168*'RAB Calculations'!O$47 ->  | P206: =$K168*'RAB Calculations'!P$47 -> 
E207: Value of Year 1 remainder assets for return purposes
F208: cost base | K208: =$K193/'RAB Calculations'!$K$48*'RAB Calculations'!K$48 ->  | L208: =$K193/'RAB Calculations'!$K$48*'RAB Calculations'!L$48 ->  | M208: =$K193/'RAB Calculations'!$K$48*'RAB Calculations'!M$48 ->  | N208: =$K193/'RAB Calculations'!$K$48*'RAB Calculations'!N$48 ->  | O208: =$K193/'RAB Calculations'!$K$48*'RAB Calculations'!O$48 ->  | P208: =$K193/'RAB Calculations'!$K$48*'RAB Calculations'!P$48 -> 
E209: WDV of 50% of capex
F210: cost base | K210: =K195 ->  | L210: =K210*(1+'General Inputs'!$B$6)+'RAB Calculations'!L196 ->  | M210: =L210*(1+'General Inputs'!$B$6)+'RAB Calculations'!M197 ->  | N210: =M210*(1+'General Inputs'!$B$6)+'RAB Calculations'!N198 ->  | O210: =N210*(1+'General Inputs'!$B$6)+'RAB Calculations'!O199 ->  | P210: =O210*(1+'General Inputs'!$B$6)+'RAB Calculations'!P200 -> 
F212: accumulated depreciation (to start of year) | K212: =J183*'RAB Calculations'!K$47 ->  | L212: =(K212+K183)*(1+'General Inputs'!$B$6) ->  | M212: =(L212+L183)*(1+'General Inputs'!$B$6) ->  | N212: =(M212+M183)*(1+'General Inputs'!$B$6) ->  | O212: =(N212+N183)*(1+'General Inputs'!$B$6) ->  | P212: =(O212+O183)*(1+'General Inputs'!$B$6) -> 
E214: Total WDV of 50% of capex | K214: =K206-K212+K210+(K210+((J210-(J210/'RAB Calculations'!$J$47*'RAB Calculations'!$I$47)))+K171) ->  | L214: =L206-L212+L210+(L210+((K210-(K210/'RAB Calculations'!$J$47*'RAB Calculations'!J$47)))+L171) ->  | M214: =M206-M212+M210+(M210+((L210-(L210/'RAB Calculations'!$J$47*'RAB Calculations'!K$47)))+M171) ->  | N214: =N206-N212+N210+(N210+((M210-(M210/'RAB Calculations'!$J$47*'RAB Calculations'!L$47)))+N171) ->  | O214: =O206-O212+O210+(O210+((N210-(N210/'RAB Calculations'!$J$47*'RAB Calculations'!M$47)))+O171) ->  | P214: =P206-P212+P210+(P210+((O210-(O210/'RAB Calculations'!$J$47*'RAB Calculations'!N$47)))+P171) -> 
D216: Total asset returns | K216: =(K206+K210-K212)*'General Inputs'!$B$7 ->  | L216: =(L206+L210-L212)*'General Inputs'!$B$7+((K210-($K210/'RAB Calculations'!$K$47*'RAB Calculations'!K$47)))*'General Inputs'!$B$7+L208*'General Inputs'!$B$7 ->  | M216: =(M206+M210-M212)*'General Inputs'!$B$7+((L210-($K210/'RAB Calculations'!$K$47*'RAB Calculations'!L$47)))*'General Inputs'!$B$7+M208*'General Inputs'!$B$7 ->  | N216: =(N206+N210-N212)*'General Inputs'!$B$7+((M210-($K210/'RAB Calculations'!$K$47*'RAB Calculations'!M$47)))*'General Inputs'!$B$7+N208*'General Inputs'!$B$7 ->  | O216: =(O206+O210-O212)*'General Inputs'!$B$7+((N210-($K210/'RAB Calculations'!$K$47*'RAB Calculations'!N$47)))*'General Inputs'!$B$7+O208*'General Inputs'!$B$7 ->  | P216: =(P206+P210-P212)*'General Inputs'!$B$7+((O210-($K210/'RAB Calculations'!$K$47*'RAB Calculations'!O$47)))*'General Inputs'!$B$7+P208*'General Inputs'!$B$7 -> 
C219: Proof of Calculations
D221: Initial assets
E222: Opening balance | L222: =K189-K183-K212 -> 
D224: First 50% of capex
E225: Spend | K225: =K171 -> 
E226: Carried forward balance | L226: =K195 -> 
E227: NPV at nominal WACC of | I227: =NompretaxWACC -> 0.0528 | L227: =L226+L225+NPV(I227,M225:P225) -> 
D229: Remainder of capex
E230: Spend | K230: =K172 -> 
E231: Carried forward balance | L231: =K193 -> 
E232: NPV at nominal WACC of | I232: =I227 -> 0.0528 | L232: =L231+NPV(I232,L230:P230) -> 
L233: =L235-L227-L232 -> 
D235: Total opening balance | L235: =L222+L227+L232 -> 
E236: Revenue stream
F237: depreciation | L237: =L183 ->  | M237: =M183 ->  | N237: =N183 ->  | O237: =O183 ->  | P237: =P183 -> 
F238: Return on assets | L238: =L216 ->  | M238: =M216 ->  | N238: =N216 ->  | O238: =O216 ->  | P238: =P216 -> 
F239: Residual value
F240: residual value of initial assets | P240: =(P206-P212-P237+P210)+P208+P230+(O210-(K210/'RAB Calculations'!K47*'RAB Calculations'!O47)) -> 
F241: residual value of remainder of capex
E242: Total | L242: =L237+L238+L240 ->  | M242: =M237+M238+M240 ->  | N242: =N237+N238+N240 ->  | O242: =O237+O238+O240 ->  | P242: =P237+P238+P240 -> 
E244: NPV at nominal WACC of | I244: =I232 -> 0.0528 | L244: =NPV(I244,L242:P242) ->  | M244: =L235-L244 -> 
F245: Check | L245: =IF(ROUND(L235-L244,5)=0,"ok","problem") -> 
D247: Closing written down value | K247: =K206-K212-K183+K201+K210 -> 
B261: RAB Calculations
C262: ="Asset Class 3 - "&E15 -> Asset Class 3 - Telemetry
C264: Real calculations
D266: Real asset value
E268: Opening balance | K268: =#REF! ->  | L268: =K276 ->  | M268: =L276 ->  | N268: =M276 ->  | O268: =N276 ->  | P268: =O276 -> 
E270: Capex
F271: First 50% | K271: =#REF!/2 ->  | L271: =#REF!/2 ->  | M271: =#REF!/2 ->  | N271: =#REF!/2 ->  | O271: =#REF!/2 ->  | P271: =#REF!/2 -> 
F272: Remainder | K272: =K271 -> 
E274: Depreciation | K274: =K278 -> 
E276: Closing balance | K276: =-K274+K272+K271+K268 -> 
E278: Depreciation | J278: ='General Inputs'!#REF! ->  | K278: ='General Inputs'!#REF! ->  | L278: ='General Inputs'!#REF! ->  | M278: ='General Inputs'!#REF! ->  | N278: ='General Inputs'!#REF! ->  | O278: ='General Inputs'!#REF! ->  | P278: ='General Inputs'!#REF! -> 
C281: Depreciation
D283: Total depreciation | J283: =J278 -> 
C286: Asset Returns
D288: Initial assets
E289: Regulatory value of initial assets | K289: =IF($K283=0,0,$K268*'RAB Calculations'!K$47*('RAB Calculations'!K283/'RAB Calculations'!$K283)) ->  | L289: =IF($K283=0,0,$K268*'RAB Calculations'!L$47*('RAB Calculations'!L283/'RAB Calculations'!$K283)) ->  | M289: =IF($K283=0,0,$K268*'RAB Calculations'!M$47*('RAB Calculations'!M283/'RAB Calculations'!$K283)) ->  | N289: =IF($K283=0,0,$K268*'RAB Calculations'!N$47*('RAB Calculations'!N283/'RAB Calculations'!$K283)) ->  | O289: =IF($K283=0,0,$K268*'RAB Calculations'!O$47*('RAB Calculations'!O283/'RAB Calculations'!$K283)) ->  | P289: =IF($K283=0,0,$K268*'RAB Calculations'!P$47*('RAB Calculations'!P283/'RAB Calculations'!$K283)) -> 
D292: Capex
E293: Regulatory value of remainder of year1 capex | K293: =$K271*'RAB Calculations'!K$47 ->  | L293: =$K271*'RAB Calculations'!L$47 ->  | M293: =$K271*'RAB Calculations'!M$47 ->  | N293: =$K271*'RAB Calculations'!N$47 ->  | O293: =$K271*'RAB Calculations'!O$47 ->  | P293: =$K271*'RAB Calculations'!P$47 -> 
E294: cost base of 50% of capex
F295: Year 1 capex | K295: =$K271*'RAB Calculations'!K$47 ->  | L295: =$K271*'RAB Calculations'!L$47 ->  | M295: =$K271*'RAB Calculations'!M$47 ->  | N295: =$K271*'RAB Calculations'!N$47 ->  | O295: =$K271*'RAB Calculations'!O$47 ->  | P295: =$K271*'RAB Calculations'!P$47 -> 
F296: Year 2 capex | L296: =$L271*'RAB Calculations'!L$48 ->  | M296: =$L271*'RAB Calculations'!M$48 ->  | N296: =$L271*'RAB Calculations'!N$48 ->  | O296: =$L271*'RAB Calculations'!O$48 ->  | P296: =$L271*'RAB Calculations'!P$48 -> 
F297: Year 3 capex | M297: =$M271*'RAB Calculations'!M$49 ->  | N297: =$M271*'RAB Calculations'!N$49 ->  | O297: =$M271*'RAB Calculations'!O$49 ->  | P297: =$M271*'RAB Calculations'!P$49 -> 
F298: Year 4 capex | N298: =$N271*'RAB Calculations'!N$50 ->  | O298: =$N271*'RAB Calculations'!O$50 ->  | P298: =$N271*'RAB Calculations'!P$50 -> 
F299: Year 5 capex | O299: =$O271*'RAB Calculations'!O$51 ->  | P299: =$O271*'RAB Calculations'!P$51 -> 
F300: Year 6 capex | P300: =$P271*'RAB Calculations'!P$52 -> 
D301: Total | K301: =SUM(K295:K300) -> 
D304: Asset returns
E305: Regulatory value of initial assets for return purposes
F306: cost base | K306: =$K268*'RAB Calculations'!K$47 ->  | L306: =$K268*'RAB Calculations'!L$47 ->  | M306: =$K268*'RAB Calculations'!M$47 ->  | N306: =$K268*'RAB Calculations'!N$47 ->  | O306: =$K268*'RAB Calculations'!O$47 ->  | P306: =$K268*'RAB Calculations'!P$47 -> 
E307: Value of Year 1 remainder assets for return purposes
F308: cost base | K308: =$K293/'RAB Calculations'!$K$48*'RAB Calculations'!K$48 ->  | L308: =$K293/'RAB Calculations'!$K$48*'RAB Calculations'!L$48 ->  | M308: =$K293/'RAB Calculations'!$K$48*'RAB Calculations'!M$48 ->  | N308: =$K293/'RAB Calculations'!$K$48*'RAB Calculations'!N$48 ->  | O308: =$K293/'RAB Calculations'!$K$48*'RAB Calculations'!O$48 ->  | P308: =$K293/'RAB Calculations'!$K$48*'RAB Calculations'!P$48 -> 
E309: WDV of 50% of capex
F310: cost base | K310: =K295 ->  | L310: =K310*(1+'General Inputs'!$B$6)+'RAB Calculations'!L296 ->  | M310: =L310*(1+'General Inputs'!$B$6)+'RAB Calculations'!M297 ->  | N310: =M310*(1+'General Inputs'!$B$6)+'RAB Calculations'!N298 ->  | O310: =N310*(1+'General Inputs'!$B$6)+'RAB Calculations'!O299 ->  | P310: =O310*(1+'General Inputs'!$B$6)+'RAB Calculations'!P300 -> 
F312: accumulated depreciation (to start of year) | K312: =J283*'RAB Calculations'!K$47 ->  | L312: =(K312+K283)*(1+'General Inputs'!$B$6) ->  | M312: =(L312+L283)*(1+'General Inputs'!$B$6) ->  | N312: =(M312+M283)*(1+'General Inputs'!$B$6) ->  | O312: =(N312+N283)*(1+'General Inputs'!$B$6) ->  | P312: =(O312+O283)*(1+'General Inputs'!$B$6) -> 
E314: Total WDV of 50% of capex | K314: =K306-K312+K310+(K310+((J310-(J310/'RAB Calculations'!$J$47*'RAB Calculations'!I$47)))+K271) ->  | L314: =L306-L312+L310+(L310+((K310-(K310/'RAB Calculations'!$J$47*'RAB Calculations'!J$47)))+L271) ->  | M314: =M306-M312+M310+(M310+((L310-(L310/'RAB Calculations'!$J$47*'RAB Calculations'!K$47)))+M271) ->  | N314: =N306-N312+N310+(N310+((M310-(M310/'RAB Calculations'!$J$47*'RAB Calculations'!L$47)))+N271) ->  | O314: =O306-O312+O310+(O310+((N310-(N310/'RAB Calculations'!$J$47*'RAB Calculations'!M$47)))+O271) ->  | P314: =P306-P312+P310+(P310+((O310-(O310/'RAB Calculations'!$J$47*'RAB Calculations'!N$47)))+P271) -> 
D316: Total asset returns | K316: =(K306+K310-K312)*'General Inputs'!$B$7 ->  | L316: =(L306+L310-L312)*'General Inputs'!$B$7+((K310-($K310/'RAB Calculations'!$K$47*'RAB Calculations'!K$47)))*'General Inputs'!$B$7+L308*'General Inputs'!$B$7 ->  | M316: =(M306+M310-M312)*'General Inputs'!$B$7+((L310-($K310/'RAB Calculations'!$K$47*'RAB Calculations'!L$47)))*'General Inputs'!$B$7+M308*'General Inputs'!$B$7 ->  | N316: =(N306+N310-N312)*'General Inputs'!$B$7+((M310-($K310/'RAB Calculations'!$K$47*'RAB Calculations'!M$47)))*'General Inputs'!$B$7+N308*'General Inputs'!$B$7 ->  | O316: =(O306+O310-O312)*'General Inputs'!$B$7+((N310-($K310/'RAB Calculations'!$K$47*'RAB Calculations'!N$47)))*'General Inputs'!$B$7+O308*'General Inputs'!$B$7 ->  | P316: =(P306+P310-P312)*'General Inputs'!$B$7+((O310-($K310/'RAB Calculations'!$K$47*'RAB Calculations'!O$47)))*'General Inputs'!$B$7+P308*'General Inputs'!$B$7 -> 
C319: Proof of Calculations
D321: Initial assets
E322: Opening balance | L322: =K289-K283-K312 -> 
D324: First 50% of capex
E325: Spend | K325: =K271 -> 
E326: Carried forward balance | L326: =K295 -> 
E327: NPV at nominal WACC of | I327: =NompretaxWACC -> 0.0528 | L327: =L326+L325+NPV(I327,M325:P325) -> 
D329: Remainder of capex
E330: Spend | K330: =K272 -> 
E331: Carried forward balance | L331: =K293 -> 
... 186 more rows

Sheet Tariff Inputs
A1: Tariff Inputs
A4: ='General Inputs'!B20 -> Tariff R: Res Central | B4: 2006 | C4: 2007 | D4: =TRANSPOSE('Connection Numbers Inputs'!A5:A14) -> 2013 | E4: 2014 | F4: 2015 | G4: 2016 | H4: 2017 | I4: 2018 | J4: 2019 | K4: 2020 | L4: 2021 | M4: 2022
A5: ='General Inputs'!E20 -> Residential tariff
A6: Fixed ($/day) | B6: 0 | C6: 0 | D6: 0 | E6: 0 | F6: 0 | G6: =[47]Prop2017DistTar!E8 -> 0.1823 | H6: =[47]Prop2017DistTar!D8 -> 0.1959 | I6: 0 | J6: 0 | K6: 0 | L6: 0 | M6: 0
A7: Peak Band 1 ($/GJ) | B7: 0 | C7: 0 | D7: 0 | E7: 0 | F7: 0 | G7: =[47]Prop2017DistTar!E9 -> 10.4113 | H7: =[47]Prop2017DistTar!D9 -> 11.281 | I7: 0 | J7: 0 | K7: 0 | L7: 0 | M7: 0
A8: Peak Band 2 ($/GJ) | B8: 0 | C8: 0 | D8: 0 | E8: 0 | F8: 0 | G8: =[47]Prop2017DistTar!E10 -> 6.8694 | H8: =[47]Prop2017DistTar!D10 -> 6.9358 | I8: 0 | J8: 0 | K8: 0 | L8: 0 | M8: 0
A9: Peak Band 3 ($/GJ) | B9: 0 | C9: 0 | D9: 0 | E9: 0 | F9: 0 | G9: =[47]Prop2017DistTar!E11 -> 3.7707 | H9: =[47]Prop2017DistTar!D11 -> 3.8076 | I9: 0 | J9: 0 | K9: 0 | L9: 0 | M9: 0
A10: Peak Band 4 ($/GJ) | B10: 0 | C10: 0 | D10: 0 | E10: 0 | F10: 0 | G10: =[47]Prop2017DistTar!E12 -> 0 | H10: =[47]Prop2017DistTar!D12 -> 0 | I10: 0 | J10: 0 | K10: 0 | L10: 0 | M10: 0
A11: Peak Band 5 ($/GJ) | B11: 0 | C11: 0 | D11: 0 | E11: 0 | F11: 0 | G11: 0 | H11: 0 | I11: 0 | J11: 0 | K11: 0 | L11: 0 | M11: 0
A12: Peak Band 6 ($/GJ) | B12: 0 | C12: 0 | D12: 0 | E12: 0 | F12: 0 | G12: 0 | H12: 0 | I12: 0 | J12: 0 | K12: 0 | L12: 0 | M12: 0
A13: Peak Band 7 ($/GJ) | B13: 0 | C13: 0 | D13: 0 | E13: 0 | F13: 0 | G13: 0 | H13: 0 | I13: 0 | J13: 0 | K13: 0 | L13: 0 | M13: 0
A14: Off Peak Band 1 ($/GJ) | B14: 0 | C14: 0 | D14: 0 | E14: 0 | F14: 0 | G14: 0 | H14: 0 | I14: 0 | J14: 0 | K14: 0 | L14: 0 | M14: 0
A15: Off Peak Band 2 ($/GJ) | B15: 0 | C15: 0 | D15: 0 | E15: 0 | F15: 0 | G15: 0 | H15: 0 | I15: 0 | J15: 0 | K15: 0 | L15: 0 | M15: 0
A16: Off Peak Band 3 ($/GJ) | B16: 0 | C16: 0 | D16: 0 | E16: 0 | F16: 0 | G16: 0 | H16: 0 | I16: 0 | J16: 0 | K16: 0 | L16: 0 | M16: 0
A17: Off Peak Band 4 ($/GJ) | B17: 0 | C17: 0 | D17: 0 | E17: 0 | F17: 0 | G17: 0 | H17: 0 | I17: 0 | J17: 0 | K17: 0 | L17: 0 | M17: 0
A18: Off Peak Band 5 ($/GJ) | B18: 0 | C18: 0 | D18: 0 | E18: 0 | F18: 0 | G18: 0 | H18: 0 | I18: 0 | J18: 0 | K18: 0 | L18: 0 | M18: 0
A19: Off Peak Band 6 ($/GJ) | B19: 0 | C19: 0 | D19: 0 | E19: 0 | F19: 0 | G19: 0 | H19: 0 | I19: 0 | J19: 0 | K19: 0 | L19: 0 | M19: 0
A20: Off Peak Band 7 ($/GJ) | B20: 0 | C20: 0 | D20: 0 | E20: 0 | F20: 0 | G20: 0 | H20: 0 | I20: 0 | J20: 0 | K20: 0 | L20: 0 | M20: 0
A22: ='General Inputs'!B21 -> Tariff R: Res North | B22: =B$4 -> 2006 | C22: =C$4 -> 2007 | D22: 2013 | E22: 2014 | F22: 2015 | G22: 2016 | H22: 2017 | I22: 2018 | J22: 2019 | K22: 2020 | L22: 2021 | M22: 2022
A23: ='General Inputs'!E21 -> Residential tariff
A24: =A6 -> Fixed ($/day) | B24: 0 | C24: 0 | D24: 0 | E24: 0 | F24: 0 | G24: =[47]Prop2017DistTar!E21 -> 0.1823 | H24: =[47]Prop2017DistTar!D21 -> 0.1959 | I24: 0 | J24: 0 | K24: 0 | L24: 0 | M24: 0
A25: =A$7 -> Peak Band 1 ($/GJ) | B25: 0 | C25: 0 | D25: 0 | E25: 0 | F25: 0 | G25: =[47]Prop2017DistTar!E22 -> 9.0601 | H25: =[47]Prop2017DistTar!D22 -> 9.9255 | I25: 0 | J25: 0 | K25: 0 | L25: 0 | M25: 0
A26: =A$8 -> Peak Band 2 ($/GJ) | B26: 0 | C26: 0 | D26: 0 | E26: 0 | F26: 0 | G26: =[47]Prop2017DistTar!E23 -> 5.9774 | H26: =[47]Prop2017DistTar!D23 -> 6.2129 | I26: 0 | J26: 0 | K26: 0 | L26: 0 | M26: 0
A27: =A$9 -> Peak Band 3 ($/GJ) | B27: 0 | C27: 0 | D27: 0 | E27: 0 | F27: 0 | G27: =[47]Prop2017DistTar!E24 -> 3.2814 | H27: =[47]Prop2017DistTar!D24 -> 3.4111 | I27: 0 | J27: 0 | K27: 0 | L27: 0 | M27: 0
A28: =A$10 -> Peak Band 4 ($/GJ) | B28: 0 | C28: 0 | D28: 0 | E28: 0 | F28: 0 | G28: =[47]Prop2017DistTar!E25 -> 0 | H28: =[47]Prop2017DistTar!D25 -> 0 | I28: 0 | J28: 0 | K28: 0 | L28: 0 | M28: 0
A29: =A$11 -> Peak Band 5 ($/GJ) | B29: 0 | C29: 0 | D29: 0 | E29: 0 | F29: 0 | G29: 0 | H29: 0 | I29: 0 | J29: 0 | K29: 0 | L29: 0 | M29: 0
A30: =A$12 -> Peak Band 6 ($/GJ) | B30: 0 | C30: 0 | D30: 0 | E30: 0 | F30: 0 | G30: 0 | H30: 0 | I30: 0 | J30: 0 | K30: 0 | L30: 0 | M30: 0
A31: =A$13 -> Peak Band 7 ($/GJ) | B31: 0 | C31: 0 | D31: 0 | E31: 0 | F31: 0 | G31: 0 | H31: 0 | I31: 0 | J31: 0 | K31: 0 | L31: 0 | M31: 0
A32: =A$14 -> Off Peak Band 1 ($/GJ) | B32: 0 | C32: 0 | D32: 0 | E32: 0 | F32: 0 | G32: 0 | H32: 0 | I32: 0 | J32: 0 | K32: 0 | L32: 0 | M32: 0
A33: =A$15 -> Off Peak Band 2 ($/GJ) | B33: 0 | C33: 0 | D33: 0 | E33: 0 | F33: 0 | G33: 0 | H33: 0 | I33: 0 | J33: 0 | K33: 0 | L33: 0 | M33: 0
A34: =A$16 -> Off Peak Band 3 ($/GJ) | B34: 0 | C34: 0 | D34: 0 | E34: 0 | F34: 0 | G34: 0 | H34: 0 | I34: 0 | J34: 0 | K34: 0 | L34: 0 | M34: 0
A35: =A$17 -> Off Peak Band 4 ($/GJ) | B35: 0 | C35: 0 | D35: 0 | E35: 0 | F35: 0 | G35: 0 | H35: 0 | I35: 0 | J35: 0 | K35: 0 | L35: 0 | M35: 0
A36: =A$18 -> Off Peak Band 5 ($/GJ) | B36: 0 | C36: 0 | D36: 0 | E36: 0 | F36: 0 | G36: 0 | H36: 0 | I36: 0 | J36: 0 | K36: 0 | L36: 0 | M36: 0
A37: =A$19 -> Off Peak Band 6 ($/GJ) | B37: 0 | C37: 0 | D37: 0 | E37: 0 | F37: 0 | G37: 0 | H37: 0 | I37: 0 | J37: 0 | K37: 0 | L37: 0 | M37: 0
A38: =A$20 -> Off Peak Band 7 ($/GJ) | B38: 0 | C38: 0 | D38: 0 | E38: 0 | F38: 0 | G38: 0 | H38: 0 | I38: 0 | J38: 0 | K38: 0 | L38: 0 | M38: 0
A40: ='General Inputs'!B22 -> Tariff R: Res MV (Vic) | B40: =B$4 -> 2006 | C40: =C$4 -> 2007 | D40: 2013 | E40: 2014 | F40: 2015 | G40: 2016 | H40: 2017 | I40: 2018 | J40: 2019 | K40: 2020 | L40: 2021 | M40: 2022
A41: ='General Inputs'!E22 -> Residential tariff
A42: Fixed ($/day) | B42: 0 | C42: 0 | D42: 0 | E42: 0 | F42: 0 | G42: =[47]Prop2017DistTar!E34 -> 0.2528 | H42: =[47]Prop2017DistTar!D34 -> 0.2493 | I42: 0 | J42: 0 | K42: 0 | L42: 0 | M42: 0
A43: =A$7 -> Peak Band 1 ($/GJ) | B43: 0 | C43: 0 | D43: 0 | E43: 0 | F43: 0 | G43: =[47]Prop2017DistTar!E35 -> 7.8943 | H43: =[47]Prop2017DistTar!D35 -> 8.6413 | I43: 0 | J43: 0 | K43: 0 | L43: 0 | M43: 0
A44: =A$8 -> Peak Band 2 ($/GJ) | B44: 0 | C44: 0 | D44: 0 | E44: 0 | F44: 0 | G44: =[47]Prop2017DistTar!E36 -> 5.2088 | H44: =[47]Prop2017DistTar!D36 -> 5.5901 | I44: 0 | J44: 0 | K44: 0 | L44: 0 | M44: 0
A45: =A$9 -> Peak Band 3 ($/GJ) | B45: 0 | C45: 0 | D45: 0 | E45: 0 | F45: 0 | G45: =[47]Prop2017DistTar!E37 -> 3.3872 | H45: =[47]Prop2017DistTar!D37 -> 3.4968 | I45: 0 | J45: 0 | K45: 0 | L45: 0 | M45: 0
A46: =A$10 -> Peak Band 4 ($/GJ) | B46: 0 | C46: 0 | D46: 0 | E46: 0 | F46: 0 | G46: =[47]Prop2017DistTar!E38 -> 0 | H46: =[47]Prop2017DistTar!D38 -> 0 | I46: 0 | J46: 0 | K46: 0 | L46: 0 | M46: 0
A47: =A$11 -> Peak Band 5 ($/GJ) | B47: 0 | C47: 0 | D47: 0 | E47: 0 | F47: 0 | G47: 0 | H47: 0 | I47: 0 | J47: 0 | K47: 0 | L47: 0 | M47: 0
A48: =A$12 -> Peak Band 6 ($/GJ) | G48: 0 | H48: 0 | I48: 0
A49: =A$13 -> Peak Band 7 ($/GJ) | B49: 0 | C49: 0 | D49: 0 | E49: 0 | F49: 0 | G49: 0 | H49: 0 | I49: 0 | J49: 0 | K49: 0 | L49: 0 | M49: 0
A50: =A$14 -> Off Peak Band 1 ($/GJ) | B50: 0 | C50: 0 | D50: 0 | E50: 0 | F50: 0 | G50: 0 | H50: 0 | I50: 0 | J50: 0 | K50: 0 | L50: 0 | M50: 0
A51: =A$15 -> Off Peak Band 2 ($/GJ) | B51: 0 | C51: 0 | D51: 0 | E51: 0 | F51: 0 | G51: 0 | H51: 0 | I51: 0 | J51: 0 | K51: 0 | L51: 0 | M51: 0
A52: =A$16 -> Off Peak Band 3 ($/GJ) | B52: 0 | C52: 0 | D52: 0 | E52: 0 | F52: 0 | G52: 0 | H52: 0 | I52: 0 | J52: 0 | K52: 0 | L52: 0 | M52: 0
A53: =A$17 -> Off Peak Band 4 ($/GJ) | B53: 0 | C53: 0 | D53: 0 | E53: 0 | F53: 0 | G53: 0 | H53: 0 | I53: 0 | J53: 0 | K53: 0 | L53: 0 | M53: 0
A54: =A$18 -> Off Peak Band 5 ($/GJ) | B54: 0 | C54: 0 | D54: 0 | E54: 0 | F54: 0 | G54: 0 | H54: 0 | I54: 0 | J54: 0 | K54: 0 | L54: 0 | M54: 0
A55: =A$19 -> Off Peak Band 6 ($/GJ) | B55: 0 | C55: 0 | D55: 0 | E55: 0 | F55: 0 | G55: 0 | H55: 0 | I55: 0 | J55: 0 | K55: 0 | L55: 0 | M55: 0
A56: =A$20 -> Off Peak Band 7 ($/GJ) | B56: 0 | C56: 0 | D56: 0 | E56: 0 | F56: 0 | G56: 0 | H56: 0 | I56: 0 | J56: 0 | K56: 0 | L56: 0 | M56: 0
A58: ='General Inputs'!B23 -> Tariff R: Res Bairnsdale | B58: =B$4 -> 2006 | C58: =C$4 -> 2007 | D58: 2013 | E58: 2014 | F58: 2015 | G58: 2016 | H58: 2017 | I58: 2018 | J58: 2019 | K58: 2020 | L58: 2021 | M58: 2022
A59: ='General Inputs'!E23 -> Residential tariff
A60: =A42 -> Fixed ($/day) | B60: 0 | C60: 0 | D60: 0 | E60: 0 | F60: 0 | G60: =[47]Prop2017DistTar!E47 -> 0.2999 | H60: =[47]Prop2017DistTar!D47 -> 0.3223 | I60: 0 | J60: 0 | K60: 0 | L60: 0 | M60: 0
A61: =A$7 -> Peak Band 1 ($/GJ) | B61: 0 | C61: 0 | D61: 0 | E61: 0 | F61: 0 | G61: =[47]Prop2017DistTar!E48 -> 17.1387 | H61: =[47]Prop2017DistTar!D48 -> 18.4181 | I61: 0 | J61: 0 | K61: 0 | L61: 0 | M61: 0
A62: =A$8 -> Peak Band 2 ($/GJ) | B62: 0 | C62: 0 | D62: 0 | E62: 0 | F62: 0 | G62: =[47]Prop2017DistTar!E49 -> 11.3086 | H62: =[47]Prop2017DistTar!D49 -> 11.4552 | I62: 0 | J62: 0 | K62: 0 | L62: 0 | M62: 0
A63: =A$9 -> Peak Band 3 ($/GJ) | B63: 0 | C63: 0 | D63: 0 | E63: 0 | F63: 0 | G63: =[47]Prop2017DistTar!E50 -> 6.2083 | H63: =[47]Prop2017DistTar!D50 -> 6.2888 | I63: 0 | J63: 0 | K63: 0 | L63: 0 | M63: 0
A64: =A$10 -> Peak Band 4 ($/GJ) | B64: 0 | C64: 0 | D64: 0 | E64: 0 | F64: 0 | G64: =[47]Prop2017DistTar!D51 -> 0 | H64: =[47]Prop2017DistTar!E51 -> 0 | I64: 0 | J64: 0 | K64: 0 | L64: 0 | M64: 0
A65: =A$11 -> Peak Band 5 ($/GJ) | G65: 0 | H65: 0 | I65: 0
A66: =A$12 -> Peak Band 6 ($/GJ) | B66: 0 | C66: 0 | D66: 0 | E66: 0 | F66: 0 | G66: 0 | H66: 0 | I66: 0 | J66: 0 | K66: 0 | L66: 0 | M66: 0
A67: =A$13 -> Peak Band 7 ($/GJ) | B67: 0 | C67: 0 | D67: 0 | E67: 0 | F67: 0 | G67: 0 | H67: 0 | I67: 0 | J67: 0 | K67: 0 | L67: 0 | M67: 0
A68: =A$14 -> Off Peak Band 1 ($/GJ) | B68: 0 | C68: 0 | D68: 0 | E68: 0 | F68: 0 | G68: 0 | H68: 0 | I68: 0 | J68: 0 | K68: 0 | L68: 0 | M68: 0
A69: =A$15 -> Off Peak Band 2 ($/GJ) | B69: 0 | C69: 0 | D69: 0 | E69: 0 | F69: 0 | G69: 0 | H69: 0 | I69: 0 | J69: 0 | K69: 0 | L69: 0 | M69: 0
A70: =A$16 -> Off Peak Band 3 ($/GJ) | B70: 0 | C70: 0 | D70: 0 | E70: 0 | F70: 0 | G70: 0 | H70: 0 | I70: 0 | J70: 0 | K70: 0 | L70: 0 | M70: 0
A71: =A$17 -> Off Peak Band 4 ($/GJ) | B71: 0 | C71: 0 | D71: 0 | E71: 0 | F71: 0 | G71: 0 | H71: 0 | I71: 0 | J71: 0 | K71: 0 | L71: 0 | M71: 0
A72: =A$18 -> Off Peak Band 5 ($/GJ) | B72: 0 | C72: 0 | D72: 0 | E72: 0 | F72: 0 | G72: 0 | H72: 0 | I72: 0 | J72: 0 | K72: 0 | L72: 0 | M72: 0
A73: =A$19 -> Off Peak Band 6 ($/GJ) | B73: 0 | C73: 0 | D73: 0 | E73: 0 | F73: 0 | G73: 0 | H73: 0 | I73: 0 | J73: 0 | K73: 0 | L73: 0 | M73: 0
A74: =A$20 -> Off Peak Band 7 ($/GJ) | B74: 0 | C74: 0 | D74: 0 | E74: 0 | F74: 0 | G74: 0 | H74: 0 | I74: 0 | J74: 0 | K74: 0 | L74: 0 | M74: 0
A76: ='General Inputs'!B24 -> Tariff R: Res Albury | B76: =B$4 -> 2006 | C76: =C$4 -> 2007 | D76: 2013 | E76: 2014 | F76: 2015 | G76: 2016 | H76: 2017 | I76: 2018 | J76: 2019 | K76: 2020 | L76: 2021 | M76: 2022
A77: ='General Inputs'!E41 -> 0
A78: =A60 -> Fixed ($/day) | B78: 0 | C78: 0 | D78: 0 | E78: 0 | F78: 0 | G78: =[48]Prop2017DistTar!$E$8 -> 0.266 | H78: =[48]Prop2017DistTar!$D$8 -> 0.2549 | I78: 0 | J78: 0 | K78: 0 | L78: 0 | M78: 0
A79: =A$7 -> Peak Band 1 ($/GJ) | B79: 0 | C79: 0 | D79: 0 | E79: 0 | F79: 0 | G79: =[48]Prop2017DistTar!$E$9 -> 7.4931 | H79: =[48]Prop2017DistTar!$D$9 -> 8.1692 | I79: 0 | J79: 0 | K79: 0 | L79: 0 | M79: 0
A80: =A$8 -> Peak Band 2 ($/GJ) | B80: 0 | C80: 0 | D80: 0 | E80: 0 | F80: 0 | G80: =[48]Prop2017DistTar!$E$10 -> 5.1542 | H80: =[48]Prop2017DistTar!$D$10 -> 5.2214 | I80: 0 | J80: 0 | K80: 0 | L80: 0 | M80: 0
A81: =A$9 -> Peak Band 3 ($/GJ) | B81: 0 | C81: 0 | D81: 0 | E81: 0 | F81: 0 | G81: =[48]Prop2017DistTar!$E$11 -> 2.8295 | H81: =[48]Prop2017DistTar!$D$11 -> 2.8673 | I81: 0 | J81: 0 | K81: 0 | L81: 0 | M81: 0
A82: =A$10 -> Peak Band 4 ($/GJ) | B82: 0 | C82: 0 | D82: 0 | E82: 0 | F82: 0 | G82: =[47]Prop2017DistTar!D69 -> 0 | H82: =[47]Prop2017DistTar!E69 -> 0 | I82: 0 | J82: 0 | K82: 0 | L82: 0 | M82: 0
A83: =A$11 -> Peak Band 5 ($/GJ) | B83: 0 | C83: 0 | D83: 0 | E83: 0 | F83: 0 | G83: 0 | H83: 0 | I83: 0
A84: =A$12 -> Peak Band 6 ($/GJ) | B84: 0 | C84: 0 | D84: 0 | E84: 0 | F84: 0 | G84: 0 | H84: 0 | I84: 0 | J84: 0 | K84: 0 | L84: 0 | M84: 0
A85: =A$13 -> Peak Band 7 ($/GJ) | B85: 0 | C85: 0 | D85: 0 | E85: 0 | F85: 0 | G85: 0 | H85: 0 | I85: 0 | J85: 0 | K85: 0 | L85: 0 | M85: 0
A86: =A$14 -> Off Peak Band 1 ($/GJ) | B86: 0 | C86: 0 | D86: 0 | E86: 0 | F86: 0 | G86: 0 | H86: 0 | I86: 0 | J86: 0 | K86: 0 | L86: 0 | M86: 0
A87: =A$15 -> Off Peak Band 2 ($/GJ) | B87: 0 | C87: 0 | D87: 0 | E87: 0 | F87: 0 | G87: 0 | H87: 0 | I87: 0 | J87: 0 | K87: 0 | L87: 0 | M87: 0
A88: =A$16 -> Off Peak Band 3 ($/GJ) | B88: 0 | C88: 0 | D88: 0 | E88: 0 | F88: 0 | G88: 0 | H88: 0 | I88: 0 | J88: 0 | K88: 0 | L88: 0 | M88: 0
A89: =A$17 -> Off Peak Band 4 ($/GJ) | B89: 0 | C89: 0 | D89: 0 | E89: 0 | F89: 0 | G89: 0 | H89: 0 | I89: 0 | J89: 0 | K89: 0 | L89: 0 | M89: 0
A90: =A$18 -> Off Peak Band 5 ($/GJ) | B90: 0 | C90: 0 | D90: 0 | E90: 0 | F90: 0 | G90: 0 | H90: 0 | I90: 0 | J90: 0 | K90: 0 | L90: 0 | M90: 0
A91: =A$19 -> Off Peak Band 6 ($/GJ) | B91: 0 | C91: 0 | D91: 0 | E91: 0 | F91: 0 | G91: 0 | H91: 0 | I91: 0 | J91: 0 | K91: 0 | L91: 0 | M91: 0
A92: =A$20 -> Off Peak Band 7 ($/GJ) | B92: 0 | C92: 0 | D92: 0 | E92: 0 | F92: 0 | G92: 0 | H92: 0 | I92: 0 | J92: 0 | K92: 0 | L92: 0 | M92: 0
A94: ='General Inputs'!B25 -> Tariff C: Non- Res Central | B94: =B$4 -> 2006 | C94: =C$4 -> 2007 | D94: 2013 | E94: 2014 | F94: 2015 | G94: 2016 | H94: 2017 | I94: 2018 | J94: 2019 | K94: 2020 | L94: 2021 | M94: 2022
A95: ='General Inputs'!E25 -> Non- Residential tariff
A96: Fixed ($/day) | B96: 0 | C96: 0 | D96: 0 | E96: 0 | F96: 0 | G96: =[47]Prop2017DistTar!E14 -> 0.1823 | H96: =[47]Prop2017DistTar!D14 -> 0.1959 | I96: 0 | J96: 0 | K96: 0 | L96: 0 | M96: 0
A97: Peak Band 1 ($/GJ) | B97: 0 | C97: 0 | D97: 0 | E97: 0 | F97: 0 | G97: =[47]Prop2017DistTar!E15 -> 7.5633 | H97: =[47]Prop2017DistTar!D15 -> 8.1289 | I97: 0 | J97: 0 | K97: 0 | L97: 0 | M97: 0
A98: Peak Band 2 ($/GJ) | B98: 0 | C98: 0 | D98: 0 | E98: 0 | F98: 0 | G98: =[47]Prop2017DistTar!E16 -> 3.9547 | H98: =[47]Prop2017DistTar!D16 -> 3.9951 | I98: 0 | J98: 0 | K98: 0 | L98: 0 | M98: 0
A99: Peak Band 3 ($/GJ) | B99: 0 | C99: 0 | D99: 0 | E99: 0 | F99: 0 | G99: =[47]Prop2017DistTar!E17 -> 2.9545 | H99: =[47]Prop2017DistTar!D17 -> 2.9856 | I99: 0 | J99: 0 | K99: 0 | L99: 0 | M99: 0
A100: Peak Band 4 ($/GJ) | B100: 0 | C100: 0 | D100: 0 | E100: 0 | F100: 0 | G100: =[47]Prop2017DistTar!E18 -> 1.198 | H100: =[47]Prop2017DistTar!D18 -> 1.2107 | I100: 0 | J100: 0 | K100: 0 | L100: 0 | M100: 0
A101: Peak Band 5 ($/GJ) | B101: 0 | C101: 0 | D101: 0 | E101: 0 | F101: 0 | G101: 0 | H101: 0 | I101: 0 | J101: 0 | K101: 0 | L101: 0 | M101: 0
A102: Peak Band 6 ($/GJ) | B102: 0 | C102: 0 | D102: 0 | E102: 0 | F102: 0 | G102: 0 | H102: 0 | I102: 0 | J102: 0 | K102: 0 | L102: 0 | M102: 0
A103: Peak Band 7 ($/GJ) | B103: 0 | C103: 0 | D103: 0 | E103: 0 | F103: 0 | G103: 0 | H103: 0 | I103: 0 | J103: 0 | K103: 0 | L103: 0 | M103: 0
A104: Off Peak Band 1 ($/GJ) | B104: 0 | C104: 0 | D104: 0 | E104: 0 | F104: 0 | G104: 0 | H104: 0 | I104: 0 | J104: 0 | K104: 0 | L104: 0 | M104: 0
A105: Off Peak Band 2 ($/GJ) | B105: 0 | C105: 0 | D105: 0 | E105: 0 | F105: 0 | G105: 0 | H105: 0 | I105: 0 | J105: 0 | K105: 0 | L105: 0 | M105: 0
A106: Off Peak Band 3 ($/GJ) | B106: 0 | C106: 0 | D106: 0 | E106: 0 | F106: 0 | G106: 0 | H106: 0 | I106: 0 | J106: 0 | K106: 0 | L106: 0 | M106: 0
A107: Off Peak Band 4 ($/GJ) | B107: 0 | C107: 0 | D107: 0 | E107: 0 | F107: 0 | G107: 0 | H107: 0 | I107: 0 | J107: 0 | K107: 0 | L107: 0 | M107: 0
A108: Off Peak Band 5 ($/GJ) | B108: 0 | C108: 0 | D108: 0 | E108: 0 | F108: 0 | G108: 0 | H108: 0 | I108: 0 | J108: 0 | K108: 0 | L108: 0 | M108: 0
A109: Off Peak Band 6 ($/GJ) | B109: 0 | C109: 0 | D109: 0 | E109: 0 | F109: 0 | G109: 0 | H109: 0 | I109: 0 | J109: 0 | K109: 0 | L109: 0 | M109: 0
A110: Off Peak Band 7 ($/GJ) | B110: 0 | C110: 0 | D110: 0 | E110: 0 | F110: 0 | G110: 0 | H110: 0 | I110: 0 | J110: 0 | K110: 0 | L110: 0 | M110: 0
A112: ='General Inputs'!B26 -> Tariff C: Non- Res North | B112: =B$4 -> 2006 | C112: =C$4 -> 2007 | D112: 2013 | E112: 2014 | F112: 2015 | G112: 2016 | H112: 2017 | I112: 2018 | J112: 2019 | K112: 2020 | L112: 2021 | M112: 2022
A113: ='General Inputs'!E26 -> Non- Residential tariff
A114: =A96 -> Fixed ($/day) | B114: 0 | C114: 0 | D114: 0 | E114: 0 | F114: 0 | G114: =[47]Prop2017DistTar!E27 -> 0.1823 | H114: =[47]Prop2017DistTar!D27 -> 0.1959 | I114: 0 | J114: 0 | K114: 0 | L114: 0 | M114: 0
A115: =A$7 -> Peak Band 1 ($/GJ) | B115: 0 | C115: 0 | D115: 0 | E115: 0 | F115: 0 | G115: =[47]Prop2017DistTar!E28 -> 6.6558 | H115: =[47]Prop2017DistTar!D28 -> 7.2916 | I115: 0 | J115: 0 | K115: 0 | L115: 0 | M115: 0
A116: =A$8 -> Peak Band 2 ($/GJ) | B116: 0 | C116: 0 | D116: 0 | E116: 0 | F116: 0 | G116: =[47]Prop2017DistTar!E29 -> 3.4802 | H116: =[47]Prop2017DistTar!D29 -> 3.6106 | I116: 0 | J116: 0 | K116: 0 | L116: 0 | M116: 0
A117: =A$9 -> Peak Band 3 ($/GJ) | B117: 0 | C117: 0 | D117: 0 | E117: 0 | F117: 0 | G117: =[47]Prop2017DistTar!E30 -> 2.5998 | H117: =[47]Prop2017DistTar!D30 -> 2.6981 | I117: 0 | J117: 0 | K117: 0 | L117: 0 | M117: 0
A118: =A$10 -> Peak Band 4 ($/GJ) | B118: 0 | C118: 0 | D118: 0 | E118: 0 | F118: 0 | G118: =[47]Prop2017DistTar!E31 -> 1.0542 | H118: =[47]Prop2017DistTar!D31 -> 1.0941 | I118: 0 | J118: 0 | K118: 0 | L118: 0 | M118: 0
A119: =A$11 -> Peak Band 5 ($/GJ) | B119: 0 | C119: 0 | D119: 0 | E119: 0 | F119: 0 | G119: =[47]Prop2017DistTar!E32 -> 0 | H119: =[47]Prop2017DistTar!D32 -> 0 | I119: 0 | J119: 0 | K119: 0 | L119: 0 | M119: 0
A120: =A$12 -> Peak Band 6 ($/GJ) | B120: 0 | C120: 0 | D120: 0 | E120: 0 | F120: 0 | G120: 0 | H120: 0 | I120: 0 | J120: 0 | K120: 0 | L120: 0 | M120: 0
A121: =A$13 -> Peak Band 7 ($/GJ) | B121: 0 | C121: 0 | D121: 0 | E121: 0 | F121: 0 | G121: 0 | H121: 0 | I121: 0 | J121: 0 | K121: 0 | L121: 0 | M121: 0
A122: =A$14 -> Off Peak Band 1 ($/GJ) | B122: 0 | C122: 0 | D122: 0 | E122: 0 | F122: 0 | G122: 0 | H122: 0 | I122: 0 | J122: 0 | K122: 0 | L122: 0 | M122: 0
A123: =A$15 -> Off Peak Band 2 ($/GJ) | B123: 0 | C123: 0 | D123: 0 | E123: 0 | F123: 0 | G123: 0 | H123: 0 | I123: 0 | J123: 0 | K123: 0 | L123: 0 | M123: 0
A124: =A$16 -> Off Peak Band 3 ($/GJ) | B124: 0 | C124: 0 | D124: 0 | E124: 0 | F124: 0 | G124: 0 | H124: 0 | I124: 0 | J124: 0 | K124: 0 | L124: 0 | M124: 0
A125: =A$17 -> Off Peak Band 4 ($/GJ) | B125: 0 | C125: 0 | D125: 0 | E125: 0 | F125: 0 | G125: 0 | H125: 0 | I125: 0 | J125: 0 | K125: 0 | L125: 0 | M125: 0
A126: =A$18 -> Off Peak Band 5 ($/GJ) | B126: 0 | C126: 0 | D126: 0 | E126: 0 | F126: 0 | G126: 0 | H126: 0 | I126: 0 | J126: 0 | K126: 0 | L126: 0 | M126: 0
A127: =A$19 -> Off Peak Band 6 ($/GJ) | B127: 0 | C127: 0 | D127: 0 | E127: 0 | F127: 0 | G127: 0 | H127: 0 | I127: 0 | J127: 0 | K127: 0 | L127: 0 | M127: 0
A128: =A$20 -> Off Peak Band 7 ($/GJ) | B128: 0 | C128: 0 | D128: 0 | E128: 0 | F128: 0 | G128: 0 | H128: 0 | I128: 0 | J128: 0 | K128: 0 | L128: 0 | M128: 0
A130: ='General Inputs'!B27 -> Tariff C: Non- Res MV (Vic) | B130: =B$4 -> 2006 | C130: =C$4 -> 2007 | D130: 2013 | E130: 2014 | F130: 2015 | G130: 2016 | H130: 2017 | I130: 2018 | J130: 2019 | K130: 2020 | L130: 2021 | M130: 2022
A131: ='General Inputs'!E27 -> Non- Residential tariff
A132: Fixed ($/day) | B132: 0 | C132: 0 | D132: 0 | E132: 0 | F132: 0 | G132: =[47]Prop2017DistTar!E40 -> 0.2528 | H132: =[47]Prop2017DistTar!D40 -> 0.2493 | I132: 0 | J132: 0 | K132: 0 | L132: 0 | M132: 0
A133: =A$7 -> Peak Band 1 ($/GJ) | B133: 0 | C133: 0 | D133: 0 | E133: 0 | F133: 0 | G133: =[47]Prop2017DistTar!E41 -> 5.9531 | H133: =[47]Prop2017DistTar!D41 -> 6.5196 | I133: 0 | J133: 0 | K133: 0 | L133: 0 | M133: 0
A134: =A$8 -> Peak Band 2 ($/GJ) | B134: 0 | C134: 0 | D134: 0 | E134: 0 | F134: 0 | G134: =[47]Prop2017DistTar!E42 -> 3.9727 | H134: =[47]Prop2017DistTar!D42 -> 4.0097 | I134: 0 | J134: 0 | K134: 0 | L134: 0 | M134: 0
A135: =A$9 -> Peak Band 3 ($/GJ) | B135: 0 | C135: 0 | D135: 0 | E135: 0 | F135: 0 | G135: =[47]Prop2017DistTar!E43 -> 2.9679 | H135: =[47]Prop2017DistTar!D43 -> 2.9983 | I135: 0 | J135: 0 | K135: 0 | L135: 0 | M135: 0
A136: =A$10 -> Peak Band 4 ($/GJ) | B136: 0 | C136: 0 | D136: 0 | E136: 0 | F136: 0 | G136: =[47]Prop2017DistTar!E44 -> 1.4057 | H136: =[47]Prop2017DistTar!D44 -> 1.3627 | I136: 0 | J136: 0 | K136: 0 | L136: 0 | M136: 0
A137: =A$11 -> Peak Band 5 ($/GJ) | B137: 0 | C137: 0 | D137: 0 | E137: 0 | F137: 0 | G137: 0 | H137: 0 | I137: 0 | J137: 0 | K137: 0 | L137: 0 | M137: 0
A138: =A$12 -> Peak Band 6 ($/GJ) | G138: 0 | H138: 0 | I138: 0
A139: =A$13 -> Peak Band 7 ($/GJ) | B139: 0 | C139: 0 | D139: 0 | E139: 0 | F139: 0 | G139: 0 | H139: 0 | I139: 0 | J139: 0 | K139: 0 | L139: 0 | M139: 0
A140: =A$14 -> Off Peak Band 1 ($/GJ) | B140: 0 | C140: 0 | D140: 0 | E140: 0 | F140: 0 | G140: 0 | H140: 0 | I140: 0 | J140: 0 | K140: 0 | L140: 0 | M140: 0
A141: =A$15 -> Off Peak Band 2 ($/GJ) | B141: 0 | C141: 0 | D141: 0 | E141: 0 | F141: 0 | G141: 0 | H141: 0 | I141: 0 | J141: 0 | K141: 0 | L141: 0 | M141: 0
A142: =A$16 -> Off Peak Band 3 ($/GJ) | B142: 0 | C142: 0 | D142: 0 | E142: 0 | F142: 0 | G142: 0 | H142: 0 | I142: 0 | J142: 0 | K142: 0 | L142: 0 | M142: 0
A143: =A$17 -> Off Peak Band 4 ($/GJ) | B143: 0 | C143: 0 | D143: 0 | E143: 0 | F143: 0 | G143: 0 | H143: 0 | I143: 0 | J143: 0 | K143: 0 | L143: 0 | M143: 0
A144: =A$18 -> Off Peak Band 5 ($/GJ) | B144: 0 | C144: 0 | D144: 0 | E144: 0 | F144: 0 | G144: 0 | H144: 0 | I144: 0 | J144: 0 | K144: 0 | L144: 0 | M144: 0
A145: =A$19 -> Off Peak Band 6 ($/GJ) | B145: 0 | C145: 0 | D145: 0 | E145: 0 | F145: 0 | G145: 0 | H145: 0 | I145: 0 | J145: 0 | K145: 0 | L145: 0 | M145: 0
A146: =A$20 -> Off Peak Band 7 ($/GJ) | B146: 0 | C146: 0 | D146: 0 | E146: 0 | F146: 0 | G146: 0 | H146: 0 | I146: 0 | J146: 0 | K146: 0 | L146: 0 | M146: 0
A148: ='General Inputs'!B28 -> Tariff C: Non- Res Bairnsdale | B148: =B$4 -> 2006 | C148: =C$4 -> 2007 | D148: 2013 | E148: 2014 | F148: 2015 | G148: 2016 | H148: 2017 | I148: 2018 | J148: 2019 | K148: 2020 | L148: 2021 | M148: 2022
A149: ='General Inputs'!E28 -> Non- Residential tariff
A150: =A132 -> Fixed ($/day) | B150: 0 | C150: 0 | D150: 0 | E150: 0 | F150: 0 | G150: =[47]Prop2017DistTar!E53 -> 0.2999 | H150: =[47]Prop2017DistTar!D53 -> 0.3223 | I150: 0 | J150: 0 | K150: 0 | L150: 0 | M150: 0
A151: =A$7 -> Peak Band 1 ($/GJ) | B151: 0 | C151: 0 | D151: 0 | E151: 0 | F151: 0 | G151: =[47]Prop2017DistTar!E54 -> 12.8116 | H151: =[47]Prop2017DistTar!D54 -> 13.367 | I151: 0 | J151: 0 | K151: 0 | L151: 0 | M151: 0
A152: =A$8 -> Peak Band 2 ($/GJ) | B152: 0 | C152: 0 | D152: 0 | E152: 0 | F152: 0 | G152: =[47]Prop2017DistTar!E55 -> 6.6991 | H152: =[47]Prop2017DistTar!D55 -> 6.7859 | I152: 0 | J152: 0 | K152: 0 | L152: 0 | M152: 0
A153: =A$9 -> Peak Band 3 ($/GJ) | B153: 0 | C153: 0 | D153: 0 | E153: 0 | F153: 0 | G153: =[47]Prop2017DistTar!E56 -> 5.0045 | H153: =[47]Prop2017DistTar!D56 -> 5.0694 | I153: 0 | J153: 0 | K153: 0 | L153: 0 | M153: 0
A154: =A$10 -> Peak Band 4 ($/GJ) | B154: 0 | C154: 0 | D154: 0 | E154: 0 | F154: 0 | G154: =[47]Prop2017DistTar!E57 -> 2.0294 | H154: =[47]Prop2017DistTar!D57 -> 2.0557 | I154: 0 | J154: 0 | K154: 0 | L154: 0 | M154: 0
A155: =A$11 -> Peak Band 5 ($/GJ) | G155: 0 | H155: 0 | I155: 0
A156: =A$12 -> Peak Band 6 ($/GJ) | B156: 0 | C156: 0 | D156: 0 | E156: 0 | F156: 0 | G156: 0 | H156: 0 | I156: 0 | J156: 0 | K156: 0 | L156: 0 | M156: 0
A157: =A$13 -> Peak Band 7 ($/GJ) | B157: 0 | C157: 0 | D157: 0 | E157: 0 | F157: 0 | G157: 0 | H157: 0 | I157: 0 | J157: 0 | K157: 0 | L157: 0 | M157: 0
A158: =A$14 -> Off Peak Band 1 ($/GJ) | B158: 0 | C158: 0 | D158: 0 | E158: 0 | F158: 0 | G158: 0 | H158: 0 | I158: 0 | J158: 0 | K158: 0 | L158: 0 | M158: 0
A159: =A$15 -> Off Peak Band 2 ($/GJ) | B159: 0 | C159: 0 | D159: 0 | E159: 0 | F159: 0 | G159: 0 | H159: 0 | I159: 0 | J159: 0 | K159: 0 | L159: 0 | M159: 0
A160: =A$16 -> Off Peak Band 3 ($/GJ) | B160: 0 | C160: 0 | D160: 0 | E160: 0 | F160: 0 | G160: 0 | H160: 0 | I160: 0 | J160: 0 | K160: 0 | L160: 0 | M160: 0
A161: =A$17 -> Off Peak Band 4 ($/GJ) | B161: 0 | C161: 0 | D161: 0 | E161: 0 | F161: 0 | G161: 0 | H161: 0 | I161: 0 | J161: 0 | K161: 0 | L161: 0 | M161: 0
A162: =A$18 -> Off Peak Band 5 ($/GJ) | B162: 0 | C162: 0 | D162: 0 | E162: 0 | F162: 0 | G162: 0 | H162: 0 | I162: 0 | J162: 0 | K162: 0 | L162: 0 | M162: 0
A163: =A$19 -> Off Peak Band 6 ($/GJ) | B163: 0 | C163: 0 | D163: 0 | E163: 0 | F163: 0 | G163: 0 | H163: 0 | I163: 0 | J163: 0 | K163: 0 | L163: 0 | M163: 0
A164: =A$20 -> Off Peak Band 7 ($/GJ) | B164: 0 | C164: 0 | D164: 0 | E164: 0 | F164: 0 | G164: 0 | H164: 0 | I164: 0 | J164: 0 | K164: 0 | L164: 0 | M164: 0
A166: ='General Inputs'!B29 -> Tariff C: Non- Res Albury | B166: =B$4 -> 2006 | C166: =C$4 -> 2007 | D166: 2013 | E166: 2014 | F166: 2015 | G166: 2016 | H166: 2017 | I166: 2018 | J166: 2019 | K166: 2020 | L166: 2021 | M166: 2022
A167: ='General Inputs'!E46 -> 0
A168: =A150 -> Fixed ($/day) | B168: 0 | C168: 0 | D168: 0 | E168: 0 | F168: 0 | G168: =[48]Prop2017DistTar!$E$14 -> 0.266 | H168: =[48]Prop2017DistTar!$D$14 -> 0.2549 | I168: 0 | J168: 0 | K168: 0 | L168: 0 | M168: 0
A169: =A$7 -> Peak Band 1 ($/GJ) | B169: 0 | C169: 0 | D169: 0 | E169: 0 | F169: 0 | G169: =[48]Prop2017DistTar!$E$15 -> 5.6352 | H169: =[48]Prop2017DistTar!$D$15 -> 6.1204 | I169: 0 | J169: 0 | K169: 0 | L169: 0 | M169: 0
A170: =A$8 -> Peak Band 2 ($/GJ) | B170: 0 | C170: 0 | D170: 0 | E170: 0 | F170: 0 | G170: =[48]Prop2017DistTar!$E$16 -> 2.9587 | H170: =[48]Prop2017DistTar!$D$16 -> 3.1469 | I170: 0 | J170: 0 | K170: 0 | L170: 0 | M170: 0
A171: =A$9 -> Peak Band 3 ($/GJ) | B171: 0 | C171: 0 | D171: 0 | E171: 0 | F171: 0 | G171: =[48]Prop2017DistTar!$E$17 -> 2.2104 | H171: =[48]Prop2017DistTar!$D$17 -> 2.2391 | I171: 0 | J171: 0 | K171: 0 | L171: 0 | M171: 0
A172: =A$10 -> Peak Band 4 ($/GJ) | B172: 0 | C172: 0 | D172: 0 | E172: 0 | F172: 0 | G172: =[48]Prop2017DistTar!$E$18 -> 0.8961 | H172: =[48]Prop2017DistTar!$D$18 -> 0.9077 | I172: 0 | J172: 0 | K172: 0 | L172: 0 | M172: 0
A173: =A$11 -> Peak Band 5 ($/GJ) | G173: 0 | H173: 0 | I173: 0
A174: =A$12 -> Peak Band 6 ($/GJ) | B174: 0 | C174: 0 | D174: 0 | E174: 0 | F174: 0 | G174: 0 | H174: 0 | I174: 0 | J174: 0 | K174: 0 | L174: 0 | M174: 0
A175: =A$13 -> Peak Band 7 ($/GJ) | B175: 0 | C175: 0 | D175: 0 | E175: 0 | F175: 0 | G175: 0 | H175: 0 | I175: 0 | J175: 0 | K175: 0 | L175: 0 | M175: 0
A176: =A$14 -> Off Peak Band 1 ($/GJ) | B176: 0 | C176: 0 | D176: 0 | E176: 0 | F176: 0 | G176: 0 | H176: 0 | I176: 0 | J176: 0 | K176: 0 | L176: 0 | M176: 0
A177: =A$15 -> Off Peak Band 2 ($/GJ) | B177: 0 | C177: 0 | D177: 0 | E177: 0 | F177: 0 | G177: 0 | H177: 0 | I177: 0 | J177: 0 | K177: 0 | L177: 0 | M177: 0
A178: =A$16 -> Off Peak Band 3 ($/GJ) | B178: 0 | C178: 0 | D178: 0 | E178: 0 | F178: 0 | G178: 0 | H178: 0 | I178: 0 | J178: 0 | K178: 0 | L178: 0 | M178: 0
A179: =A$17 -> Off Peak Band 4 ($/GJ) | B179: 0 | C179: 0 | D179: 0 | E179: 0 | F179: 0 | G179: 0 | H179: 0 | I179: 0 | J179: 0 | K179: 0 | L179: 0 | M179: 0
A180: =A$18 -> Off Peak Band 5 ($/GJ) | B180: 0 | C180: 0 | D180: 0 | E180: 0 | F180: 0 | G180: 0 | H180: 0 | I180: 0 | J180: 0 | K180: 0 | L180: 0 | M180: 0
A181: =A$19 -> Off Peak Band 6 ($/GJ) | B181: 0 | C181: 0 | D181: 0 | E181: 0 | F181: 0 | G181: 0 | H181: 0 | I181: 0 | J181: 0 | K181: 0 | L181: 0 | M181: 0
A182: =A$20 -> Off Peak Band 7 ($/GJ) | B182: 0 | C182: 0 | D182: 0 | E182: 0 | F182: 0 | G182: 0 | H182: 0 | I182: 0 | J182: 0 | K182: 0 | L182: 0 | M182: 0
A184: ='General Inputs'!B30 -> Tariff D: Central | B184: =B$4 -> 2006 | C184: =C$4 -> 2007 | D184: 2013 | E184: 2014 | F184: 2015 | G184: 2016 | H184: 2017 | I184: 2018 | J184: 2019 | K184: 2020 | L184: 2021 | M184: 2022
A185: ='General Inputs'!E30 -> Demand customers in region 1
A186: Band 1 ($/GJ) | B186: 0 | C186: 0 | D186: 0 | E186: 0 | F186: 0 | G186: =[47]Prop2017DistTar!E60 -> 1393.1396 | H186: =[47]Prop2017DistTar!D60 -> 1453.5348 | I186: 0 | J186: 0 | K186: 0 | L186: 0 | M186: 0
A187: Band 2 ($/GJ) | B187: 0 | C187: 0 | D187: 0 | E187: 0 | F187: 0 | G187: =[47]Prop2017DistTar!E61 -> 851.6764 | H187: =[47]Prop2017DistTar!D61 -> 888.5981 | I187: 0 | J187: 0 | K187: 0 | L187: 0 | M187: 0
A188: Band 3 ($/GJ) | B188: 0 | C188: 0 | D188: 0 | E188: 0 | F188: 0 | G188: =[47]Prop2017DistTar!E62 -> 155.5336 | H188: =[47]Prop2017DistTar!D62 -> 162.2763 | I188: 0 | J188: 0 | K188: 0 | L188: 0 | M188: 0
A189: Band 4 ($/GJ) | B189: 0 | C189: 0 | D189: 0 | E189: 0 | F189: 0 | G189: 0 | H189: 0 | I189: 0 | J189: 0 | K189: 0 | L189: 0 | M189: 0
A190: Band 5 ($/GJ) | B190: 0 | C190: 0 | D190: 0 | E190: 0 | F190: 0 | G190: 0 | H190: 0 | I190: 0 | J190: 0 | K190: 0 | L190: 0 | M190: 0
A191: Band 6 ($/GJ) | B191: 0 | C191: 0 | D191: 0 | E191: 0 | F191: 0 | G191: 0 | H191: 0 | I191: 0 | J191: 0 | K191: 0 | L191: 0 | M191: 0
A192: Band 7 ($/GJ) | B192: 0 | C192: 0 | D192: 0 | E192: 0 | F192: 0 | G192: 0 | H192: 0 | I192: 0 | J192: 0 | K192: 0 | L192: 0 | M192: 0
A194: ='General Inputs'!B31 -> Tariff D: North | B194: =B$4 -> 2006 | C194: =C$4 -> 2007 | D194: 2013 | E194: 2014 | F194: 2015 | G194: 2016 | H194: 2017 | I194: 2018 | J194: 2019 | K194: 2020 | L194: 2021 | M194: 2022
A195: ='General Inputs'!E31 -> Demand customers in region 2
A196: =A158 -> Off Peak Band 1 ($/GJ) | B196: 0 | C196: 0 | D196: 0 | E196: 0 | F196: 0 | G196: =[47]Prop2017DistTar!E65 -> 1393.1396 | H196: =[47]Prop2017DistTar!D65 -> 1453.5348 | I196: 0 | J196: 0 | K196: 0 | L196: 0 | M196: 0
A197: Off Peak Band 2 ($/GJ) | B197: 0 | C197: 0 | D197: 0 | E197: 0 | F197: 0 | G197: =[47]Prop2017DistTar!E66 -> 851.6764 | H197: =[47]Prop2017DistTar!D66 -> 888.5981 | I197: 0 | J197: 0 | K197: 0 | L197: 0 | M197: 0
A198: Off Peak Band 3 ($/GJ) | B198: 0 | C198: 0 | D198: 0 | E198: 0 | F198: 0 | G198: =[47]Prop2017DistTar!E67 -> 155.5336 | H198: =[47]Prop2017DistTar!D67 -> 162.2763 | I198: 0 | J198: 0 | K198: 0 | L198: 0 | M198: 0
A199: Off Peak Band 4 ($/GJ) | B199: 0 | C199: 0 | D199: 0 | E199: 0 | F199: 0 | G199: 0 | H199: 0 | I199: 0 | J199: 0 | K199: 0 | L199: 0 | M199: 0
A200: Off Peak Band 5 ($/GJ) | B200: 0 | C200: 0 | D200: 0 | E200: 0 | F200: 0 | G200: 0 | H200: 0 | I200: 0 | J200: 0 | K200: 0 | L200: 0 | M200: 0
A201: Off Peak Band 6 ($/GJ) | B201: 0 | C201: 0 | D201: 0 | E201: 0 | F201: 0 | G201: 0 | H201: 0 | I201: 0 | J201: 0 | K201: 0 | L201: 0 | M201: 0
A202: Band 7 ($/GJ) | B202: 0 | C202: 0 | D202: 0 | E202: 0 | F202: 0 | G202: 0 | H202: 0 | I202: 0 | J202: 0 | K202: 0 | L202: 0 | M202: 0
A204: ='General Inputs'!B32 -> Tariff D: MV (Vic) | B204: =B$4 -> 2006 | C204: =C$4 -> 2007 | D204: 2013 | E204: 2014 | F204: 2015 | G204: 2016 | H204: 2017 | I204: 2018 | J204: 2019 | K204: 2020 | L204: 2021 | M204: 2022
A205: ='General Inputs'!E32 -> Demand customers in region 3
A206: =A186 -> Band 1 ($/GJ) | B206: 0 | C206: 0 | D206: 0 | E206: 0 | F206: 0 | G206: =[47]Prop2017DistTar!E70 -> 1623.8716 | H206: =[47]Prop2017DistTar!D70 -> 1694.2694 | I206: 0 | J206: 0 | K206: 0 | L206: 0 | M206: 0
A207: Band 2 ($/GJ) | B207: 0 | C207: 0 | D207: 0 | E207: 0 | F207: 0 | G207: =[47]Prop2017DistTar!E71 -> 1002.0312 | H207: =[47]Prop2017DistTar!D71 -> 1045.4711 | I207: 0 | J207: 0 | K207: 0 | L207: 0 | M207: 0
A208: Band 3 ($/GJ) | B208: 0 | C208: 0 | D208: 0 | E208: 0 | F208: 0 | G208: =[47]Prop2017DistTar!E72 -> 170.6635 | H208: =[47]Prop2017DistTar!D72 -> 178.0621 | I208: 0 | J208: 0 | K208: 0 | L208: 0 | M208: 0
A209: Band 4 ($/GJ) | B209: 0 | C209: 0 | D209: 0 | E209: 0 | F209: 0 | G209: 0 | H209: 0 | I209: 0 | J209: 0 | K209: 0 | L209: 0 | M209: 0
A210: Band 5 ($/GJ) | B210: 0 | C210: 0 | D210: 0 | E210: 0 | F210: 0 | G210: 0 | H210: 0 | I210: 0 | J210: 0 | K210: 0 | L210: 0 | M210: 0
A211: Band 6 ($/GJ) | B211: 0 | C211: 0 | D211: 0 | E211: 0 | F211: 0 | G211: 0 | H211: 0 | I211: 0 | J211: 0 | K211: 0 | L211: 0 | M211: 0
A212: Band 7 ($/GJ) | B212: 0 | C212: 0 | D212: 0 | E212: 0 | F212: 0 | G212: 0 | H212: 0 | I212: 0 | J212: 0 | K212: 0 | L212: 0 | M212: 0
A214: ='General Inputs'!B33 -> Tariff D: Bairnsdale | B214: =B$4 -> 2006 | C214: =C$4 -> 2007 | D214: 2013 | E214: 2014 | F214: 2015 | G214: 2016 | H214: 2017 | I214: 2018 | J214: 2019 | K214: 2020 | L214: 2021 | M214: 2022
A215: ='General Inputs'!E33 -> Demand customers in region 4
... 30 more rows

Sheet Cost allocators
A1: Cost Allocators
A3: Service Cost Allocator
A4: Reference Services (%) | B4: =100%-SUM(B5:B5) -> 0.9840400269
A5: Ancillary Reference Services (%) | B5: =((('Volume Inputs'!B186*'Tariff Inputs'!C236)+('Volume Inputs'!C186*'Tariff Inputs'!C239)+('Volume Inputs'!D186*'Tariff Inputs'!C242)+('Volume Inputs'!E186*'Tariff Inputs'!C245)+('Volume Inputs'!F186*'Tariff Inputs'!C248)+('Volume Inputs'!G186*'Tariff Inputs'!C251))/1000000)*(1+'General Inputs'!B6)/'PTRM Inputs'!B10 -> 0.01595997306
A6: Return on Capital Component | B6: 0
A7: Return of Capital Component | B7: 0
A8: Opex Component | B8: 1
A10: Tariff D Zonal Allocator Selection
A11: ='FDC Calculations'!A12 -> Return on capital | B11: Assets
A12: ='FDC Calculations'!A13 -> Return of capital | B12: Assets
A13: ='FDC Calculations'!A14 -> O&M | B13: Volume and Customer No
A14: ='FDC Calculations'!A15 -> Carry-over amounts | B14: Volume and Customer No
A15: ='FDC Calculations'!A16 -> Benchmark Tax liability | B15: Assets
A17: Tariff R+C Allocator Selection | C17: =TRANSPOSE('General Inputs'!B20:B34) -> Tariff R: Res Central | D17: Tariff R: Res North | E17: Tariff R: Res MV (Vic) | F17: Tariff R: Res Bairnsdale | G17: Tariff R: Res Albury | H17: Tariff C: Non- Res Central | I17: Tariff C: Non- Res North | J17: Tariff C: Non- Res MV (Vic) | K17: ='General Inputs'!B28 -> Tariff C: Non- Res Bairnsdale | L17: ='General Inputs'!B29 -> Tariff C: Non- Res Albury | M17: Total
A18: =A11 -> Return on capital | B18: Volume and Customer No | C18: =IF($B18=$A$26,C$26/SUM($C$26:$L$26),IF($B18=$A$27,C$27/SUM($C$27:$L$27),C$28/SUM($C$28:$L$28))) -> 0.7349129957 | D18: =IF($B18=$A$26,D$26/SUM($C$26:$L$26),IF($B18=$A$27,D$27/SUM($C$27:$L$27),D$28/SUM($C$28:$L$28))) -> 0.0999010106 | E18: 0.009356059397 | F18: 0.004194861776 | G18: 0.028079482 | H18: 0.1033794184 | I18: 0.01339096017 | J18: 0.001145517239 | K18: 0.001141008189 | L18: 0.004498686486 | M18: =SUM(C18:L18) -> 1
A19: =A12 -> Return of capital | B19: Volume and Customer No | C19: =IF($B19=$A$26,C$26/SUM($C$26:$L$26),IF($B19=$A$27,C$27/SUM($C$27:$L$27),C$28/SUM($C$28:$L$28))) -> 0.7349129957 | D19: 0.0999010106 | E19: 0.009356059397 | F19: 0.004194861776 | G19: 0.028079482 | H19: 0.1033794184 | I19: 0.01339096017 | J19: 0.001145517239 | K19: 0.001141008189 | L19: =IF($B19=$A$26,L$26/SUM($C$26:$L$26),IF($B19=$A$27,L$27/SUM($C$27:$L$27),L$28/SUM($C$28:$L$28))) -> 0.004498686486 | M19: =SUM(C19:L19) -> 1
A20: =A13 -> O&M | B20: Volume and Customer No | C20: =IF($B20=$A$26,C$26/SUM($C$26:$L$26),IF($B20=$A$27,C$27/SUM($C$27:$L$27),C$28/SUM($C$28:$L$28))) -> 0.7349129957 | D20: 0.0999010106 | E20: 0.009356059397 | F20: 0.004194861776 | G20: 0.028079482 | H20: 0.1033794184 | I20: 0.01339096017 | J20: 0.001145517239 | K20: =IF($B20=$A$26,K$26/SUM($C$26:$L$26),IF($B20=$A$27,K$27/SUM($C$27:$L$27),K$28/SUM($C$28:$L$28))) -> 0.001141008189 | L20: =IF($B20=$A$26,L$26/SUM($C$26:$L$26),IF($B20=$A$27,L$27/SUM($C$27:$L$27),L$28/SUM($C$28:$L$28))) -> 0.004498686486 | M20: 1
A21: =A14 -> Carry-over amounts | B21: Volume and Customer No | C21: =IF($B21=$A$26,C$26/SUM($C$26:$L$26),IF($B21=$A$27,C$27/SUM($C$27:$L$27),C$28/SUM($C$28:$L$28))) -> 0.7349129957 | D21: 0.0999010106 | E21: 0.009356059397 | F21: 0.004194861776 | G21: 0.028079482 | H21: 0.1033794184 | I21: 0.01339096017 | J21: 0.001145517239 | K21: 0.001141008189 | L21: 0.004498686486 | M21: 1
A22: =A15 -> Benchmark Tax liability | B22: Volume and Customer No | C22: =IF($B22=$A$26,C$26/SUM($C$26:$L$26),IF($B22=$A$27,C$27/SUM($C$27:$L$27),C$28/SUM($C$28:$L$28))) -> 0.7349129957 | D22: 0.0999010106 | E22: 0.009356059397 | F22: 0.004194861776 | G22: 0.028079482 | H22: 0.1033794184 | I22: 0.01339096017 | J22: 0.001145517239 | K22: 0.001141008189 | L22: 0.004498686486 | M22: 1
A24: Allocators (Percentages) | B24: Total | C24: =C$17 -> Tariff R: Res Central | D24: =D$17 -> Tariff R: Res North | E24: Tariff R: Res MV (Vic) | F24: Tariff R: Res Bairnsdale | G24: Tariff R: Res Albury | H24: Tariff C: Non- Res Central | I24: Tariff C: Non- Res North | J24: Tariff C: Non- Res MV (Vic) | K24: Tariff C: Non- Res Bairnsdale | L24: Tariff C: Non- Res Albury | M24: ='General Inputs'!B30 -> Tariff D: Central | N24: ='General Inputs'!B31 -> Tariff D: North | O24: ='General Inputs'!B32 -> Tariff D: MV (Vic) | P24: ='General Inputs'!B33 -> Tariff D: Bairnsdale | Q24: ='General Inputs'!B34 -> Tariff D: Albury
A25: Assets | B25: =SUM(C25:Q25) -> 0.02083735075 | M25: ='DORC Calculations'!B14/'DORC Calculations'!J5 -> 0.01423220974 | N25: ='DORC Calculations'!B15/'DORC Calculations'!J5 -> 0.005992509363 | O25: ='DORC Calculations'!B16/'DORC Calculations'!J5 -> 0.000234082397 | P25: ='DORC Calculations'!B17/'DORC Calculations'!J5 -> 0.0001 | Q25: ='DORC Calculations'!C17/'DORC Calculations'!K5 -> 0.0002785492476
A26: Customer Number | B26: =SUM(C26:Q26) -> 1 | C26: =C42/SUM($C$42:$Q$42) -> 0.8004362347 | D26: 0.1121275308 | E26: 0.0116650129 | F26: 0.005631926517 | G26: 0.03219064792 | H26: 0.03048555888 | I26: 0.004948193233 | J26: 0.0005156264963 | K26: 0.0001571410846 | L26: 0.001434889023 | M26: 0.0003068363648 | N26: 7.475422139e-05 | O26: 1.094727091e-05 | P26: 3.12779169e-06 | Q26: 1.157282925e-05
A27: Volume - Total | B27: 1 | C27: =C43/SUM($C$43:$Q$43) -> 0.6689673146 | D27: 0.08761706541 | E27: 0.007041727848 | F27: 0.002755385749 | G27: 0.02395217545 | H27: 0.1762138535 | I27: 0.02182602973 | J27: 0.001774749516 | K27: 0.002124219419 | L27: 0.007559898017 | M27: 0.0001132679879 | N27: 3.711636079e-05 | O27: 6.963204132e-06 | P27: 4.494586542e-07 | Q27: 9.783660697e-06
A28: Volume and Customer No | B28: 1 | C28: =$B$29*C26+$B$30*C27 -> 0.7347017747 | D28: =$B$29*D26+$B$30*D27 -> 0.09987229809 | E28: 0.009353370376 | F28: 0.004193656133 | G28: 0.02807141169 | H28: 0.1033497062 | I28: =$B$29*I26+$B$30*I27 -> 0.01338711148 | J28: 0.001145188006 | K28: 0.001140680252 | L28: 0.00449739352 | M28: 0.0002100521763 | N28: 5.593529109e-05 | O28: 8.955237523e-06 | P28: 1.788625172e-06 | Q28: 1.067824497e-05
A29: % Customer | B29: 0.5
A30: % Volume | B30: 0.5
A31: Ancillary Reference Services
A32: Meter and Gas Installation Test | B32: ='[46]PTRM Input'!J21/'[46]PTRM Input'!$J$28 -> 0.003264147825
A33: Disconnection | B33: ='[46]PTRM Input'!J22/'[46]PTRM Input'!$J$28 -> 0.2052168646
A34: Reconnection | B34: ='[46]PTRM Input'!J23/'[46]PTRM Input'!$J$28 -> 0.1051704481
A35: Meter Removal | B35: ='[46]PTRM Input'!J24/'[46]PTRM Input'!$J$28 -> 0.04157463468
A36: Meter Reinstallation | B36: ='[46]PTRM Input'!J25/'[46]PTRM Input'!$J$28 -> 0.1683142786
A37: Special Meter Read - Metro | B37: ='[46]PTRM Input'!J26/'[46]PTRM Input'!$J$28 -> 0.3384380214
A38: Special Meter Read - Non Metro | B38: ='[46]PTRM Input'!J27/'[46]PTRM Input'!$J$28 -> 0.1380216048
A40: Allocators (Amounts) | C40: =C$24 -> Tariff R: Res Central | D40: =D$24 -> Tariff R: Res North | E40: Tariff R: Res MV (Vic) | F40: Tariff R: Res Bairnsdale | G40: Tariff R: Res Albury | H40: Tariff C: Non- Res Central | I40: Tariff C: Non- Res North | J40: Tariff C: Non- Res MV (Vic) | K40: Tariff C: Non- Res Bairnsdale | L40: Tariff C: Non- Res Albury | M40: =M$24 -> Tariff D: Central | N40: =N$24 -> Tariff D: North | O40: =O$24 -> Tariff D: MV (Vic) | P40: =P$24 -> Tariff D: Bairnsdale | Q40: =Q$24 -> Tariff D: Albury
A41: Assets | C41: 0 | F41: 0 | M41: ='DORC Calculations'!B14 -> 22993353.62 | N41: ='DORC Calculations'!B15 -> 9681412.05 | O41: ='DORC Calculations'!B16 -> 378180.1582 | P41: ='DORC Calculations'!B17 -> 161558.5636 | Q41: ='DORC Calculations'!C17 -> 161558.5636
A42: Customer Number | C42: =AVERAGE('Connection Numbers Inputs'!B$5:B$9) -> 511821.9588 | D42: =AVERAGE('Connection Numbers Inputs'!C$5:C$9) -> 71697.56934 | E42: =AVERAGE('Connection Numbers Inputs'!D$5:D$9) -> 7458.944879 | F42: =AVERAGE('Connection Numbers Inputs'!E$5:E$9) -> 3601.215858 | G42: =AVERAGE('Connection Numbers Inputs'!F$5:F$9) -> 20583.62648 | H42: =AVERAGE('Connection Numbers Inputs'!G$5:G$9) -> 19493.34348 | I42: =AVERAGE('Connection Numbers Inputs'!H$5:H$9) -> 3164.017124 | J42: =AVERAGE('Connection Numbers Inputs'!I$5:I$9) -> 329.7064174 | K42: =AVERAGE('Connection Numbers Inputs'!J$5:J$9) -> 100.4805308 | L42: =AVERAGE('Connection Numbers Inputs'!K$5:K$9) -> 917.5093265 | M42: =AVERAGE('Connection Numbers Inputs'!L$5:L$9) -> 196.2 | N42: =AVERAGE('Connection Numbers Inputs'!M$5:M$9) -> 47.8 | O42: =AVERAGE('Connection Numbers Inputs'!N$5:N$9) -> 7 | P42: =AVERAGE('Connection Numbers Inputs'!O$5:O$9) -> 2 | Q42: =AVERAGE('Connection Numbers Inputs'!P$5:P$9) -> 7.4
A43: Volume - Total | C43: =AVERAGE('Volume Inputs'!B$173:B$177) -> 24315919.8 | D43: =AVERAGE('Volume Inputs'!C$173:C$177) -> 3184743.841 | E43: =AVERAGE('Volume Inputs'!D$173:D$177) -> 255955.838 | F43: =AVERAGE('Volume Inputs'!E$173:E$177) -> 100153.9797 | G43: =AVERAGE('Volume Inputs'!F$173:F$177) -> 870624.266 | H43: =AVERAGE('Volume Inputs'!G$173:G$177) -> 6405099.078 | I43: =AVERAGE('Volume Inputs'!H$173:H$177) -> 793342.1811 | J43: =AVERAGE('Volume Inputs'!I$173:I$177) -> 64509.38026 | K43: =AVERAGE('Volume Inputs'!J$173:J$177) -> 77212.06687 | L43: =AVERAGE('Volume Inputs'!K$173:K$177) -> 274790.5164 | M43: =AVERAGE('Volume Inputs'!L$173:L$177) -> 4117.114916 | N43: =AVERAGE('Volume Inputs'!M$173:M$177) -> 1349.121896 | O43: =AVERAGE('Volume Inputs'!N$173:N$177) -> 253.1016232 | P43: =AVERAGE('Volume Inputs'!O$173:O$177) -> 16.33712193 | Q43: =AVERAGE('Volume Inputs'!P$173:P$177) -> 355.6208257
A45: Calculation of Consumption (GJ)
A46: Total MDQ | C46: Tariff R: Res Central | D46: Tariff R: Res North | E46: Tariff R: Res MV (Vic) | F46: Tariff R: Res Bairnsdale | G46: Tariff R: Res Albury | H46: Tariff C: Non- Res Central | I46: Tariff C: Non- Res North | J46: Tariff C: Non- Res MV (Vic) | K46: Tariff C: Non- Res Bairnsdale | L46: Tariff C: Non- Res Albury | M46: Tariff D: Central | N46: Tariff D: North | O46: Tariff D: MV (Vic) | P46: Tariff D: Bairnsdale | Q46: =Q40 -> Tariff D: Albury
A47: Demand Tariff | C47: Non-demand | D47: Non-demand | E47: Non-demand | F47: Non-demand | G47: Non-demand | H47: Non-demand | I47: Non-demand | J47: Non-demand | K47: Non-demand | L47: Non-demand | M47: Demand | N47: Demand | O47: Demand | P47: Demand | Q47: Demand
A48: ='Connection Numbers Inputs'!A5 -> 2013 | M48: =IF($M47="Demand",'Volume Inputs'!L173,0) -> 4037.8439 | N48: =IF($M47="Demand",'Volume Inputs'!M173,0) -> 1590.8811 | O48: =IF($M47="Demand",'Volume Inputs'!N173,0) -> 98.6951 | P48: =IF($M47="Demand",'Volume Inputs'!O173,0) -> 16.8776 | Q48: =IF($M47="Demand",'Volume Inputs'!P173,0) -> 350.1155
A49: ='Connection Numbers Inputs'!A6 -> 2014 | M49: =IF($M47="Demand",'Volume Inputs'!L174,0) -> 3860.9217 | N49: =IF($M47="Demand",'Volume Inputs'!M174,0) -> 1415.8394 | O49: =IF($M47="Demand",'Volume Inputs'!N174,0) -> 288.0002 | P49: =IF($M47="Demand",'Volume Inputs'!O174,0) -> 16 | Q49: =IF($M47="Demand",'Volume Inputs'!P174,0) -> 341.5923
A50: ='Connection Numbers Inputs'!A7 -> 2015 | M50: =IF($M47="Demand",'Volume Inputs'!L175,0) -> 3937.7385 | N50: =IF($M47="Demand",'Volume Inputs'!M175,0) -> 1392.1887 | O50: =IF($M47="Demand",'Volume Inputs'!N175,0) -> 284.8865 | P50: =IF($M47="Demand",'Volume Inputs'!O175,0) -> 16 | Q50: =IF($M47="Demand",'Volume Inputs'!P175,0) -> 356.2841
A51: ='Connection Numbers Inputs'!A8 -> 2016 | M51: =IF($M47="Demand",'Volume Inputs'!L176,0) -> 4394.208063 | N51: =IF($M47="Demand",'Volume Inputs'!M176,0) -> 1173.09877 | O51: =IF($M47="Demand",'Volume Inputs'!N176,0) -> 296.8856702 | P51: =IF($M47="Demand",'Volume Inputs'!O176,0) -> 16.39972446 | Q51: =IF($M47="Demand",'Volume Inputs'!P176,0) -> 353.2041735
A52: ='Connection Numbers Inputs'!A9 -> 2017 | M52: =IF($M47="Demand",'Volume Inputs'!L177,0) -> 4354.862415 | N52: =IF($M47="Demand",'Volume Inputs'!M177,0) -> 1173.601511 | O52: =IF($M47="Demand",'Volume Inputs'!N177,0) -> 297.0406459 | P52: =IF($M47="Demand",'Volume Inputs'!O177,0) -> 16.40828519 | Q52: =IF($M47="Demand",'Volume Inputs'!P177,0) -> 376.9080552
A53: ='Connection Numbers Inputs'!A10 -> 2018 | M53: =IF($M47="Demand",'Volume Inputs'!L178,0) -> 4386.114933 | N53: =IF($M47="Demand",'Volume Inputs'!M178,0) -> 1174.104516 | O53: =IF($M47="Demand",'Volume Inputs'!N178,0) -> 297.1957024 | P53: =IF($M47="Demand",'Volume Inputs'!O178,0) -> 16.41685039 | Q53: =IF($M47="Demand",'Volume Inputs'!P178,0) -> 385.6969479
A54: ='Connection Numbers Inputs'!A11 -> 2019 | M54: =IF($M47="Demand",'Volume Inputs'!L179,0) -> 4388.193237 | N54: =IF($M47="Demand",'Volume Inputs'!M179,0) -> 1174.66085 | O54: =IF($M47="Demand",'Volume Inputs'!N179,0) -> 297.3365248 | P54: =IF($M47="Demand",'Volume Inputs'!O179,0) -> 16.4246293 | Q54: =IF($M47="Demand",'Volume Inputs'!P179,0) -> 384.5687259
A55: ='Connection Numbers Inputs'!A12 -> 2020 | M55: =IF($M47="Demand",'Volume Inputs'!L180,0) -> 4411.18082 | N55: =IF($M47="Demand",'Volume Inputs'!M180,0) -> 1180.814319 | O55: =IF($M47="Demand",'Volume Inputs'!N180,0) -> 298.8941244 | P55: =IF($M47="Demand",'Volume Inputs'!O180,0) -> 16.51066985 | Q55: =IF($M47="Demand",'Volume Inputs'!P180,0) -> 383.5215606
A56: ='Connection Numbers Inputs'!A13 -> 2021 | M56: =IF($M47="Demand",'Volume Inputs'!L181,0) -> 4413.261295 | N56: =IF($M47="Demand",'Volume Inputs'!M181,0) -> 1181.371235 | O56: =IF($M47="Demand",'Volume Inputs'!N181,0) -> 299.0350938 | P56: =IF($M47="Demand",'Volume Inputs'!O181,0) -> 16.51845688 | Q56: =IF($M47="Demand",'Volume Inputs'!P181,0) -> 382.5539111
A57: ='Connection Numbers Inputs'!A14 -> 2022 | M57: =IF($M47="Demand",'Volume Inputs'!L182,0) -> 4415.342855 | N57: =IF($M47="Demand",'Volume Inputs'!M182,0) -> 1181.928441 | O57: =IF($M47="Demand",'Volume Inputs'!N182,0) -> 299.1761368 | P57: =IF($M47="Demand",'Volume Inputs'!O182,0) -> 16.52624799 | Q57: =IF($M47="Demand",'Volume Inputs'!P182,0) -> 381.6645172
A59: Calculated Consumption | C59: =C$24 -> Tariff R: Res Central | D59: =D$24 -> Tariff R: Res North | E59: Tariff R: Res MV (Vic) | F59: Tariff R: Res Bairnsdale | G59: Tariff R: Res Albury | H59: Tariff C: Non- Res Central | I59: Tariff C: Non- Res North | J59: Tariff C: Non- Res MV (Vic) | K59: Tariff C: Non- Res Bairnsdale | L59: Tariff C: Non- Res Albury | M59: =M$24 -> Tariff D: Central | N59: =N$24 -> Tariff D: North | O59: =O$24 -> Tariff D: MV (Vic) | P59: =P$24 -> Tariff D: Bairnsdale | Q59: =Q$24 -> Tariff D: Albury
A60: =A48 -> 2013 | M60: 14174282.31 | N60: 5024033 | O60: 372011 | P60: 82914.34027 | Q60: =Q48/$B$73*$B$74 -> 1260415.8
A61: =A49 -> 2014 | M61: 13157251.24 | N61: 4850671 | O61: 361271 | P61: 80621.49567 | Q61: 1229732.28
A62: 2015 | M62: 14040124.17 | N62: 4928736 | O62: 376736 | P62: 107846.5937 | Q62: 1282622.76
A63: 2016 | M63: =M51/$B$73*$B$74 -> 15819149.03 | N63: =N51/$B$73*$B$74 -> 4223155.571 | O63: =O51/$B$73*$B$74 -> 1068788.413 | P63: =P51/$B$73*$B$74 -> 59039.00807 | Q63: =Q51/$B$73*$B$74 -> 1271535.025
A64: 2017 | M64: =M52/$B$73*$B$74 -> 15677504.69 | N64: 4224965.441 | O64: 1069346.325 | P64: 59069.8267 | Q64: =Q52/$B$73*$B$74 -> 1356868.999
A65: 2018 | M65: =M53/$B$73*$B$74 -> 15790013.76 | N65: 4226776.256 | O65: 1069904.529 | P65: 59100.66141 | Q65: =Q53/$B$73*$B$74 -> 1388509.013
A66: 2019 | M66: =M54/$B$73*$B$74 -> 15797495.65 | N66: 4228779.06 | O66: 1070411.489 | P66: 59128.6655 | Q66: =Q54/$B$73*$B$74 -> 1384447.413
A67: 2020 | M67: =M55/$B$73*$B$74 -> 15880250.95 | N67: 4250931.55 | O67: 1076018.848 | P67: 59438.41145 | Q67: =Q55/$B$73*$B$74 -> 1380677.618
A68: 2021 | M68: =M56/$B$73*$B$74 -> 15887740.66 | N68: 4252936.445 | O68: 1076526.338 | P68: 59466.44479 | Q68: =Q56/$B$73*$B$74 -> 1377194.08
A69: 2022 | M69: =M57/$B$73*$B$74 -> 15895234.28 | N69: 4254942.387 | O69: 1077034.092 | P69: 59494.49275 | Q69: =Q57/$B$73*$B$74 -> 1373992.262
A70: Average | M70: =AVERAGE(M60:M69) -> 15211904.67 | N70: 4446592.671 | O70: =AVERAGE(O60:O69) -> 861804.8033 | P70: 68611.99403 | Q70: =AVERAGE(Q60:Q69) -> 1330599.525
A72: Other Calculation of Consumption Inputs
A73: Load factor | B73: 1.3
A74: Days x Hours | B74: =B75*B76 -> 4680
A75: Days | B75: 260
A76: Hours | B76: 18

Sheet PTRM Inputs
A1: VICPTRM Inputs
A3: Building block components ($M NOMINAL) | B3: ='Tariff Inputs'!I4 -> 2018 | C3: ='Tariff Inputs'!J4 -> 2019 | D3: ='Tariff Inputs'!K4 -> 2020 | E3: ='Tariff Inputs'!L4 -> 2021 | F3: ='Tariff Inputs'!M4 -> 2022 | G3: TOTAL
A5: Return on capital | B5: ='[43]X factors'!G30 -> 85.367545 | C5: ='[43]X factors'!H30 -> 89.37635745 | D5: ='[43]X factors'!I30 -> 94.23614586 | E5: ='[43]X factors'!J30 -> 98.89535648 | F5: ='[43]X factors'!K30 -> 102.6826688 | G5: =SUM(B5:F5) -> 470.5580736
A6: Return of capital | B6: ='[43]X factors'!G31 -> 41.45317204 | C6: ='[43]X factors'!H31 -> 47.56677904 | D6: ='[43]X factors'!I31 -> 50.68878717 | E6: ='[43]X factors'!J31 -> 45.23116497 | F6: ='[43]X factors'!K31 -> 49.87560683 | G6: =SUM(B6:F6) -> 234.81551
A7: O&M | B7: ='[43]X factors'!G32 -> 68.80974354 | C7: ='[43]X factors'!H32 -> 71.18730373 | D7: ='[43]X factors'!I32 -> 73.74980584 | E7: ='[43]X factors'!J32 -> 76.5184191 | F7: ='[43]X factors'!K32 -> 79.45732885 | G7: =SUM(B7:F7) -> 369.7226011
A8: Carry-over amounts | B8: ='[43]X factors'!G33 -> 13.82199818 | C8: ='[43]X factors'!H33 -> 7.136062952 | D8: ='[43]X factors'!I33 -> 5.453017953 | E8: ='[43]X factors'!J33 -> -0.4294472554 | F8: ='[43]X factors'!K33 -> 0 | G8: 25.98163183
A9: Benchmark Tax liability | B9: ='[43]X factors'!G34 -> 12.65890193 | C9: ='[43]X factors'!H34 -> 12.58395111 | D9: ='[43]X factors'!I34 -> 12.0502312 | E9: ='[43]X factors'!J34 -> 9.570857673 | F9: ='[43]X factors'!K34 -> 10.34238309 | G9: 57.206325
A10: TOTAL REVENUE | B10: ='[43]X factors'!G35 -> 222.1113607 | C10: ='[43]X factors'!H35 -> 227.8504543 | D10: ='[43]X factors'!I35 -> 236.177988 | E10: ='[43]X factors'!J35 -> 229.786351 | F10: ='[43]X factors'!K35 -> 242.3579876 | G10: 1158.284142
A11: TOTAL REVENUE (SMOOTHED) | B11: ='[43]X factors'!G46 -> 205.3653734 | C11: ='[43]X factors'!H46 -> 216.0761226 | D11: ='[43]X factors'!I46 -> 227.6056139 | E11: ='[43]X factors'!J46 -> 239.454599 | F11: ='[43]X factors'!K46 -> 252.1421095 | G11: =SUM(B11:F11) -> 1140.643818
A14: PTRM Opening RAB 2018
A15: Asset Class Name (Victoria and Albury combined) | B15: Opening Asset Value
A16: Mains & Services | B16: 1479.792256
A17: Meters | B17: 83.51661252
A18: Buildings | B18: 6.565264725
A19: SCADA | B19: 1.281783577
A20: Computer Equipment | B20: 14.28182242
A21: Other Assets | B21: 30.14789649
A22: Equity Raising Costs | B22: 0
A23: Land | B23: 0

Sheet FDC Calculations
A1: Fully Distributed Cost Calculations
A3: Building Block Components - Total ($M NOMINAL) | B3: ='Tariff Inputs'!I4 -> 2018 | C3: ='Tariff Inputs'!J4 -> 2019 | D3: ='Tariff Inputs'!K4 -> 2020 | E3: ='Tariff Inputs'!L4 -> 2021 | F3: ='Tariff Inputs'!M4 -> 2022 | G3: TOTAL
A4: Return on capital | B4: ='PTRM Inputs'!B5 -> 85.367545 | C4: ='PTRM Inputs'!C5 -> 89.37635745 | D4: ='PTRM Inputs'!D5 -> 94.23614586 | E4: ='PTRM Inputs'!E5 -> 98.89535648 | F4: ='PTRM Inputs'!F5 -> 102.6826688 | G4: ='PTRM Inputs'!G5 -> 470.5580736
A5: Return of capital | B5: ='PTRM Inputs'!B6 -> 41.45317204 | C5: ='PTRM Inputs'!C6 -> 47.56677904 | D5: ='PTRM Inputs'!D6 -> 50.68878717 | E5: ='PTRM Inputs'!E6 -> 45.23116497 | F5: ='PTRM Inputs'!F6 -> 49.87560683 | G5: ='PTRM Inputs'!G6 -> 234.81551
A6: O&M | B6: ='PTRM Inputs'!B7 -> 68.80974354 | C6: ='PTRM Inputs'!C7 -> 71.18730373 | D6: ='PTRM Inputs'!D7 -> 73.74980584 | E6: ='PTRM Inputs'!E7 -> 76.5184191 | F6: ='PTRM Inputs'!F7 -> 79.45732885 | G6: ='PTRM Inputs'!G7 -> 369.7226011
A7: Carry-over amounts | B7: ='PTRM Inputs'!B8 -> 13.82199818 | C7: ='PTRM Inputs'!C8 -> 7.136062952 | D7: ='PTRM Inputs'!D8 -> 5.453017953 | E7: ='PTRM Inputs'!E8 -> -0.4294472554 | F7: ='PTRM Inputs'!F8 -> 0 | G7: ='PTRM Inputs'!G8 -> 25.98163183
A8: Benchmark Tax liability | B8: ='PTRM Inputs'!B9 -> 12.65890193 | C8: ='PTRM Inputs'!C9 -> 12.58395111 | D8: ='PTRM Inputs'!D9 -> 12.0502312 | E8: ='PTRM Inputs'!E9 -> 9.570857673 | F8: ='PTRM Inputs'!F9 -> 10.34238309 | G8: ='PTRM Inputs'!G9 -> 57.206325
A9: Total Revenue | B9: =SUM(B4:B8) -> 222.1113607 | C9: =SUM(C4:C8) -> 227.8504543 | D9: =SUM(D4:D8) -> 236.177988 | E9: =SUM(E4:E8) -> 229.786351 | F9: =SUM(F4:F8) -> 242.3579876 | G9: =SUM(B9:F9) -> 1158.284142
A11: Building Block Components - Total for Reference Services ($M NOMINAL) | B11: =B$3 -> 2018 | C11: =C$3 -> 2019 | D11: 2020 | E11: 2021 | F11: 2022 | G11: TOTAL
A12: Return on capital | B12: ='PTRM Inputs'!B5-('Cost allocators'!$B$5*B$9*'Cost allocators'!$B6) -> 85.367545 | C12: ='PTRM Inputs'!C5-('Cost allocators'!$B$5*C$9*'Cost allocators'!$B6) -> 89.37635745 | D12: ='PTRM Inputs'!D5-('Cost allocators'!$B$5*D$9*'Cost allocators'!$B6) -> 94.23614586 | E12: ='PTRM Inputs'!E5-('Cost allocators'!$B$5*E$9*'Cost allocators'!$B6) -> 98.89535648 | F12: ='PTRM Inputs'!F5-('Cost allocators'!$B$5*F$9*'Cost allocators'!$B6) -> 102.6826688 | G12: =SUM(B12:F12) -> 470.5580736
A13: Return of capital | B13: ='PTRM Inputs'!B6-('Cost allocators'!$B$5*B$9*'Cost allocators'!$B7) -> 41.45317204 | C13: ='PTRM Inputs'!C6-('Cost allocators'!$B$5*C$9*'Cost allocators'!$B7) -> 47.56677904 | D13: ='PTRM Inputs'!D6-('Cost allocators'!$B$5*D$9*'Cost allocators'!$B7) -> 50.68878717 | E13: ='PTRM Inputs'!E6-('Cost allocators'!$B$5*E$9*'Cost allocators'!$B7) -> 45.23116497 | F13: ='PTRM Inputs'!F6-('Cost allocators'!$B$5*F$9*'Cost allocators'!$B7) -> 49.87560683 | G13: =SUM(B13:F13) -> 234.81551
A14: O&M | B14: ='PTRM Inputs'!B7-('Cost allocators'!$B$5*B$9*'Cost allocators'!$B8) -> 65.26485221 | C14: ='PTRM Inputs'!C7-('Cost allocators'!$B$5*C$9*'Cost allocators'!$B8) -> 67.55081662 | D14: ='PTRM Inputs'!D7-('Cost allocators'!$B$5*D$9*'Cost allocators'!$B8) -> 69.98041151 | E14: ='PTRM Inputs'!E7-('Cost allocators'!$B$5*E$9*'Cost allocators'!$B8) -> 72.85103513 | F14: ='PTRM Inputs'!F7-('Cost allocators'!$B$5*F$9*'Cost allocators'!$B8) -> 75.5893019 | G14: 351.2364174
A15: Carry-over amounts | B15: ='PTRM Inputs'!B8 -> 13.82199818 | C15: ='PTRM Inputs'!C8 -> 7.136062952 | D15: ='PTRM Inputs'!D8 -> 5.453017953 | E15: ='PTRM Inputs'!E8 -> -0.4294472554 | F15: ='PTRM Inputs'!F8 -> 0 | G15: 25.98163183
A16: Benchmark Tax liability | B16: ='PTRM Inputs'!B9 -> 12.65890193 | C16: ='PTRM Inputs'!C9 -> 12.58395111 | D16: ='PTRM Inputs'!D9 -> 12.0502312 | E16: ='PTRM Inputs'!E9 -> 9.570857673 | F16: ='PTRM Inputs'!F9 -> 10.34238309 | G16: 57.206325
A17: Total Revenue | B17: =SUM(B12:B16) -> 218.5664694 | C17: =SUM(C12:C16) -> 224.2139672 | D17: =SUM(D12:D16) -> 232.4085937 | E17: =SUM(E12:E16) -> 226.118967 | F17: =SUM(F12:F16) -> 238.4899606 | G17: 1139.797958
A19: Building Block Components - Total for Ancillary Reference Services ($M NOMINAL) | B19: =B$3 -> 2018 | C19: =C$3 -> 2019 | D19: 2020 | E19: 2021 | F19: 2022 | G19: TOTAL
A20: Return on capital | B20: =('Cost allocators'!$B$5*B$9*'Cost allocators'!$B6) -> 0 | C20: =('Cost allocators'!$B$5*C$9*'Cost allocators'!$B6) -> 0 | D20: =('Cost allocators'!$B$5*D$9*'Cost allocators'!$B6) -> 0 | E20: =('Cost allocators'!$B$5*E$9*'Cost allocators'!$B6) -> 0 | F20: =('Cost allocators'!$B$5*F$9*'Cost allocators'!$B6) -> 0 | G20: =SUM(B20:F20) -> 0
A21: Return of capital | B21: =('Cost allocators'!$B$5*B$9*'Cost allocators'!$B7) -> 0 | C21: =('Cost allocators'!$B$5*C$9*'Cost allocators'!$B7) -> 0 | D21: =('Cost allocators'!$B$5*D$9*'Cost allocators'!$B7) -> 0 | E21: =('Cost allocators'!$B$5*E$9*'Cost allocators'!$B7) -> 0 | F21: =('Cost allocators'!$B$5*F$9*'Cost allocators'!$B7) -> 0 | G21: =SUM(B21:F21) -> 0
A22: O&M | B22: =('Cost allocators'!$B$5*B$9*'Cost allocators'!$B8) -> 3.544891332 | C22: =('Cost allocators'!$B$5*C$9*'Cost allocators'!$B8) -> 3.636487111 | D22: =('Cost allocators'!$B$5*D$9*'Cost allocators'!$B8) -> 3.769394325 | E22: =('Cost allocators'!$B$5*E$9*'Cost allocators'!$B8) -> 3.66738397 | F22: =('Cost allocators'!$B$5*F$9*'Cost allocators'!$B8) -> 3.868026951 | G22: 18.48618369
A23: Carry-over amounts | B23: =('Cost allocators'!$B$5*B$9*'Cost allocators'!$B9) -> 0 | C23: =('Cost allocators'!$B$5*C$9*'Cost allocators'!$B9) -> 0 | D23: =('Cost allocators'!$B$5*D$9*'Cost allocators'!$B9) -> 0 | E23: =('Cost allocators'!$B$5*E$9*'Cost allocators'!$B9) -> 0 | F23: =('Cost allocators'!$B$5*F$9*'Cost allocators'!$B9) -> 0 | G23: 0
A24: Benchmark Tax liability | B24: =('Cost allocators'!$B$5*B$9*'Cost allocators'!$B10) -> 0 | C24: =('Cost allocators'!$B$5*C$9*'Cost allocators'!$B10) -> 0 | D24: =('Cost allocators'!$B$5*D$9*'Cost allocators'!$B10) -> 0 | E24: =('Cost allocators'!$B$5*E$9*'Cost allocators'!$B10) -> 0 | F24: =('Cost allocators'!$B$5*F$9*'Cost allocators'!$B10) -> 0 | G24: 0
A25: Total Revenue | B25: =SUM(B20:B24) -> 3.544891332 | C25: =SUM(C20:C24) -> 3.636487111 | D25: =SUM(D20:D24) -> 3.769394325 | E25: =SUM(E20:E24) -> 3.66738397 | F25: =SUM(F20:F24) -> 3.868026951 | G25: =SUM(B25:F25) -> 18.48618369
A27: Building Block Components Tariff V (Total) ($M NOMINAL) | B27: =B$3 -> 2018 | C27: =C$3 -> 2019 | D27: 2020 | E27: 2021 | F27: 2022 | G27: TOTAL
A28: =A12 -> Return on capital | B28: =B12-B116 -> 83.58871152 | C28: 87.51399095 | D28: 92.27251423 | E28: 96.83463925 | F28: 100.543034 | G28: =SUM(B28:F28) -> 460.75289
A29: =A13 -> Return of capital | B29: 40.58939775 | C29: 46.57561338 | D29: 49.63256714 | E29: 44.28866732 | F29: 48.83633131 | G29: 229.9225769
A30: =A14 -> O&M | B30: 65.24609447 | C30: 67.53140187 | D30: 69.96029847 | E30: 72.83009704 | F30: 75.56757681 | G30: 351.1354687
A31: =A15 -> Carry-over amounts | B31: 13.8180256 | C31: 7.134011979 | D31: 5.451450704 | E31: -0.4293238282 | F31: 0 | G31: 25.97416446
A32: =A16 -> Benchmark Tax liability | B32: 12.39512395 | C32: 12.3217349 | D32: 11.7991363 | E32: 9.371426355 | F32: 10.12687523 | G32: 56.01429674
A33: Total Revenue | B33: =SUM(B28:B32) -> 215.6373533 | C33: =SUM(C28:C32) -> 221.0767531 | D33: =SUM(D28:D32) -> 229.1159668 | E33: =SUM(E28:E32) -> 222.8955061 | F33: =SUM(F28:F32) -> 235.0738174 | G33: 1123.799397
A35: Building Block Components Tariff V: Res Central ($M NOMINAL) | B35: =B$3 -> 2018 | C35: =C$3 -> 2019 | D35: 2020 | E35: 2021 | F35: 2022 | G35: TOTAL
A36: =A28 -> Return on capital | B36: ='Cost allocators'!$C$18*B$28 -> 61.43043039 | C36: ='Cost allocators'!$C$18*C$28 -> 64.31516925 | D36: ='Cost allocators'!$C$18*D$28 -> 67.81226986 | E36: ='Cost allocators'!$C$18*E$28 -> 71.16503482 | F36: ='Cost allocators'!$C$18*F$28 -> 73.89038231 | G36: =SUM(B36:F36) -> 338.6132866
A37: =A29 -> Return of capital | B37: ='Cost allocators'!$C$19*B$29 -> 29.8296759 | C37: ='Cost allocators'!$C$19*C$29 -> 34.22902355 | D37: ='Cost allocators'!$C$19*D$29 -> 36.4756186 | E37: ='Cost allocators'!$C$19*E$29 -> 32.54831718 | F37: ='Cost allocators'!$C$19*F$29 -> 35.89045455 | G37: 168.9730898
A38: =A30 -> O&M | B38: ='Cost allocators'!$C$20*B$30 -> 47.95020274 | C38: ='Cost allocators'!$C$20*C$30 -> 49.62970485 | D38: ='Cost allocators'!$C$20*D$30 -> 51.41473253 | E38: ='Cost allocators'!$C$20*E$30 -> 53.52378479 | F38: ='Cost allocators'!$C$20*F$30 -> 55.53559425 | G38: 258.0540192
A39: =A31 -> Carry-over amounts | B39: ='Cost allocators'!$C$21*B$31 -> 10.15504659 | C39: ='Cost allocators'!$C$21*C$31 -> 5.242878115 | D39: ='Cost allocators'!$C$21*D$31 -> 4.006341967 | E39: ='Cost allocators'!$C$21*E$31 -> -0.3155156607 | F39: ='Cost allocators'!$C$21*F$31 -> 0 | G39: 19.08875101
A40: =A32 -> Benchmark Tax liability | B40: ='Cost allocators'!$C$22*B$32 -> 9.109337677 | C40: ='Cost allocators'!$C$22*C$32 -> 9.055403109 | D40: ='Cost allocators'!$C$22*D$32 -> 8.671338608 | E40: ='Cost allocators'!$C$22*E$32 -> 6.887183016 | F40: ='Cost allocators'!$C$22*F$32 -> 7.442372212 | G40: 41.16563462
A41: Total Revenue | B41: =SUM(B36:B40) -> 158.4746933 | C41: =SUM(C36:C40) -> 162.4721789 | D41: =SUM(D36:D40) -> 168.3803016 | E41: =SUM(E36:E40) -> 163.8088041 | F41: =SUM(F36:F40) -> 172.7588033 | G41: 825.8947812
A43: Building Block Components Tariff V: Res North ($M NOMINAL) | B43: =B$3 -> 2018 | C43: =C$3 -> 2019 | D43: 2020 | E43: 2021 | F43: 2022 | G43: TOTAL
A44: =A20 -> Return on capital | B44: ='Cost allocators'!$D$18*B$28 -> 8.350596756 | C44: ='Cost allocators'!$D$18*C$28 -> 8.742736137 | D44: ='Cost allocators'!$D$18*D$28 -> 9.218117422 | E44: ='Cost allocators'!$D$18*E$28 -> 9.673878322 | F44: ='Cost allocators'!$D$18*F$28 -> 10.04435071 | G44: =SUM(B44:F44) -> 46.02967934
A45: =A21 -> Return of capital | B45: ='Cost allocators'!$D$19*B$29 -> 4.054921855 | C45: ='Cost allocators'!$D$19*C$29 -> 4.652950846 | D45: ='Cost allocators'!$D$19*D$29 -> 4.958343616 | E45: ='Cost allocators'!$D$19*E$29 -> 4.424482624 | F45: ='Cost allocators'!$D$19*F$29 -> 4.878798852 | G45: 22.96949779
A46: =A22 -> O&M | B46: ='Cost allocators'!$D$20*B$30 -> 6.518150775 | C46: ='Cost allocators'!$D$20*C$30 -> 6.746455294 | D46: ='Cost allocators'!$D$20*D$30 -> 6.989104519 | E46: ='Cost allocators'!$D$20*E$30 -> 7.275800296 | F46: ='Cost allocators'!$D$20*F$30 -> 7.549277292 | G46: 35.07878818
A47: =A23 -> Carry-over amounts | B47: ='Cost allocators'!$D$21*B$31 -> 1.380434722 | C47: ='Cost allocators'!$D$21*C$31 -> 0.7126950064 | D47: ='Cost allocators'!$D$21*D$31 -> 0.5446054345 | E47: ='Cost allocators'!$D$21*E$31 -> -0.04288988431 | F47: ='Cost allocators'!$D$21*F$31 -> 0 | G47: 2.594845279
A48: =A24 -> Benchmark Tax liability | B48: ='Cost allocators'!$D$22*B$32 -> 1.238285409 | C48: ='Cost allocators'!$D$22*C$32 -> 1.230953769 | D48: ='Cost allocators'!$D$22*D$32 -> 1.178745641 | E48: ='Cost allocators'!$D$22*E$32 -> 0.9362149636 | F48: ='Cost allocators'!$D$22*F$32 -> 1.01168507 | G48: 5.595884853
A49: Total Revenue | B49: =SUM(B44:B48) -> 21.54238952 | C49: =SUM(C44:C48) -> 22.08579105 | D49: =SUM(D44:D48) -> 22.88891663 | E49: =SUM(E44:E48) -> 22.26748632 | F49: =SUM(F44:F48) -> 23.48411192 | G49: 112.2686954
A51: Building Block Components Tariff V: Res MV (Vic) ($M NOMINAL) | B51: =B$3 -> 2018 | C51: =C$3 -> 2019 | D51: 2020 | E51: 2021 | F51: 2022 | G51: TOTAL
A52: =A28 -> Return on capital | B52: ='Cost allocators'!$E$18*B$28 -> 0.7820609499 | C52: ='Cost allocators'!$E$18*C$28 -> 0.8187860974 | D52: ='Cost allocators'!$E$18*D$28 -> 0.8633071239 | E52: ='Cost allocators'!$E$18*E$28 -> 0.9059906365 | F52: ='Cost allocators'!$E$18*F$28 -> 0.940686598 | G52: =SUM(B52:F52) -> 4.310831406
A53: =A29 -> Return of capital | B53: ='Cost allocators'!$E$19*B$29 -> 0.3797568163 | C53: ='Cost allocators'!$E$19*C$29 -> 0.4357642052 | D53: ='Cost allocators'!$E$19*D$29 -> 0.4643652462 | E53: ='Cost allocators'!$E$19*E$29 -> 0.4143674021 | F53: ='Cost allocators'!$E$19*F$29 -> 0.4569156165 | G53: 2.151169286
A54: =A30 -> O&M | B54: ='Cost allocators'!$E$20*B$30 -> 0.6104463353 | C54: ='Cost allocators'!$E$20*C$30 -> 0.631827807 | D54: ='Cost allocators'!$E$20*D$30 -> 0.6545527079 | E54: ='Cost allocators'!$E$20*E$30 -> 0.6814027138 | F54: ='Cost allocators'!$E$20*F$30 -> 0.7070147371 | G54: 3.285244301
A55: =A31 -> Carry-over amounts | B55: ='Cost allocators'!$E$21*B$31 -> 0.1292822683 | C55: ='Cost allocators'!$E$21*C$31 -> 0.06674623982 | D55: ='Cost allocators'!$E$21*D$31 -> 0.05100409658 | E55: ='Cost allocators'!$E$21*E$31 -> -0.004016779237 | F55: ='Cost allocators'!$E$21*F$31 -> 0 | G55: 0.2430158255
A56: =A32 -> Benchmark Tax liability | B56: ='Cost allocators'!$E$22*B$32 -> 0.1159695159 | C56: ='Cost allocators'!$E$22*C$32 -> 0.1152828836 | D56: ='Cost allocators'!$E$22*D$32 -> 0.1103934201 | E56: ='Cost allocators'!$E$22*E$32 -> 0.08767962161 | F56: ='Cost allocators'!$E$22*F$32 -> 0.09474764616 | G56: 0.5240730874
A57: Total Revenue | B57: =SUM(B52:B56) -> 2.017515886 | C57: =SUM(C52:C56) -> 2.068407233 | D57: =SUM(D52:D56) -> 2.143622595 | E57: =SUM(E52:E56) -> 2.085423595 | F57: =SUM(F52:F56) -> 2.199364598 | G57: 10.51433391
A59: Building Block Components Tariff V: Res Bairnsdale ($M NOMINAL) | B59: =B$3 -> 2018 | C59: =C$3 -> 2019 | D59: 2020 | E59: 2021 | F59: 2022 | G59: TOTAL
A60: =A36 -> Return on capital | B60: ='Cost allocators'!$F$18*B$28 -> 0.3506430909 | C60: ='Cost allocators'!$F$18*C$28 -> 0.3671090955 | D60: ='Cost allocators'!$F$18*D$28 -> 0.387070443 | E60: ='Cost allocators'!$F$18*E$28 -> 0.4062079268 | F60: ='Cost allocators'!$F$18*F$28 -> 0.4217641302 | G60: =SUM(B60:F60) -> 1.932794686
A61: =A37 -> Return of capital | B61: ='Cost allocators'!$F$19*B$29 -> 0.1702669132 | C61: ='Cost allocators'!$F$19*C$29 -> 0.1953782603 | D61: ='Cost allocators'!$F$19*D$29 -> 0.2082017587 | E61: ='Cost allocators'!$F$19*E$29 -> 0.1857848377 | F61: ='Cost allocators'!$F$19*F$29 -> 0.2048616595 | G61: 0.9644934294
A62: =A38 -> O&M | B62: ='Cost allocators'!$F$20*B$30 -> 0.2736983477 | C62: ='Cost allocators'!$F$20*C$30 -> 0.2832848964 | D62: ='Cost allocators'!$F$20*D$30 -> 0.2934737819 | E62: ='Cost allocators'!$F$20*E$30 -> 0.3055121902 | F62: ='Cost allocators'!$F$20*F$30 -> 0.3169955395 | G62: 1.472964756
A63: =A39 -> Carry-over amounts | B63: ='Cost allocators'!$F$21*B$31 -> 0.05796470743 | C63: ='Cost allocators'!$F$21*C$31 -> 0.02992619416 | D63: ='Cost allocators'!$F$21*D$31 -> 0.02286808218 | E63: ='Cost allocators'!$F$21*E$31 -> -0.001800954116 | F63: ='Cost allocators'!$F$21*F$31 -> 0 | G63: 0.1089580297
A64: =A40 -> Benchmark Tax liability | B64: ='Cost allocators'!$F$22*B$32 -> 0.05199583169 | C64: ='Cost allocators'!$F$22*C$32 -> 0.05168797476 | D64: ='Cost allocators'!$F$22*D$32 -> 0.04949574588 | E64: ='Cost allocators'!$F$22*E$32 -> 0.0393118382 | F64: ='Cost allocators'!$F$22*F$32 -> 0.04248084182 | G64: 0.2349722323
A65: Total Revenue | B65: =SUM(B60:B64) -> 0.9045688909 | C65: =SUM(C60:C64) -> 0.9273864211 | D65: =SUM(D60:D64) -> 0.9611098117 | E65: =SUM(E60:E64) -> 0.9350158388 | F65: =SUM(F60:F64) -> 0.986102171 | G65: 4.714183134
A67: Building Block Components Tariff V: Res Albury ($M NOMINAL) | B67: =B$3 -> 2018 | C67: =C$3 -> 2019 | D67: 2020 | E67: 2021 | F67: 2022 | G67: TOTAL
A68: =A44 -> Return on capital | B68: ='Cost allocators'!$G$18*B$28 -> 2.34712772 | C68: ='Cost allocators'!$G$18*C$28 -> 2.457347533 | D68: ='Cost allocators'!$G$18*D$28 -> 2.590964402 | E68: ='Cost allocators'!$G$18*E$28 -> 2.71906651 | F68: ='Cost allocators'!$G$18*F$28 -> 2.823196313 | G68: =SUM(B68:F68) -> 12.93770248
A69: =A45 -> Return of capital | B69: ='Cost allocators'!$G$19*B$29 -> 1.139729264 | C69: ='Cost allocators'!$G$19*C$29 -> 1.307819097 | D69: ='Cost allocators'!$G$19*D$29 -> 1.393656775 | E69: ='Cost allocators'!$G$19*E$29 -> 1.243602837 | F69: ='Cost allocators'!$G$19*F$29 -> 1.371298886 | G69: 6.456106859
A70: =A46 -> O&M | B70: ='Cost allocators'!$G$20*B$30 -> 1.832076535 | C70: ='Cost allocators'!$G$20*C$30 -> 1.896246783 | D70: ='Cost allocators'!$G$20*D$30 -> 1.964448942 | E70: ='Cost allocators'!$G$20*E$30 -> 2.045031399 | F70: ='Cost allocators'!$G$20*F$30 -> 2.121898413 | G70: 9.859702071
A71: =A47 -> Carry-over amounts | B71: ='Cost allocators'!$G$21*B$31 -> 0.3880030012 | C71: ='Cost allocators'!$G$21*C$31 -> 0.200319361 | D71: ='Cost allocators'!$G$21*D$31 -> 0.1530739119 | E71: ='Cost allocators'!$G$21*E$31 -> -0.0120551907 | F71: ='Cost allocators'!$G$21*F$31 -> 0 | G71: 0.7293410833
A72: =A48 -> Benchmark Tax liability | B72: ='Cost allocators'!$G$22*B$32 -> 0.3480486599 | C72: ='Cost allocators'!$G$22*C$32 -> 0.3459879334 | D72: ='Cost allocators'!$G$22*D$32 -> 0.3313136354 | E72: ='Cost allocators'!$G$22*E$32 -> 0.2631447976 | F72: ='Cost allocators'!$G$22*F$32 -> 0.2843574107 | G72: 1.572852437
A73: Total Revenue | B73: =SUM(B68:B72) -> 6.05498518 | C73: =SUM(C68:C72) -> 6.207720708 | D73: =SUM(D68:D72) -> 6.433457667 | E73: =SUM(E68:E72) -> 6.258790352 | F73: =SUM(F68:F72) -> 6.600751023 | G73: 31.55570493
A75: Building Block Components Tariff V: Non-Res Central ($M NOMINAL) | B75: =B$3 -> 2018 | C75: =C$3 -> 2019 | D75: 2020 | E75: 2021 | F75: 2022 | G75: TOTAL
A76: =A60 -> Return on capital | B76: ='Cost allocators'!$H$18*B$28 -> 8.641352386 | C76: ='Cost allocators'!$H$18*C$28 -> 9.04714549 | D76: ='Cost allocators'!$H$18*D$28 -> 9.53907886 | E76: ='Cost allocators'!$H$18*E$28 -> 10.01070869 | F76: ='Cost allocators'!$H$18*F$28 -> 10.39408038 | G76: =SUM(B76:F76) -> 47.63236581
A77: =A61 -> Return of capital | B77: ='Cost allocators'!$H$19*B$29 -> 4.196108335 | C77: ='Cost allocators'!$H$19*C$29 -> 4.814959825 | D77: ='Cost allocators'!$H$19*D$29 -> 5.130985927 | E77: ='Cost allocators'!$H$19*E$29 -> 4.578536672 | F77: ='Cost allocators'!$H$19*F$29 -> 5.04867153 | G77: 23.76926229
A78: =A62 -> O&M | B78: ='Cost allocators'!$H$20*B$30 -> 6.745103302 | C78: ='Cost allocators'!$H$20*C$30 -> 6.981357052 | D78: ='Cost allocators'!$H$20*D$30 -> 7.23245497 | E78: ='Cost allocators'!$H$20*E$30 -> 7.529133078 | F78: ='Cost allocators'!$H$20*F$30 -> 7.812132144 | G78: 36.30018055
A79: =A63 -> Carry-over amounts | B79: ='Cost allocators'!$H$21*B$31 -> 1.428499451 | C79: ='Cost allocators'!$H$21*C$31 -> 0.7375100096 | D79: ='Cost allocators'!$H$21*D$31 -> 0.5635678034 | E79: ='Cost allocators'!$H$21*E$31 -> -0.04438324768 | F79: ='Cost allocators'!$H$21*F$31 -> 0 | G79: 2.685194016
A80: =A64 -> Benchmark Tax liability | B80: ='Cost allocators'!$H$22*B$32 -> 1.281400706 | C80: ='Cost allocators'!$H$22*C$32 -> 1.273813788 | D80: ='Cost allocators'!$H$22*D$32 -> 1.219787849 | E80: ='Cost allocators'!$H$22*E$32 -> 0.9688126066 | F80: ='Cost allocators'!$H$22*F$32 -> 1.046910472 | G80: 5.790725422
A81: Total Revenue | B81: =SUM(B76:B80) -> 22.29246418 | C81: =SUM(C76:C80) -> 22.85478616 | D81: =SUM(D76:D80) -> 23.68587541 | E81: =SUM(E76:E80) -> 23.0428078 | F81: =SUM(F76:F80) -> 24.30179453 | G81: 116.1777281
A83: Building Block Components Tariff V: Non-Res North ($M NOMINAL) | B83: =B$3 -> 2018 | C83: =C$3 -> 2019 | D83: 2020 | E83: 2021 | F83: 2022 | G83: TOTAL
A84: =A52 -> Return on capital | B84: ='Cost allocators'!$I$18*B$28 -> 1.119333107 | C84: ='Cost allocators'!$I$18*C$28 -> 1.171896367 | D84: ='Cost allocators'!$I$18*D$28 -> 1.235617563 | E84: ='Cost allocators'!$I$18*E$28 -> 1.296708798 | F84: ='Cost allocators'!$I$18*F$28 -> 1.346367764 | G84: =SUM(B84:F84) -> 6.169923599
A85: =A53 -> Return of capital | B85: ='Cost allocators'!$I$19*B$29 -> 0.5435310088 | C85: ='Cost allocators'!$I$19*C$29 -> 0.6236921838 | D85: ='Cost allocators'!$I$19*D$29 -> 0.6646277298 | E85: ='Cost allocators'!$I$19*E$29 -> 0.5930677802 | F85: ='Cost allocators'!$I$19*F$29 -> 0.6539653676 | G85: 3.07888407
A86: =A54 -> O&M | B86: ='Cost allocators'!$I$20*B$30 -> 0.8737078525 | C86: ='Cost allocators'!$I$20*C$30 -> 0.9043103128 | D86: ='Cost allocators'!$I$20*D$30 -> 0.9368355705 | E86: ='Cost allocators'!$I$20*E$30 -> 0.9752649289 | F86: ='Cost allocators'!$I$20*F$30 -> 1.011922411 | G86: 4.702041076
A87: =A55 -> Carry-over amounts | B87: ='Cost allocators'!$I$21*B$31 -> 0.1850366305 | C87: ='Cost allocators'!$I$21*C$31 -> 0.09553127029 | D87: ='Cost allocators'!$I$21*D$31 -> 0.07300015926 | E87: ='Cost allocators'!$I$21*E$31 -> -0.005749058284 | F87: ='Cost allocators'!$I$21*F$31 -> 0 | G87: 0.3478190018
A88: =A56 -> Benchmark Tax liability | B88: ='Cost allocators'!$I$22*B$32 -> 0.1659826112 | C88: ='Cost allocators'!$I$22*C$32 -> 0.1649998613 | D88: ='Cost allocators'!$I$22*D$32 -> 0.1580017643 | E88: ='Cost allocators'!$I$22*E$32 -> 0.1254923971 | F88: ='Cost allocators'!$I$22*F$32 -> 0.1356085829 | G88: 0.7500852168
A89: Total Revenue | B89: =SUM(B84:B88) -> 2.88759121 | C89: =SUM(C84:C88) -> 2.960429996 | D89: =SUM(D84:D88) -> 3.068082787 | E89: =SUM(E84:E88) -> 2.984784846 | F89: =SUM(F84:F88) -> 3.147864126 | G89: 15.04875296
A91: Building Block Components Tariff V: Non-Res MV (Vic) ($M NOMINAL) | B91: =B$3 -> 2018 | C91: =C$3 -> 2019 | D91: 2020 | E91: 2021 | F91: 2022 | G91: TOTAL
A92: =A60 -> Return on capital | B92: ='Cost allocators'!$J$18*B$28 -> 0.09575231 | C92: ='Cost allocators'!$J$18*C$28 -> 0.1002487852 | D92: ='Cost allocators'!$J$18*D$28 -> 0.1056997557 | E92: ='Cost allocators'!$J$18*E$28 -> 0.1109257486 | F92: ='Cost allocators'!$J$18*F$28 -> 0.1151737787 | G92: =SUM(B92:F92) -> 0.5278003782
A93: =A61 -> Return of capital | B93: ='Cost allocators'!$J$19*B$29 -> 0.04649585483 | C93: ='Cost allocators'!$J$19*C$29 -> 0.05335316802 | D93: ='Cost allocators'!$J$19*D$29 -> 0.05685496125 | E93: ='Cost allocators'!$J$19*E$29 -> 0.05073343189 | F93: ='Cost allocators'!$J$19*F$29 -> 0.05594285939 | G93: 0.2633802754
A94: =A62 -> O&M | B94: ='Cost allocators'!$J$20*B$30 -> 0.07474052596 | C94: ='Cost allocators'!$J$20*C$30 -> 0.07735838499 | D94: ='Cost allocators'!$J$20*D$30 -> 0.08014072792 | E94: ='Cost allocators'!$J$20*E$30 -> 0.08342813165 | F94: ='Cost allocators'!$J$20*F$30 -> 0.08656396191 | G94: 0.4022317324
A95: =A63 -> Carry-over amounts | B95: ='Cost allocators'!$J$21*B$31 -> 0.01582878653 | C95: ='Cost allocators'!$J$21*C$31 -> 0.008172133703 | D95: ='Cost allocators'!$J$21*D$31 -> 0.006244730756 | E95: ='Cost allocators'!$J$21*E$31 -> -0.0004917978461 | F95: ='Cost allocators'!$J$21*F$31 -> 0 | G95: 0.02975385314
A96: =A64 -> Benchmark Tax liability | B96: ='Cost allocators'!$J$22*B$32 -> 0.01419882816 | C96: ='Cost allocators'!$J$22*C$32 -> 0.01411475974 | D96: ='Cost allocators'!$J$22*D$32 -> 0.01351611404 | E96: ='Cost allocators'!$J$22*E$32 -> 0.01073513044 | F96: ='Cost allocators'!$J$22*F$32 -> 0.01160051015 | G96: 0.06416534253
A97: Total Revenue | B97: =SUM(B92:B96) -> 0.2470163055 | C97: =SUM(C92:C96) -> 0.2532472317 | D97: =SUM(D92:D96) -> 0.2624562897 | E97: =SUM(E92:E96) -> 0.2553306447 | F97: =SUM(F92:F96) -> 0.2692811101 | G97: 1.287331582
A99: Building Block Components Tariff V: Non-Res Bairnsdale ($M NOMINAL) | B99: =B$3 -> 2018 | C99: =C$3 -> 2019 | D99: 2020 | E99: 2021 | F99: 2022 | G99: TOTAL
A100: =A92 -> Return on capital | B100: ='Cost allocators'!$K$18*B$28 -> 0.09537540433 | C100: ='Cost allocators'!$K$18*C$28 -> 0.09985418029 | D100: ='Cost allocators'!$K$18*D$28 -> 0.1052836943 | E100: ='Cost allocators'!$K$18*E$28 -> 0.1104891163 | F100: ='Cost allocators'!$K$18*F$28 -> 0.1147204251 | G100: =SUM(B100:F100) -> 0.5257228204
A101: =A93 -> Return of capital | B101: ='Cost allocators'!$K$19*B$29 -> 0.04631283521 | C101: ='Cost allocators'!$K$19*C$29 -> 0.05314315626 | D101: ='Cost allocators'!$K$19*D$29 -> 0.05663116553 | E101: ='Cost allocators'!$K$19*E$29 -> 0.05053373208 | F101: ='Cost allocators'!$K$19*F$29 -> 0.05572265394 | G101: 0.262343543
A102: =A94 -> O&M | B102: ='Cost allocators'!$K$20*B$30 -> 0.07444632807 | C102: ='Cost allocators'!$K$20*C$30 -> 0.07705388252 | D102: ='Cost allocators'!$K$20*D$30 -> 0.07982527344 | E102: ='Cost allocators'!$K$20*E$30 -> 0.08309973711 | F102: ='Cost allocators'!$K$20*F$30 -> 0.08622322394 | G102: 0.4006484451
A103: =A95 -> Carry-over amounts | B103: ='Cost allocators'!$K$21*B$31 -> 0.01576648036 | C103: ='Cost allocators'!$K$21*C$31 -> 0.008139966087 | D103: ='Cost allocators'!$K$21*D$31 -> 0.006220149893 | E103: ='Cost allocators'!$K$21*E$31 -> -0.0004898620035 | F103: ='Cost allocators'!$K$21*F$31 -> 0 | G103: 0.02963673434
A104: =A96 -> Benchmark Tax liability | B104: ='Cost allocators'!$K$22*B$32 -> 0.01414293793 | C104: ='Cost allocators'!$K$22*C$32 -> 0.01405920042 | D104: ='Cost allocators'!$K$22*D$32 -> 0.01346291114 | E104: ='Cost allocators'!$K$22*E$32 -> 0.01069287421 | F104: ='Cost allocators'!$K$22*F$32 -> 0.01155484756 | G104: 0.06391277127
A105: Total Revenue | B105: =SUM(B100:B104) -> 0.2460439859 | C105: =SUM(C100:C104) -> 0.2522503856 | D105: =SUM(D100:D104) -> 0.2614231943 | E105: =SUM(E100:E104) -> 0.2543255977 | F105: =SUM(F100:F104) -> 0.2682211505 | G105: 1.282264314
A107: Building Block Components Tariff V: Non-Res Albury ($M NOMINAL) | B107: =B$3 -> 2018 | C107: =C$3 -> 2019 | D107: 2020 | E107: 2021 | F107: 2022 | G107: TOTAL
A108: =A100 -> Return on capital | B108: ='Cost allocators'!$L$18*B$28 -> 0.3760394069 | C108: ='Cost allocators'!$L$18*C$28 -> 0.3936980084 | D108: ='Cost allocators'!$L$18*D$28 -> 0.4151051128 | E108: ='Cost allocators'!$L$18*E$28 -> 0.435628683 | F108: ='Cost allocators'!$L$18*F$28 -> 0.4523115883 | G108: =SUM(B108:F108) -> 2.072782799
A109: =A101 -> Return of capital | B109: ='Cost allocators'!$L$19*B$29 -> 0.1825989751 | C109: ='Cost allocators'!$L$19*C$29 -> 0.2095290825 | D109: ='Cost allocators'!$L$19*D$29 -> 0.223281359 | E109: ='Cost allocators'!$L$19*E$29 -> 0.1992408292 | F109: ='Cost allocators'!$L$19*F$29 -> 0.2196993437 | G109: 1.03434959
A110: =A102 -> O&M | B110: ='Cost allocators'!$L$20*B$30 -> 0.2935217234 | C110: ='Cost allocators'!$L$20*C$30 -> 0.3038026049 | D110: ='Cost allocators'!$L$20*D$30 -> 0.3147294493 | E110: ='Cost allocators'!$L$20*E$30 -> 0.3276397733 | F110: ='Cost allocators'!$L$20*F$30 -> 0.3399548366 | G110: 1.579648388
A111: =A103 -> Carry-over amounts | B111: ='Cost allocators'!$L$21*B$31 -> 0.06216296504 | C111: ='Cost allocators'!$L$21*C$31 -> 0.03209368328 | D111: ='Cost allocators'!$L$21*D$31 -> 0.02452436761 | E111: ='Cost allocators'!$L$21*E$31 -> -0.001931393304 | F111: ='Cost allocators'!$L$21*F$31 -> 0 | G111: 0.1168496226
A112: =A104 -> Benchmark Tax liability | B112: ='Cost allocators'!$L$22*B$32 -> 0.05576177662 | C112: ='Cost allocators'!$L$22*C$32 -> 0.05543162229 | D112: ='Cost allocators'!$L$22*D$32 -> 0.05308061504 | E112: ='Cost allocators'!$L$22*E$32 -> 0.04215910909 | F112: ='Cost allocators'!$L$22*F$32 -> 0.04555763674 | G112: 0.2519907598
A113: Total Revenue | B113: =SUM(B108:B112) -> 0.9700848471 | C113: =SUM(C108:C112) -> 0.9945550014 | D113: =SUM(D108:D112) -> 1.030720904 | E113: =SUM(E108:E112) -> 1.002737001 | F113: =SUM(F108:F112) -> 1.057523405 | G113: 5.055621159
A115: Building Block Components D ($M NOMINAL) | B115: =B$3 -> 2018 | C115: =C$3 -> 2019 | D115: 2020 | E115: 2021 | F115: 2022 | G115: TOTAL
A116: =A28 -> Return on capital | B116: =B127 -> 1.778833477 | C116: =B137 -> 1.862366509 | D116: =B147 -> 1.963631624 | E116: =B157 -> 2.06071723 | F116: =B167 -> 2.139634785 | G116: =SUM(B116:F116) -> 9.805183625
A117: =A29 -> Return of capital | B117: =B128 -> 0.8637742853 | C117: =B138 -> 0.9911656586 | D117: =B148 -> 1.056220037 | E117: =B158 -> 0.9424976492 | F117: =B168 -> 1.039275513 | G117: 4.892933143
A118: =A30 -> O&M | B118: =B129 -> 0.01875774344 | C118: =B139 -> 0.0194147515 | D118: =B149 -> 0.02011304034 | E118: =B159 -> 0.02093808505 | F118: =B169 -> 0.02172508914 | G118: 0.1009487095
A119: =A31 -> Carry-over amounts | B119: =B130 -> 0.003972574623 | C119: =B140 -> 0.002050972821 | D119: =B150 -> 0.001567249573 | E119: =B160 -> -0.0001234272532 | F119: =B170 -> 0 | G119: 0.007467369764
A120: =A32 -> Benchmark Tax liability | B120: =B131 -> 0.2637779796 | C120: =B141 -> 0.2622162029 | D120: =B151 -> 0.251094894 | E120: =B161 -> 0.1994313183 | F120: =B171 -> 0.2155078641 | G120: 1.192028259
A121: Total Revenue | B121: =SUM(B116:B120) -> 2.92911606 | C121: =SUM(C116:C120) -> 3.137214095 | D121: =SUM(D116:D120) -> 3.292626845 | E121: =SUM(E116:E120) -> 3.223460855 | F121: =SUM(F116:F120) -> 3.416143251 | G121: 15.99856111
A123: Checks | B123: =B17-SUM(B41,B49,B57,B65,B81,B89,B97,B105,B121) -> 7.025070027 | C123: =C17-SUM(C41,C49,C57,C65,C81,C89,C97,C105,C121) -> 7.20227571 | D123: 7.464178571 | E123: 7.261527354 | F123: 7.658274428 | G123: 36.61132609
A125: Building Blocks by Zone for Tariff D
A126: 2013 | B126: Total | C126: ='General Inputs'!B30 -> Tariff D: Central | D126: ='General Inputs'!B31 -> Tariff D: North | E126: ='General Inputs'!B32 -> Tariff D: MV (Vic) | F126: ='General Inputs'!B33 -> Tariff D: Bairnsdale | G126: ='General Inputs'!B34 -> Tariff D: Albury
A127: =A28 -> Return on capital | B127: =SUM(C127:G127) -> 1.778833477 | C127: =$B12*HLOOKUP(C$126,'Cost allocators'!$M$24:$Q$28,(MATCH('Cost allocators'!$B$11,'Cost allocators'!$A$25:$A$28)+1),FALSE) -> 1.214968805 | D127: =$B12*HLOOKUP(D$126,'Cost allocators'!$M$24:$Q$28,(MATCH('Cost allocators'!$B$11,'Cost allocators'!$A$25:$A$28)+1),FALSE) -> 0.5115658127 | E127: =$B12*HLOOKUP(E$126,'Cost allocators'!$M$24:$Q$28,(MATCH('Cost allocators'!$B$11,'Cost allocators'!$A$25:$A$28)+1),FALSE) -> 0.01998303956 | F127: =$B12*HLOOKUP(F$126,'Cost allocators'!$M$24:$Q$28,(MATCH('Cost allocators'!$B$11,'Cost allocators'!$A$25:$A$28)+1),FALSE) -> 0.0085367545 | G127: =$B12*HLOOKUP(G$126,'Cost allocators'!$M$24:$Q$28,(MATCH('Cost allocators'!$B$11,'Cost allocators'!$A$25:$A$28)+1),FALSE) -> 0.02377906543
A128: =A29 -> Return of capital | B128: =SUM(C128:G128) -> 0.8637742853 | C128: =$B13*HLOOKUP(C$126,'Cost allocators'!$M$24:$Q$28,(MATCH('Cost allocators'!$B$12,'Cost allocators'!$A$25:$A$28)+1),FALSE) -> 0.5899702387 | D128: =$B13*HLOOKUP(D$126,'Cost allocators'!$M$24:$Q$28,(MATCH('Cost allocators'!$B$12,'Cost allocators'!$A$25:$A$28)+1),FALSE) -> 0.2484085216 | E128: =$B13*HLOOKUP(E$126,'Cost allocators'!$M$24:$Q$28,(MATCH('Cost allocators'!$B$12,'Cost allocators'!$A$25:$A$28)+1),FALSE) -> 0.009703457874 | F128: =$B13*HLOOKUP(F$126,'Cost allocators'!$M$24:$Q$28,(MATCH('Cost allocators'!$B$12,'Cost allocators'!$A$25:$A$28)+1),FALSE) -> 0.004145317204 | G128: =$B13*HLOOKUP(G$126,'Cost allocators'!$M$24:$Q$28,(MATCH('Cost allocators'!$B$12,'Cost allocators'!$A$25:$A$28)+1),FALSE) -> 0.01154674988
A129: =A30 -> O&M | B129: =SUM(C129:G129) -> 0.01875774344 | C129: =$B14*HLOOKUP(C$126,'Cost allocators'!$M$24:$Q$28,(MATCH('Cost allocators'!$B$13,'Cost allocators'!$A$25:$A$28)+1),FALSE) -> 0.01370902424 | D129: =$B14*HLOOKUP(D$126,'Cost allocators'!$M$24:$Q$28,(MATCH('Cost allocators'!$B$13,'Cost allocators'!$A$25:$A$28)+1),FALSE) -> 0.003650608506 | E129: =$B14*HLOOKUP(E$126,'Cost allocators'!$M$24:$Q$28,(MATCH('Cost allocators'!$B$13,'Cost allocators'!$A$25:$A$28)+1),FALSE) -> 0.0005844622535 | F129: =$B14*HLOOKUP(F$126,'Cost allocators'!$M$24:$Q$28,(MATCH('Cost allocators'!$B$13,'Cost allocators'!$A$25:$A$28)+1),FALSE) -> 0.0001167343575 | G129: =$B14*HLOOKUP(G$126,'Cost allocators'!$M$24:$Q$28,(MATCH('Cost allocators'!$B$13,'Cost allocators'!$A$25:$A$28)+1),FALSE) -> 0.0006969140801
A130: =A31 -> Carry-over amounts | B130: =SUM(C130:G130) -> 0.003972574623 | C130: =$B15*HLOOKUP(C$126,'Cost allocators'!$M$24:$Q$28,(MATCH('Cost allocators'!$B$14,'Cost allocators'!$A$25:$A$28)+1),FALSE) -> 0.002903340798 | D130: =$B15*HLOOKUP(D$126,'Cost allocators'!$M$24:$Q$28,(MATCH('Cost allocators'!$B$14,'Cost allocators'!$A$25:$A$28)+1),FALSE) -> 0.0007731374915 | E130: =$B15*HLOOKUP(E$126,'Cost allocators'!$M$24:$Q$28,(MATCH('Cost allocators'!$B$14,'Cost allocators'!$A$25:$A$28)+1),FALSE) -> 0.0001237792767 | F130: =$B15*HLOOKUP(F$126,'Cost allocators'!$M$24:$Q$28,(MATCH('Cost allocators'!$B$14,'Cost allocators'!$A$25:$A$28)+1),FALSE) -> 2.472237387e-05 | G130: =$B15*HLOOKUP(G$126,'Cost allocators'!$M$24:$Q$28,(MATCH('Cost allocators'!$B$14,'Cost allocators'!$A$25:$A$28)+1),FALSE) -> 0.0001475946826
A131: =A32 -> Benchmark Tax liability | B131: 0.2637779796 | C131: =$B16*HLOOKUP(C$126,'Cost allocators'!$M$24:$Q$28,(MATCH('Cost allocators'!$B$15,'Cost allocators'!$A$25:$A$28)+1),FALSE) -> 0.1801641474 | D131: =$B16*HLOOKUP(D$126,'Cost allocators'!$M$24:$Q$28,(MATCH('Cost allocators'!$B$15,'Cost allocators'!$A$25:$A$28)+1),FALSE) -> 0.07585858836 | E131: =$B16*HLOOKUP(E$126,'Cost allocators'!$M$24:$Q$28,(MATCH('Cost allocators'!$B$15,'Cost allocators'!$A$25:$A$28)+1),FALSE) -> 0.002963226108 | F131: =$B16*HLOOKUP(F$126,'Cost allocators'!$M$24:$Q$28,(MATCH('Cost allocators'!$B$15,'Cost allocators'!$A$25:$A$28)+1),FALSE) -> 0.001265890193 | G131: =$B16*HLOOKUP(G$126,'Cost allocators'!$M$24:$Q$28,(MATCH('Cost allocators'!$B$15,'Cost allocators'!$A$25:$A$28)+1),FALSE) -> 0.003526127608
A132: Total Revenue | B132: =SUM(B127:B131) -> 2.92911606 | C132: 2.001715556 | D132: 0.8402566687 | E132: 0.03335796507 | F132: 0.01408941863 | G132: 0.03969645168
A134: Checks | B134: =B132-B$121 -> 0
A136: =A126+1 -> 2014 | B136: Total | C136: =C126 -> Tariff D: Central | D136: =D126 -> Tariff D: North | E136: Tariff D: MV (Vic) | F136: =F126 -> Tariff D: Bairnsdale | G136: =G126 -> Tariff D: Albury
A137: =A127 -> Return on capital | B137: =SUM(C137:G137) -> 1.862366509 | C137: =$C12*HLOOKUP(C$126,'Cost allocators'!$M$24:$Q$28,(MATCH('Cost allocators'!$B$11,'Cost allocators'!$A$25:$A$28)+1),FALSE) -> 1.272023065 | D137: =$C12*HLOOKUP(D$126,'Cost allocators'!$M$24:$Q$28,(MATCH('Cost allocators'!$B$11,'Cost allocators'!$A$25:$A$28)+1),FALSE) -> 0.5355886589 | E137: =$C12*HLOOKUP(E$126,'Cost allocators'!$M$24:$Q$28,(MATCH('Cost allocators'!$B$11,'Cost allocators'!$A$25:$A$28)+1),FALSE) -> 0.02092143199 | F137: =$C12*HLOOKUP(F$126,'Cost allocators'!$M$24:$Q$28,(MATCH('Cost allocators'!$B$11,'Cost allocators'!$A$25:$A$28)+1),FALSE) -> 0.008937635745 | G137: =$C12*HLOOKUP(G$126,'Cost allocators'!$M$24:$Q$28,(MATCH('Cost allocators'!$B$11,'Cost allocators'!$A$25:$A$28)+1),FALSE) -> 0.02489571712
A138: =A128 -> Return of capital | B138: =SUM(C138:G138) -> 0.9911656586 | C138: =$C13*HLOOKUP(C$126,'Cost allocators'!$M$24:$Q$28,(MATCH('Cost allocators'!$B$12,'Cost allocators'!$A$25:$A$28)+1),FALSE) -> 0.6769803758 | D138: =$C13*HLOOKUP(D$126,'Cost allocators'!$M$24:$Q$28,(MATCH('Cost allocators'!$B$12,'Cost allocators'!$A$25:$A$28)+1),FALSE) -> 0.2850443688 | E138: =$C13*HLOOKUP(E$126,'Cost allocators'!$M$24:$Q$28,(MATCH('Cost allocators'!$B$12,'Cost allocators'!$A$25:$A$28)+1),FALSE) -> 0.01113454565 | F138: =$C13*HLOOKUP(F$126,'Cost allocators'!$M$24:$Q$28,(MATCH('Cost allocators'!$B$12,'Cost allocators'!$A$25:$A$28)+1),FALSE) -> 0.004756677904 | G138: =$C13*HLOOKUP(G$126,'Cost allocators'!$M$24:$Q$28,(MATCH('Cost allocators'!$B$12,'Cost allocators'!$A$25:$A$28)+1),FALSE) -> 0.01324969051
A139: =A129 -> O&M | B139: =SUM(C139:G139) -> 0.0194147515 | C139: =$C14*HLOOKUP(C$126,'Cost allocators'!$M$24:$Q$28,(MATCH('Cost allocators'!$B$13,'Cost allocators'!$A$25:$A$28)+1),FALSE) -> 0.01418919604 | D139: =$C14*HLOOKUP(D$126,'Cost allocators'!$M$24:$Q$28,(MATCH('Cost allocators'!$B$13,'Cost allocators'!$A$25:$A$28)+1),FALSE) -> 0.003778474591 | E139: =$C14*HLOOKUP(E$126,'Cost allocators'!$M$24:$Q$28,(MATCH('Cost allocators'!$B$13,'Cost allocators'!$A$25:$A$28)+1),FALSE) -> 0.0006049336077 | F139: =$C14*HLOOKUP(F$126,'Cost allocators'!$M$24:$Q$28,(MATCH('Cost allocators'!$B$13,'Cost allocators'!$A$25:$A$28)+1),FALSE) -> 0.000120823091 | G139: =$C14*HLOOKUP(G$126,'Cost allocators'!$M$24:$Q$28,(MATCH('Cost allocators'!$B$13,'Cost allocators'!$A$25:$A$28)+1),FALSE) -> 0.0007213241681
A140: =A130 -> Carry-over amounts | B140: =SUM(C140:G140) -> 0.002050972821 | C140: =$C15*HLOOKUP(C$126,'Cost allocators'!$M$24:$Q$28,(MATCH('Cost allocators'!$B$14,'Cost allocators'!$A$25:$A$28)+1),FALSE) -> 0.001498945554 | D140: =$C15*HLOOKUP(D$126,'Cost allocators'!$M$24:$Q$28,(MATCH('Cost allocators'!$B$14,'Cost allocators'!$A$25:$A$28)+1),FALSE) -> 0.0003991577584 | E140: =$C15*HLOOKUP(E$126,'Cost allocators'!$M$24:$Q$28,(MATCH('Cost allocators'!$B$14,'Cost allocators'!$A$25:$A$28)+1),FALSE) -> 6.390513872e-05 | F140: =$C15*HLOOKUP(F$126,'Cost allocators'!$M$24:$Q$28,(MATCH('Cost allocators'!$B$14,'Cost allocators'!$A$25:$A$28)+1),FALSE) -> 1.276374183e-05 | G140: =$C15*HLOOKUP(G$126,'Cost allocators'!$M$24:$Q$28,(MATCH('Cost allocators'!$B$14,'Cost allocators'!$A$25:$A$28)+1),FALSE) -> 7.620062836e-05
A141: =A131 -> Benchmark Tax liability | B141: 0.2622162029 | C141: =$C16*HLOOKUP(C$126,'Cost allocators'!$M$24:$Q$28,(MATCH('Cost allocators'!$B$15,'Cost allocators'!$A$25:$A$28)+1),FALSE) -> 0.1790974315 | D141: =$C16*HLOOKUP(D$126,'Cost allocators'!$M$24:$Q$28,(MATCH('Cost allocators'!$B$15,'Cost allocators'!$A$25:$A$28)+1),FALSE) -> 0.07540944483 | E141: =$C16*HLOOKUP(E$126,'Cost allocators'!$M$24:$Q$28,(MATCH('Cost allocators'!$B$15,'Cost allocators'!$A$25:$A$28)+1),FALSE) -> 0.002945681439 | F141: =$C16*HLOOKUP(F$126,'Cost allocators'!$M$24:$Q$28,(MATCH('Cost allocators'!$B$15,'Cost allocators'!$A$25:$A$28)+1),FALSE) -> 0.001258395111 | G141: =$C16*HLOOKUP(G$126,'Cost allocators'!$M$24:$Q$28,(MATCH('Cost allocators'!$B$15,'Cost allocators'!$A$25:$A$28)+1),FALSE) -> 0.003505250112
A142: Total Revenue | B142: =SUM(B137:B141) -> 3.137214095 | C142: =SUM(C137:C141) -> 2.143789014 | D142: =SUM(D137:D141) -> 0.9002201048 | E142: 0.03567049783 | F142: 0.01508629559 | G142: =SUM(G137:G141) -> 0.04244818254
A144: Checks | B144: =B142-C$121 -> 0
A146: =A136+1 -> 2015 | B146: Total | C146: =C136 -> Tariff D: Central | D146: =D136 -> Tariff D: North | E146: Tariff D: MV (Vic) | F146: Tariff D: Bairnsdale | G146: =G136 -> Tariff D: Albury
A147: =A137 -> Return on capital | B147: =SUM(C147:G147) -> 1.963631624 | C147: =$D12*HLOOKUP(C$126,'Cost allocators'!$M$24:$Q$28,(MATCH('Cost allocators'!$B$11,'Cost allocators'!$A$25:$A$28)+1),FALSE) -> 1.341188593 | D147: =$D12*HLOOKUP(D$126,'Cost allocators'!$M$24:$Q$28,(MATCH('Cost allocators'!$B$11,'Cost allocators'!$A$25:$A$28)+1),FALSE) -> 0.5647109864 | E147: =$D12*HLOOKUP(E$126,'Cost allocators'!$M$24:$Q$28,(MATCH('Cost allocators'!$B$11,'Cost allocators'!$A$25:$A$28)+1),FALSE) -> 0.02205902291 | F147: =$D12*HLOOKUP(F$126,'Cost allocators'!$M$24:$Q$28,(MATCH('Cost allocators'!$B$11,'Cost allocators'!$A$25:$A$28)+1),FALSE) -> 0.009423614586 | G147: =$D12*HLOOKUP(G$126,'Cost allocators'!$M$24:$Q$28,(MATCH('Cost allocators'!$B$11,'Cost allocators'!$A$25:$A$28)+1),FALSE) -> 0.02624940752
A148: =A138 -> Return of capital | B148: =SUM(C148:G148) -> 1.056220037 | C148: =$D13*HLOOKUP(C$126,'Cost allocators'!$M$24:$Q$28,(MATCH('Cost allocators'!$B$12,'Cost allocators'!$A$25:$A$28)+1),FALSE) -> 0.7214134504 | D148: =$D13*HLOOKUP(D$126,'Cost allocators'!$M$24:$Q$28,(MATCH('Cost allocators'!$B$12,'Cost allocators'!$A$25:$A$28)+1),FALSE) -> 0.3037530318 | E148: =$D13*HLOOKUP(E$126,'Cost allocators'!$M$24:$Q$28,(MATCH('Cost allocators'!$B$12,'Cost allocators'!$A$25:$A$28)+1),FALSE) -> 0.0118653528 | F148: =$D13*HLOOKUP(F$126,'Cost allocators'!$M$24:$Q$28,(MATCH('Cost allocators'!$B$12,'Cost allocators'!$A$25:$A$28)+1),FALSE) -> 0.005068878717 | G148: =$D13*HLOOKUP(G$126,'Cost allocators'!$M$24:$Q$28,(MATCH('Cost allocators'!$B$12,'Cost allocators'!$A$25:$A$28)+1),FALSE) -> 0.01411932353
A149: =A139 -> O&M | B149: =SUM(C149:G149) -> 0.02011304034 | C149: =$D14*HLOOKUP(C$126,'Cost allocators'!$M$24:$Q$28,(MATCH('Cost allocators'!$B$13,'Cost allocators'!$A$25:$A$28)+1),FALSE) -> 0.01469953774 | D149: =$D14*HLOOKUP(D$126,'Cost allocators'!$M$24:$Q$28,(MATCH('Cost allocators'!$B$13,'Cost allocators'!$A$25:$A$28)+1),FALSE) -> 0.003914374688 | E149: =$D14*HLOOKUP(E$126,'Cost allocators'!$M$24:$Q$28,(MATCH('Cost allocators'!$B$13,'Cost allocators'!$A$25:$A$28)+1),FALSE) -> 0.0006266912071 | F149: =$D14*HLOOKUP(F$126,'Cost allocators'!$M$24:$Q$28,(MATCH('Cost allocators'!$B$13,'Cost allocators'!$A$25:$A$28)+1),FALSE) -> 0.0001251687256 | G149: =$D14*HLOOKUP(G$126,'Cost allocators'!$M$24:$Q$28,(MATCH('Cost allocators'!$B$13,'Cost allocators'!$A$25:$A$28)+1),FALSE) -> 0.0007472679775
A150: =A140 -> Carry-over amounts | B150: =SUM(C150:G150) -> 0.001567249573 | C150: =$D15*HLOOKUP(C$126,'Cost allocators'!$M$24:$Q$28,(MATCH('Cost allocators'!$B$14,'Cost allocators'!$A$25:$A$28)+1),FALSE) -> 0.001145418289 | D150: =$D15*HLOOKUP(D$126,'Cost allocators'!$M$24:$Q$28,(MATCH('Cost allocators'!$B$14,'Cost allocators'!$A$25:$A$28)+1),FALSE) -> 0.0003050161465 | E150: =$D15*HLOOKUP(E$126,'Cost allocators'!$M$24:$Q$28,(MATCH('Cost allocators'!$B$14,'Cost allocators'!$A$25:$A$28)+1),FALSE) -> 4.883307099e-05 | F150: =$D15*HLOOKUP(F$126,'Cost allocators'!$M$24:$Q$28,(MATCH('Cost allocators'!$B$14,'Cost allocators'!$A$25:$A$28)+1),FALSE) -> 9.753405174e-06 | G150: =$D15*HLOOKUP(G$126,'Cost allocators'!$M$24:$Q$28,(MATCH('Cost allocators'!$B$14,'Cost allocators'!$A$25:$A$28)+1),FALSE) -> 5.822866155e-05
A151: =A141 -> Benchmark Tax liability | B151: 0.251094894 | C151: =$D16*HLOOKUP(C$126,'Cost allocators'!$M$24:$Q$28,(MATCH('Cost allocators'!$B$15,'Cost allocators'!$A$25:$A$28)+1),FALSE) -> 0.1715014178 | D151: =$D16*HLOOKUP(D$126,'Cost allocators'!$M$24:$Q$28,(MATCH('Cost allocators'!$B$15,'Cost allocators'!$A$25:$A$28)+1),FALSE) -> 0.07221112328 | E151: =$D16*HLOOKUP(E$126,'Cost allocators'!$M$24:$Q$28,(MATCH('Cost allocators'!$B$15,'Cost allocators'!$A$25:$A$28)+1),FALSE) -> 0.002820747003 | F151: =$D16*HLOOKUP(F$126,'Cost allocators'!$M$24:$Q$28,(MATCH('Cost allocators'!$B$15,'Cost allocators'!$A$25:$A$28)+1),FALSE) -> 0.00120502312 | G151: =$D16*HLOOKUP(G$126,'Cost allocators'!$M$24:$Q$28,(MATCH('Cost allocators'!$B$15,'Cost allocators'!$A$25:$A$28)+1),FALSE) -> 0.003356582833
A152: Total Revenue | B152: =SUM(B147:B151) -> 3.292626845 | C152: =SUM(C147:C151) -> 2.249948417 | D152: =SUM(D147:D151) -> 0.9448945323 | E152: 0.03742064699 | F152: 0.01583243855 | G152: =SUM(G147:G151) -> 0.04453081052
A154: Checks | B154: =B152-D$121 -> 0
A156: =A146+1 -> 2016 | B156: Total | C156: =C146 -> Tariff D: Central | D156: =D146 -> Tariff D: North | E156: Tariff D: MV (Vic) | F156: Tariff D: Bairnsdale | G156: =G146 -> Tariff D: Albury
A157: =A147 -> Return on capital | B157: =SUM(C157:G157) -> 2.06071723 | C157: =$E12*HLOOKUP(C$126,'Cost allocators'!$M$24:$Q$28,(MATCH('Cost allocators'!$B$11,'Cost allocators'!$A$25:$A$28)+1),FALSE) -> 1.407499456 | D157: =$E12*HLOOKUP(D$126,'Cost allocators'!$M$24:$Q$28,(MATCH('Cost allocators'!$B$11,'Cost allocators'!$A$25:$A$28)+1),FALSE) -> 0.5926313497 | E157: =$E12*HLOOKUP(E$126,'Cost allocators'!$M$24:$Q$28,(MATCH('Cost allocators'!$B$11,'Cost allocators'!$A$25:$A$28)+1),FALSE) -> 0.0231496621 | F157: =$E12*HLOOKUP(F$126,'Cost allocators'!$M$24:$Q$28,(MATCH('Cost allocators'!$B$11,'Cost allocators'!$A$25:$A$28)+1),FALSE) -> 0.009889535648 | G157: =$E12*HLOOKUP(G$126,'Cost allocators'!$M$24:$Q$28,(MATCH('Cost allocators'!$B$11,'Cost allocators'!$A$25:$A$28)+1),FALSE) -> 0.02754722714
A158: =A148 -> Return of capital | B158: =SUM(C158:G158) -> 0.9424976492 | C158: =$E13*HLOOKUP(C$126,'Cost allocators'!$M$24:$Q$28,(MATCH('Cost allocators'!$B$12,'Cost allocators'!$A$25:$A$28)+1),FALSE) -> 0.6437394266 | D158: =$E13*HLOOKUP(D$126,'Cost allocators'!$M$24:$Q$28,(MATCH('Cost allocators'!$B$12,'Cost allocators'!$A$25:$A$28)+1),FALSE) -> 0.2710481796 | E158: =$E13*HLOOKUP(E$126,'Cost allocators'!$M$24:$Q$28,(MATCH('Cost allocators'!$B$12,'Cost allocators'!$A$25:$A$28)+1),FALSE) -> 0.01058781952 | F158: =$E13*HLOOKUP(F$126,'Cost allocators'!$M$24:$Q$28,(MATCH('Cost allocators'!$B$12,'Cost allocators'!$A$25:$A$28)+1),FALSE) -> 0.004523116497 | G158: =$E13*HLOOKUP(G$126,'Cost allocators'!$M$24:$Q$28,(MATCH('Cost allocators'!$B$12,'Cost allocators'!$A$25:$A$28)+1),FALSE) -> 0.01259910697
A159: =A149 -> O&M | B159: 0.02093808505 | C159: =$E14*HLOOKUP(C$126,'Cost allocators'!$M$24:$Q$28,(MATCH('Cost allocators'!$B$13,'Cost allocators'!$A$25:$A$28)+1),FALSE) -> 0.01530251848 | D159: =$E14*HLOOKUP(D$126,'Cost allocators'!$M$24:$Q$28,(MATCH('Cost allocators'!$B$13,'Cost allocators'!$A$25:$A$28)+1),FALSE) -> 0.004074943856 | E159: =$E14*HLOOKUP(E$126,'Cost allocators'!$M$24:$Q$28,(MATCH('Cost allocators'!$B$13,'Cost allocators'!$A$25:$A$28)+1),FALSE) -> 0.0006523983234 | F159: =$E14*HLOOKUP(F$126,'Cost allocators'!$M$24:$Q$28,(MATCH('Cost allocators'!$B$13,'Cost allocators'!$A$25:$A$28)+1),FALSE) -> 0.0001303031952 | G159: =$E14*HLOOKUP(G$126,'Cost allocators'!$M$24:$Q$28,(MATCH('Cost allocators'!$B$13,'Cost allocators'!$A$25:$A$28)+1),FALSE) -> 0.0007779211997
A160: =A150 -> Carry-over amounts | B160: -0.0001234272532 | C160: =$E15*HLOOKUP(C$126,'Cost allocators'!$M$24:$Q$28,(MATCH('Cost allocators'!$B$14,'Cost allocators'!$A$25:$A$28)+1),FALSE) -> -9.020633062e-05 | D160: =$E15*HLOOKUP(D$126,'Cost allocators'!$M$24:$Q$28,(MATCH('Cost allocators'!$B$14,'Cost allocators'!$A$25:$A$28)+1),FALSE) -> -2.402125724e-05 | E160: =$E15*HLOOKUP(E$126,'Cost allocators'!$M$24:$Q$28,(MATCH('Cost allocators'!$B$14,'Cost allocators'!$A$25:$A$28)+1),FALSE) -> -3.845802176e-06 | F160: =$E15*HLOOKUP(F$126,'Cost allocators'!$M$24:$Q$28,(MATCH('Cost allocators'!$B$14,'Cost allocators'!$A$25:$A$28)+1),FALSE) -> -7.681201711e-07 | G160: =$E15*HLOOKUP(G$126,'Cost allocators'!$M$24:$Q$28,(MATCH('Cost allocators'!$B$14,'Cost allocators'!$A$25:$A$28)+1),FALSE) -> -4.585742997e-06
A161: =A151 -> Benchmark Tax liability | B161: 0.1994313183 | C161: =$E16*HLOOKUP(C$126,'Cost allocators'!$M$24:$Q$28,(MATCH('Cost allocators'!$B$15,'Cost allocators'!$A$25:$A$28)+1),FALSE) -> 0.1362144538 | D161: =$E16*HLOOKUP(D$126,'Cost allocators'!$M$24:$Q$28,(MATCH('Cost allocators'!$B$15,'Cost allocators'!$A$25:$A$28)+1),FALSE) -> 0.05735345422 | E161: =$E16*HLOOKUP(E$126,'Cost allocators'!$M$24:$Q$28,(MATCH('Cost allocators'!$B$15,'Cost allocators'!$A$25:$A$28)+1),FALSE) -> 0.002240369305 | F161: =$E16*HLOOKUP(F$126,'Cost allocators'!$M$24:$Q$28,(MATCH('Cost allocators'!$B$15,'Cost allocators'!$A$25:$A$28)+1),FALSE) -> 0.0009570857673 | G161: =$E16*HLOOKUP(G$126,'Cost allocators'!$M$24:$Q$28,(MATCH('Cost allocators'!$B$15,'Cost allocators'!$A$25:$A$28)+1),FALSE) -> 0.002665955203
A162: Total Revenue | B162: =SUM(B157:B161) -> 3.223460855 | C162: =SUM(C157:C161) -> 2.202665648 | D162: =SUM(D157:D161) -> 0.9250839061 | E162: 0.03662640344 | F162: 0.01549927299 | G162: =SUM(G157:G161) -> 0.04358562477
A164: Checks | B164: =B162-E$121 -> 0
A166: =A156+1 -> 2017 | B166: Total | C166: =C156 -> Tariff D: Central | D166: =D156 -> Tariff D: North | E166: Tariff D: MV (Vic) | F166: Tariff D: Bairnsdale | G166: =G156 -> Tariff D: Albury
A167: =A157 -> Return on capital | B167: =SUM(C167:G167) -> 2.139634785 | C167: =$F12*HLOOKUP(C$126,'Cost allocators'!$M$24:$Q$28,(MATCH('Cost allocators'!$B$11,'Cost allocators'!$A$25:$A$28)+1),FALSE) -> 1.461401279 | D167: =$F12*HLOOKUP(D$126,'Cost allocators'!$M$24:$Q$28,(MATCH('Cost allocators'!$B$11,'Cost allocators'!$A$25:$A$28)+1),FALSE) -> 0.6153268541 | E167: =$F12*HLOOKUP(E$126,'Cost allocators'!$M$24:$Q$28,(MATCH('Cost allocators'!$B$11,'Cost allocators'!$A$25:$A$28)+1),FALSE) -> 0.02403620524 | F167: =$F12*HLOOKUP(F$126,'Cost allocators'!$M$24:$Q$28,(MATCH('Cost allocators'!$B$11,'Cost allocators'!$A$25:$A$28)+1),FALSE) -> 0.01026826688 | G167: =$F12*HLOOKUP(G$126,'Cost allocators'!$M$24:$Q$28,(MATCH('Cost allocators'!$B$11,'Cost allocators'!$A$25:$A$28)+1),FALSE) -> 0.02860218013
A168: =A158 -> Return of capital | B168: =SUM(C168:G168) -> 1.039275513 | C168: =$F13*HLOOKUP(C$126,'Cost allocators'!$M$24:$Q$28,(MATCH('Cost allocators'!$B$12,'Cost allocators'!$A$25:$A$28)+1),FALSE) -> 0.7098400972 | D168: =$F13*HLOOKUP(D$126,'Cost allocators'!$M$24:$Q$28,(MATCH('Cost allocators'!$B$12,'Cost allocators'!$A$25:$A$28)+1),FALSE) -> 0.2988800409 | E168: =$F13*HLOOKUP(E$126,'Cost allocators'!$M$24:$Q$28,(MATCH('Cost allocators'!$B$12,'Cost allocators'!$A$25:$A$28)+1),FALSE) -> 0.0116750016 | F168: =$F13*HLOOKUP(F$126,'Cost allocators'!$M$24:$Q$28,(MATCH('Cost allocators'!$B$12,'Cost allocators'!$A$25:$A$28)+1),FALSE) -> 0.004987560683 | G168: =$F13*HLOOKUP(G$126,'Cost allocators'!$M$24:$Q$28,(MATCH('Cost allocators'!$B$12,'Cost allocators'!$A$25:$A$28)+1),FALSE) -> 0.01389281275
A169: =A159 -> O&M | B169: 0.02172508914 | C169: =$F14*HLOOKUP(C$126,'Cost allocators'!$M$24:$Q$28,(MATCH('Cost allocators'!$B$13,'Cost allocators'!$A$25:$A$28)+1),FALSE) -> 0.01587769737 | D169: =$F14*HLOOKUP(D$126,'Cost allocators'!$M$24:$Q$28,(MATCH('Cost allocators'!$B$13,'Cost allocators'!$A$25:$A$28)+1),FALSE) -> 0.004228109605 | E169: =$F14*HLOOKUP(E$126,'Cost allocators'!$M$24:$Q$28,(MATCH('Cost allocators'!$B$13,'Cost allocators'!$A$25:$A$28)+1),FALSE) -> 0.0006769201527 | F169: =$F14*HLOOKUP(F$126,'Cost allocators'!$M$24:$Q$28,(MATCH('Cost allocators'!$B$13,'Cost allocators'!$A$25:$A$28)+1),FALSE) -> 0.0001352009281 | G169: =$F14*HLOOKUP(G$126,'Cost allocators'!$M$24:$Q$28,(MATCH('Cost allocators'!$B$13,'Cost allocators'!$A$25:$A$28)+1),FALSE) -> 0.0008071610831
A170: =A160 -> Carry-over amounts | B170: 0 | C170: =$F15*HLOOKUP(C$126,'Cost allocators'!$M$24:$Q$28,(MATCH('Cost allocators'!$B$14,'Cost allocators'!$A$25:$A$28)+1),FALSE) -> 0 | D170: =$F15*HLOOKUP(D$126,'Cost allocators'!$M$24:$Q$28,(MATCH('Cost allocators'!$B$14,'Cost allocators'!$A$25:$A$28)+1),FALSE) -> 0 | E170: =$F15*HLOOKUP(E$126,'Cost allocators'!$M$24:$Q$28,(MATCH('Cost allocators'!$B$14,'Cost allocators'!$A$25:$A$28)+1),FALSE) -> 0 | F170: =$F15*HLOOKUP(F$126,'Cost allocators'!$M$24:$Q$28,(MATCH('Cost allocators'!$B$14,'Cost allocators'!$A$25:$A$28)+1),FALSE) -> 0 | G170: =$F15*HLOOKUP(G$126,'Cost allocators'!$M$24:$Q$28,(MATCH('Cost allocators'!$B$14,'Cost allocators'!$A$25:$A$28)+1),FALSE) -> 0
A171: =A161 -> Benchmark Tax liability | B171: 0.2155078641 | C171: =$F16*HLOOKUP(C$126,'Cost allocators'!$M$24:$Q$28,(MATCH('Cost allocators'!$B$15,'Cost allocators'!$A$25:$A$28)+1),FALSE) -> 0.1471949654 | D171: =$F16*HLOOKUP(D$126,'Cost allocators'!$M$24:$Q$28,(MATCH('Cost allocators'!$B$15,'Cost allocators'!$A$25:$A$28)+1),FALSE) -> 0.06197682753 | E171: =$F16*HLOOKUP(E$126,'Cost allocators'!$M$24:$Q$28,(MATCH('Cost allocators'!$B$15,'Cost allocators'!$A$25:$A$28)+1),FALSE) -> 0.002420969825 | F171: =$F16*HLOOKUP(F$126,'Cost allocators'!$M$24:$Q$28,(MATCH('Cost allocators'!$B$15,'Cost allocators'!$A$25:$A$28)+1),FALSE) -> 0.001034238309 | G171: =$F16*HLOOKUP(G$126,'Cost allocators'!$M$24:$Q$28,(MATCH('Cost allocators'!$B$15,'Cost allocators'!$A$25:$A$28)+1),FALSE) -> 0.002880863029
A172: Total Revenue | B172: =SUM(B167:B171) -> 3.416143251 | C172: =SUM(C167:C171) -> 2.334314039 | D172: =SUM(D167:D171) -> 0.9804118322 | E172: 0.03880909682 | F172: 0.0164252668 | G172: =SUM(G167:G171) -> 0.04618301699
A174: Checks | B174: =B172-F$121 -> 0
A177: Building Blocks by Ancillary Reference Service
A178: 2013 | B178: Total | C178: ='Cost allocators'!A38 -> Special Meter Read - Non Metro | D178: ='Cost allocators'!A32 -> Meter and Gas Installation Test | E178: ='Cost allocators'!A37 -> Special Meter Read - Metro
A179: =A157 -> Return on capital | B179: =SUM(C179:E179) -> 0 | C179: =$B20*VLOOKUP(C$178,'Cost allocators'!$A$32:$B$38,2) -> 0 | D179: =$B20*VLOOKUP(D$178,'Cost allocators'!$A$32:$B$38,2) -> 0 | E179: =$B20*VLOOKUP(E$178,'Cost allocators'!$A$32:$B$38,2) -> 0
A180: =A158 -> Return of capital | B180: =SUM(C180:E180) -> 0 | C180: =$B21*VLOOKUP(C$178,'Cost allocators'!$A$32:$B$38,2) -> 0 | D180: =$B21*VLOOKUP(D$178,'Cost allocators'!$A$32:$B$38,2) -> 0 | E180: =$B21*VLOOKUP(E$178,'Cost allocators'!$A$32:$B$38,2) -> 0
A181: O&M | B181: =SUM(C181:E181) -> 2.416469084 | C181: =$B22*VLOOKUP(C$178,'Cost allocators'!$A$32:$B$38,2) -> 0.4892715906 | D181: =$B22*VLOOKUP(D$178,'Cost allocators'!$A$32:$B$38,2) -> 0.7274714847 | E181: =$B22*VLOOKUP(E$178,'Cost allocators'!$A$32:$B$38,2) -> 1.199726008
A182: Carry-over amounts | B182: =SUM(C182:E182) -> 0 | C182: =$B23*VLOOKUP(C$178,'Cost allocators'!$A$32:$B$38,2) -> 0 | D182: =$B23*VLOOKUP(D$178,'Cost allocators'!$A$32:$B$38,2) -> 0 | E182: =$B23*VLOOKUP(E$178,'Cost allocators'!$A$32:$B$38,2) -> 0
A183: Benchmark Tax liability | B183: =SUM(C183:E183) -> 0 | C183: =$B24*VLOOKUP(C$178,'Cost allocators'!$A$32:$B$38,2) -> 0 | D183: =$B24*VLOOKUP(D$178,'Cost allocators'!$A$32:$B$38,2) -> 0 | E183: =$B24*VLOOKUP(E$178,'Cost allocators'!$A$32:$B$38,2) -> 0
A184: Total Revenue | B184: =SUM(B179:B183) -> 2.416469084 | C184: =SUM(C179:C183) -> 0.4892715906 | D184: =SUM(D179:D183) -> 0.7274714847 | E184: =SUM(E179:E183) -> 1.199726008
A186: Checks | B186: =B184-B$25 -> -1.128422248
A188: =A178+1 -> 2014 | B188: Total | C188: =C178 -> Special Meter Read - Non Metro | D188: =D178 -> Meter and Gas Installation Test | E188: =E178 -> Special Meter Read - Metro
A189: =A179 -> Return on capital | B189: =SUM(C189:E189) -> 0 | C189: =$C20*VLOOKUP(C$178,'Cost allocators'!$A$32:$B$38,2) -> 0 | D189: =$C20*VLOOKUP(D$178,'Cost allocators'!$A$32:$B$38,2) -> 0 | E189: =$C20*VLOOKUP(E$178,'Cost allocators'!$A$32:$B$38,2) -> 0
A190: =A180 -> Return of capital | B190: =SUM(C190:E190) -> 0 | C190: =$C21*VLOOKUP(C$178,'Cost allocators'!$A$32:$B$38,2) -> 0 | D190: =$C21*VLOOKUP(D$178,'Cost allocators'!$A$32:$B$38,2) -> 0 | E190: =$C21*VLOOKUP(E$178,'Cost allocators'!$A$32:$B$38,2) -> 0
A191: =A181 -> O&M | B191: =SUM(C191:E191) -> 2.478907773 | C191: =$C22*VLOOKUP(C$178,'Cost allocators'!$A$32:$B$38,2) -> 0.5019137871 | D191: =$C22*VLOOKUP(D$178,'Cost allocators'!$A$32:$B$38,2) -> 0.7462684833 | E191: =$C22*VLOOKUP(E$178,'Cost allocators'!$A$32:$B$38,2) -> 1.230725503
A192: =A182 -> Carry-over amounts | B192: =SUM(C192:E192) -> 0
A193: =A183 -> Benchmark Tax liability | B193: =SUM(C193:E193) -> 0
A194: Total Revenue | B194: =SUM(B189:B193) -> 2.478907773 | C194: =SUM(C189:C193) -> 0.5019137871 | D194: =SUM(D189:D193) -> 0.7462684833 | E194: =SUM(E189:E193) -> 1.230725503
A196: Checks | B196: =B194-C$25 -> -1.157579338
A198: =A188+1 -> 2015 | B198: Total | C198: =C188 -> Special Meter Read - Non Metro | D198: =D188 -> Meter and Gas Installation Test | E198: =E188 -> Special Meter Read - Metro
A199: =A189 -> Return on capital | B199: =SUM(C199:E199) -> 0 | C199: =$D20*VLOOKUP(C$178,'Cost allocators'!$A$32:$B$38,2) -> 0 | D199: =$D20*VLOOKUP(D$178,'Cost allocators'!$A$32:$B$38,2) -> 0 | E199: =$D20*VLOOKUP(E$178,'Cost allocators'!$A$32:$B$38,2) -> 0
A200: =A190 -> Return of capital | B200: =SUM(C200:E200) -> 0 | C200: =$D21*VLOOKUP(C$178,'Cost allocators'!$A$32:$B$38,2) -> 0 | D200: =$D21*VLOOKUP(D$178,'Cost allocators'!$A$32:$B$38,2) -> 0 | E200: =$D21*VLOOKUP(E$178,'Cost allocators'!$A$32:$B$38,2) -> 0
A201: =A191 -> O&M | B201: =SUM(C201:E201) -> 2.569507496 | C201: =$D22*VLOOKUP(C$178,'Cost allocators'!$A$32:$B$38,2) -> 0.520257854 | D201: =$D22*VLOOKUP(D$178,'Cost allocators'!$A$32:$B$38,2) -> 0.7735432851 | E201: =$D22*VLOOKUP(E$178,'Cost allocators'!$A$32:$B$38,2) -> 1.275706357
A202: =A192 -> Carry-over amounts | B202: =SUM(C202:E202) -> 0
A203: =A193 -> Benchmark Tax liability | B203: =SUM(C203:E203) -> 0
A204: Total Revenue | B204: =SUM(B199:B203) -> 2.569507496 | C204: =SUM(C199:C203) -> 0.520257854 | D204: =SUM(D199:D203) -> 0.7735432851 | E204: =SUM(E199:E203) -> 1.275706357
A206: Checks | B206: =B204-D$25 -> -1.199886829
A208: =A198+1 -> 2016 | B208: Total | C208: =C198 -> Special Meter Read - Non Metro | D208: =D198 -> Meter and Gas Installation Test | E208: =E198 -> Special Meter Read - Metro
A209: =A199 -> Return on capital | B209: =SUM(C209:E209) -> 0 | C209: =$E20*VLOOKUP(C$178,'Cost allocators'!$A$32:$B$38,2) -> 0 | D209: =$E20*VLOOKUP(D$178,'Cost allocators'!$A$32:$B$38,2) -> 0 | E209: =$E20*VLOOKUP(E$178,'Cost allocators'!$A$32:$B$38,2) -> 0
A210: =A200 -> Return of capital | B210: =SUM(C210:E210) -> 0 | C210: =$E21*VLOOKUP(C$178,'Cost allocators'!$A$32:$B$38,2) -> 0 | D210: =$E21*VLOOKUP(D$178,'Cost allocators'!$A$32:$B$38,2) -> 0 | E210: =$E21*VLOOKUP(E$178,'Cost allocators'!$A$32:$B$38,2) -> 0
A211: =A201 -> O&M | B211: =SUM(C211:E211) -> 2.499969435 | C211: =$E22*VLOOKUP(C$178,'Cost allocators'!$A$32:$B$38,2) -> 0.5061782211 | D211: =$E22*VLOOKUP(D$178,'Cost allocators'!$A$32:$B$38,2) -> 0.7526090398 | E211: =$E22*VLOOKUP(E$178,'Cost allocators'!$A$32:$B$38,2) -> 1.241182174
A212: =A202 -> Carry-over amounts | B212: =SUM(C212:E212) -> 0
A213: =A203 -> Benchmark Tax liability | B213: =SUM(C213:E213) -> 0
A214: Total Revenue | B214: =SUM(B209:B213) -> 2.499969435 | C214: =SUM(C209:C213) -> 0.5061782211 | D214: =SUM(D209:D213) -> 0.7526090398 | E214: =SUM(E209:E213) -> 1.241182174
A216: Checks | B216: =B214-E$25 -> -1.167414535
A218: =A208+1 -> 2017 | B218: Total | C218: =C208 -> Special Meter Read - Non Metro | D218: =D208 -> Meter and Gas Installation Test | E218: =E208 -> Special Meter Read - Metro
A219: =A209 -> Return on capital | B219: =SUM(C219:E219) -> 0 | C219: =$F20*VLOOKUP(C$178,'Cost allocators'!$A$32:$B$38,2) -> 0 | D219: =$F20*VLOOKUP(D$178,'Cost allocators'!$A$32:$B$38,2) -> 0 | E219: =$F20*VLOOKUP(E$178,'Cost allocators'!$A$32:$B$38,2) -> 0
A220: =A210 -> Return of capital | B220: =SUM(C220:E220) -> 0 | C220: =$F21*VLOOKUP(C$178,'Cost allocators'!$A$32:$B$38,2) -> 0 | D220: =$F21*VLOOKUP(D$178,'Cost allocators'!$A$32:$B$38,2) -> 0 | E220: =$F21*VLOOKUP(E$178,'Cost allocators'!$A$32:$B$38,2) -> 0
A221: =A211 -> O&M | B221: =SUM(C221:E221) -> 2.636743039 | C221: =$F22*VLOOKUP(C$178,'Cost allocators'!$A$32:$B$38,2) -> 0.5338712874 | D221: =$F22*VLOOKUP(D$178,'Cost allocators'!$A$32:$B$38,2) -> 0.7937843634 | E221: =$F22*VLOOKUP(E$178,'Cost allocators'!$A$32:$B$38,2) -> 1.309087388
A222: =A212 -> Carry-over amounts | B222: =SUM(C222:E222) -> 0
A223: =A213 -> Benchmark Tax liability | B223: =SUM(C223:E223) -> 0
A224: Total Revenue | B224: =SUM(B219:B223) -> 2.636743039 | C224: =SUM(C219:C223) -> 0.5338712874 | D224: =SUM(D219:D223) -> 0.7937843634 | E224: =SUM(E219:E223) -> 1.309087388
A226: Checks | B226: =B224-F$25 -> -1.231283913

Sheet DORC Calculations
A1: DORC Inputs and Calculations
A2: Tariff D DORC Calculations
A4: Tariff D Summary - 1 July 1999 DORC | B4: Total | C4: Mains | D4: Inlets | E4: Meters | F4: Telemetry | G4: Stations | H4: Regulators | J4: Total 2017 RAB | K4: Total 1 July 1999 RAB | N4: Mains - From 1998 DCoS Model
A5: ='General Inputs'!D30 -> Tariff D - MHQ (GJ/h) Tariff D Zone - Central | B5: =SUM(C5:H5) -> 8254681.648 | C5: =O5*$K$5 -> 8254681.648 | D5: =R5*$K$5 -> 0 | J5: =SUM('PTRM Inputs'!B16:B26)*1000000 -> 1615585636 | K5: 580000000 | M5: Revenue D Central | N5: =0.6+0.2+0.18+0.02+0.02+0.5 -> 1.52 | O5: =N5/$N$10 -> 0.01423220974
A6: ='General Inputs'!D31 -> Tariff D - MHQ (GJ/h) Tariff D Zone - North | B6: =SUM(C6:H6) -> 3475655.431 | C6: =O6*$K$5 -> 3475655.431 | D6: 0 | M6: Revenue D North | N6: =0.3+0.1+0.1+0.03+0.01+0.1 -> 0.64 | O6: =N6/$N$10 -> 0.005992509363
A7: ='General Inputs'!D32 -> Tariff D - MHQ (GJ/h) Tariff D Zone - Murray Valley (Vic) | B7: =SUM(C7:H7) -> 135767.7903 | C7: =O7*$K$5 -> 135767.7903 | D7: =R7*$K$5 -> 0 | M7: Revenue D MV | N7: 0.025 | O7: =N7/$N$10 -> 0.000234082397
A8: ='General Inputs'!D33 -> Tariff D - MHQ (GJ/h) Tariff D Zone - Bairnsdale | B8: =SUM(C8:H8) -> 0 | M8: Bairnsdale D | O8: 0.0001
A9: Tariff D - MHQ (GJ/h) Tariff D Zone - Albury | M9: Revenue D Albury | N9: =0.8 -> 0.8 | O9: =N9/$N$10 -> 0.007490636704
A10: Total | B10: =SUM(B5:B8) -> 11866104.87 | M10: Total Revenue | N10: 106.8
A13: Tariff D Summary - Closing 2017 RAB | B13: Total | C13: Mains | D13: Inlets | E13: Meters | F13: Telemetry | G13: Stations | H13: Regulators
A14: ='General Inputs'!D30 -> Tariff D - MHQ (GJ/h) Tariff D Zone - Central | B14: =SUM(C14:H14) -> 22993353.62 | C14: =C5/$K$5*$J$5 -> 22993353.62 | D14: =D5/$K$5*$J$5 -> 0 | E14: 0 | F14: 0 | G14: 0 | H14: 0
A15: ='General Inputs'!D31 -> Tariff D - MHQ (GJ/h) Tariff D Zone - North | B15: =SUM(C15:H15) -> 9681412.05 | C15: 9681412.05 | D15: 0
A16: ='General Inputs'!D32 -> Tariff D - MHQ (GJ/h) Tariff D Zone - Murray Valley (Vic) | B16: =SUM(C16:H16) -> 378180.1582 | C16: =C7/$K$5*$J$5 -> 378180.1582 | D16: 0 | E16: =E7/$K$5*$J$5 -> 0 | F16: 0 | G16: 0 | H16: 0
A17: ='General Inputs'!D33 -> Tariff D - MHQ (GJ/h) Tariff D Zone - Bairnsdale | B17: =SUM(C17:H17) -> 161558.5636 | C17: =O8/O5*C14 -> 161558.5636 | D17: 0 | E17: 0 | F17: 0 | G17: 0 | H17: 0
A18: Tariff D - MHQ (GJ/h) Tariff D Zone - Albury | B18: =SUM(C18:H18) -> 12101765.06 | C18: =O9/O6*C15 -> 12101765.06 | D18: 0 | E18: 0 | F18: 0 | G18: 0 | H18: 0
A19: Total | B19: =SUM(B14:B18) -> 45316269.45
A22: Dedicated Connection Asset Cost Calculations
A24: Tariff D - Summary by Region | B24: Meters and RDL by Region as a % of Total Tariff D RAB | C24: Meter Cost: Pro-Rata of 2011-12 Tariff D Revenue Requirement ($M) | D24: Meter Cost: Pro-Rata of 2011-12 Tariff V (Res Central) Revenue Requirement ($M) | F24: Meter Cost: Pro-Rata of 2011-12 Tariff V (Res North) Revenue Requirement ($M) | H24: Meter Cost: Pro-Rata of 2011-12 Tariff V (Res MV) Revenue Requirement ($M) | J24: Meter Cost: Pro-Rata of 2011-12 Tariff V (Res Bairnsdale) Revenue Requirement ($M) | L24: Meter Cost: Pro-Rata of 2011-12 Tariff V (Res Albury) Revenue Requirement ($M) | N24: Meter Cost: Pro-Rata of 2011-12 Tariff V (Non-Res Central) Revenue Requirement ($M) | P24: Meter Cost: Pro-Rata of 2011-12 Tariff V (Non-Res North) Revenue Requirement ($M) | R24: Meter Cost: Pro-Rata of 2011-12 Tariff V (Non-Res MV) Revenue Requirement ($M) | T24: Meter Cost: Pro-Rata of 2011-12 Tariff V (Non-Res Bairnsdale Revenue Requirement ($M) | V24: Meter Cost: Pro-Rata of 2011-12 Tariff V (Non-Res Albury Revenue Requirement ($M)
A25: =A5 -> Tariff D - MHQ (GJ/h) Tariff D Zone - Central | C25: =B25*'FDC Calculations'!$B$121 -> 0 | D25: =B30*'FDC Calculations'!B41 -> 8.192242652 | F25: =B30*'FDC Calculations'!B49 -> 1.113619333 | H25: =B30*'FDC Calculations'!F57 -> 0.1136946732 | J25: =B30*'FDC Calculations'!F73 -> 0.3412213833 | L25: =B30*'FDC Calculations'!F65 -> 0.05097588831 | N25: =B30*'FDC Calculations'!F81 -> 1.256264919 | P25: =B30*'FDC Calculations'!F89 -> 0.1627267182 | R25: =B30*'FDC Calculations'!F97 -> 0.01392030582 | T25: =B30*'FDC Calculations'!F105 -> 0.01386551192 | V25: =B30*'FDC Calculations'!F113 -> 0.05466796096
A26: =A6 -> Tariff D - MHQ (GJ/h) Tariff D Zone - North | C26: =B26*'FDC Calculations'!$B$121 -> 0
A27: =A7 -> Tariff D - MHQ (GJ/h) Tariff D Zone - Murray Valley (Vic) | C27: =B27*'FDC Calculations'!$B$121 -> 0
A28: =A8 -> Tariff D - MHQ (GJ/h) Tariff D Zone - Bairnsdale | C28: =B28*'FDC Calculations'!$B$121 -> 0
A29: =A9 -> Tariff D - MHQ (GJ/h) Tariff D Zone - Albury | C29: =B29*'FDC Calculations'!$B$121 -> 0
A30: All dedicated assets as a % of RAB (for tariffs V and D combined) | B30: ='PTRM Inputs'!B17/SUM('PTRM Inputs'!B16:B26) -> 0.05169432722

Sheet StandAlone & Avoidable Tests
A1: Standalone and Avoidable Cost Tests
A3: Standalone and Avoidable Cost Tests
A4: Tariff | B4: FDC Cost | C4: Avoidable Cost | D4: Expected Revenue 2018 ($M) | E4: Standalone Cost | F4: All Tests Met? | G4: Avoidable Test Met? | H4: Standalone Test Met? | J4: Tariff | K4: =B4 -> FDC Cost | L4: =C4 -> Avoidable Cost | M4: Expected Revenue 2018 ($M) | N4: Standalone Cost | O4: =F4 -> All Tests Met? | P4: =G4 -> Avoidable Test Met? | Q4: =H4 -> Standalone Test Met?
A5: ='General Inputs'!B20 -> Tariff R: Res Central | B5: ='FDC Calculations'!B41 -> 158.4746933 | C5: ='DORC Calculations'!D25 -> 8.192242652 | D5: =('[43]Forecast revenues'!G81+'[43]Forecast revenues'!R81+'[43]Forecast revenues'!AC81+'[43]Forecast revenues'!AN81)/1000000 -> 155.0192823 | E5: =B5+'FDC Calculations'!$B$121 -> 161.4038094 | F5: =IF(AND(D5>=C5,D5<=E5),"Test Met","Test Failed") -> Test Met | G5: =IF(D5>=C5,"Test Met","Test Failed") -> Test Met | H5: =IF(D5<=E5,"Test Met","Test Failed") -> Test Met | J5: Tariff V: Central | K5: =B5+B10 -> 180.7671575 | L5: 9.448507571 | M5: 165.9643828 | N5: 186.6253896 | O5: =IF(AND(M5>=L5,M5<=N5),"Test Met","Test Failed") -> Test Met | P5: =IF(M5>=L5,"Test Met","Test Failed") -> Test Met | Q5: =IF(M5<=N5,"Test Met","Test Failed") -> Test Met
A6: ='General Inputs'!B21 -> Tariff R: Res North | B6: ='FDC Calculations'!B49 -> 21.54238952 | C6: ='DORC Calculations'!F25 -> 1.113619333 | D6: =('[43]Forecast revenues'!G82+'[43]Forecast revenues'!R82+'[43]Forecast revenues'!AC82+'[43]Forecast revenues'!AN82)/1000000 -> 19.1591751 | E6: =B6+'FDC Calculations'!$B$121 -> 24.47150558 | F6: Test Met | G6: Test Met | H6: Test Met | J6: Tariff V: North | K6: 24.42998073 | L6: 1.276346051 | M6: 20.43923476 | N6: 30.28821285 | O6: =IF(AND(M6>=L6,M6<=N6),"Test Met","Test Failed") -> Test Met | P6: =IF(M6>=L6,"Test Met","Test Failed") -> Test Met | Q6: =IF(M6<=N6,"Test Met","Test Failed") -> Test Met
A7: ='General Inputs'!B22 -> Tariff R: Res MV (Vic) | B7: ='FDC Calculations'!B57 -> 2.017515886 | C7: ='DORC Calculations'!H25 -> 0.1136946732 | D7: =('[43]Forecast revenues'!G83+'[43]Forecast revenues'!R83+'[43]Forecast revenues'!AC83+'[43]Forecast revenues'!AN83)/1000000 -> 1.928712027 | E7: =B7+'FDC Calculations'!$B$121 -> 4.946631946 | F7: =IF(AND(D7>=C7,D7<=E7),"Test Met","Test Failed") -> Test Met | G7: =IF(D7>=C7,"Test Met","Test Failed") -> Test Met | H7: =IF(D7<=E7,"Test Met","Test Failed") -> Test Met | J7: Tariff V: MV (Vic) | K7: =B7+B12 -> 2.264532191 | L7: 0.127614979 | M7: 2.096288815 | N7: =E7+E12 -> 8.122764312 | O7: Test Met | P7: Test Met | Q7: Test Met
A8: ='General Inputs'!B23 -> Tariff R: Res Bairnsdale | B8: ='FDC Calculations'!B65 -> 0.9045688909 | C8: ='DORC Calculations'!J25 -> 0.3412213833 | D8: =('[43]Forecast revenues'!G84+'[43]Forecast revenues'!R84+'[43]Forecast revenues'!AC84+'[43]Forecast revenues'!AN84)/1000000 -> 1.502002571 | E8: =B8+'FDC Calculations'!$B$121 -> 3.833684951 | F8: =IF(AND(D8>=C8,D8<=E8),"Test Met","Test Failed") -> Test Met | G8: Test Met | H8: Test Met | J8: Tariff V: Bairnsdale | K8: =B8+B13 -> 1.150612877 | L8: 0.3550868952 | M8: 1.645914338 | N8: =E8+E13 -> 7.008844998 | O8: Test Met | P8: Test Met | Q8: Test Met
A9: ='General Inputs'!B24 -> Tariff R: Res Albury | B9: ='FDC Calculations'!B73 -> 6.05498518 | C9: ='DORC Calculations'!L25 -> 0.05097588831 | D9: =('[43]Forecast revenues'!G92+'[43]Forecast revenues'!R92+'[43]Forecast revenues'!AC92+'[43]Forecast revenues'!AN92)/1000000 -> 5.160424392 | E9: =B9+'FDC Calculations'!$B$121 -> 8.984101241 | F9: =IF(AND(D9>=C9,D9<=E9),"Test Met","Test Failed") -> Test Met | G9: =IF(D9>=C9,"Test Met","Test Failed") -> Test Met | H9: =IF(D9<=E9,"Test Met","Test Failed") -> Test Met | J9: Tariff V: Albury | K9: =B9+B14 -> 7.025070027 | L9: =C9+C14 -> 0.1056438493 | M9: =D9+D14 -> 5.539637567 | N9: =E9+E14 -> 12.88330215 | O9: =IF(AND(M9>=L9,M9<=N9),"Test Met","Test Failed") -> Test Met | P9: =IF(M9>=L9,"Test Met","Test Failed") -> Test Met | Q9: =IF(M9<=N9,"Test Met","Test Failed") -> Test Met
A10: ='General Inputs'!B25 -> Tariff C: Non- Res Central | B10: ='FDC Calculations'!B81 -> 22.29246418 | C10: ='DORC Calculations'!N25 -> 1.256264919 | D10: =('[43]Forecast revenues'!G85+'[43]Forecast revenues'!R85+'[43]Forecast revenues'!AC85+'[43]Forecast revenues'!AN85)/1000000 -> 10.94510045 | E10: =B10+'FDC Calculations'!$B$121 -> 25.22158024 | F10: =IF(AND(D10>=C10,D10<=E10),"Test Met","Test Failed") -> Test Met | G10: Test Met | H10: Test Met | J10: Tariff D: Central/North | K10: =SUM(B15:B16) -> 2.841972225 | L10: =SUM(C15:C16) -> 0 | M10: =SUM(D15:D16) -> 4.300681581 | N10: =E15 -> 4.930831617 | O10: Test Met | P10: Test Met | Q10: Test Met
A11: ='General Inputs'!B26 -> Tariff C: Non- Res North | B11: ='FDC Calculations'!B89 -> 2.88759121 | C11: ='DORC Calculations'!P25 -> 0.1627267182 | D11: =('[43]Forecast revenues'!G86+'[43]Forecast revenues'!R86+'[43]Forecast revenues'!AC86+'[43]Forecast revenues'!AN86)/1000000 -> 1.280059661 | E11: =B11+'FDC Calculations'!$B$121 -> 5.81670727 | F11: Test Met | G11: Test Met | H11: Test Met | J11: Tariff D: MV (Vic) | K11: =B17 -> 0.03335796507 | L11: =C17 -> 0 | M11: 0.2241875601 | N11: 2.962474025 | O11: Test Met | P11: Test Met | Q11: Test Met
A12: ='General Inputs'!B27 -> Tariff C: Non- Res MV (Vic) | B12: ='FDC Calculations'!B97 -> 0.2470163055 | C12: ='DORC Calculations'!R25 -> 0.01392030582 | D12: =('[43]Forecast revenues'!G87+'[43]Forecast revenues'!R87+'[43]Forecast revenues'!AC87+'[43]Forecast revenues'!AN87)/1000000 -> 0.1675767878 | E12: =B12+'FDC Calculations'!$B$121 -> 3.176132366 | F12: Test Met | G12: Test Met | H12: Test Met | J12: Tariff D: Bairnsdale | K12: =B18 -> 0.01408941863 | L12: =C18 -> 0 | M12: 0.03333947092 | N12: 2.943205479 | O12: Test Met | P12: Test Met | Q12: Test Met
A13: ='General Inputs'!B28 -> Tariff C: Non- Res Bairnsdale | B13: ='FDC Calculations'!B105 -> 0.2460439859 | C13: ='DORC Calculations'!T25 -> 0.01386551192 | D13: =('[43]Forecast revenues'!G88+'[43]Forecast revenues'!R88+'[43]Forecast revenues'!AC88+'[43]Forecast revenues'!AN88)/1000000 -> 0.1439117678 | E13: =B13+'FDC Calculations'!$B$121 -> 3.175160046 | F13: Test Met | G13: Test Met | H13: Test Met | J13: Tariff D: Albury | K13: =B19 -> 0.03969645168 | L13: =C19 -> 0 | M13: =D19 -> 0.1858073019 | N13: =E19 -> 2.968812512 | O13: =IF(AND(M13>=L13,M13<=N13),"Test Met","Test Failed") -> Test Met | P13: =IF(M13>=L13,"Test Met","Test Failed") -> Test Met | Q13: =IF(M13<=N13,"Test Met","Test Failed") -> Test Met
A14: ='General Inputs'!B29 -> Tariff C: Non- Res Albury | B14: ='FDC Calculations'!B113 -> 0.9700848471 | C14: ='DORC Calculations'!V25 -> 0.05466796096 | D14: =('[43]Forecast revenues'!G93+'[43]Forecast revenues'!R93+'[43]Forecast revenues'!AC93+'[43]Forecast revenues'!AN93)/1000000 -> 0.3792131756 | E14: =B14+'FDC Calculations'!$B$121 -> 3.899200908 | F14: =IF(AND(D14>=C14,D14<=E14),"Test Met","Test Failed") -> Test Met | G14: =IF(D14>=C14,"Test Met","Test Failed") -> Test Met | H14: =IF(D14<=E14,"Test Met","Test Failed") -> Test Met
A15: ='General Inputs'!B30 -> Tariff D: Central | B15: ='FDC Calculations'!C132 -> 2.001715556 | C15: ='DORC Calculations'!C25 -> 0 | D15: =(('[43]Forecast revenues'!$R$89+'[43]Forecast revenues'!$AC$89+'[43]Forecast revenues'!$AN$89)/1000000)*'Volume Inputs'!L197 -> 3.392543024 | E15: =B15+'FDC Calculations'!$B$121 -> 4.930831617 | F15: Test Met | G15: Test Met | H15: Test Met
A16: ='General Inputs'!B31 -> Tariff D: North | B16: ='FDC Calculations'!D132 -> 0.8402566687 | C16: ='DORC Calculations'!C26 -> 0 | D16: =(('[43]Forecast revenues'!$R$89+'[43]Forecast revenues'!$AC$89+'[43]Forecast revenues'!$AN$89)/1000000)*'Volume Inputs'!M197 -> 0.9081385565 | E16: =B16+'FDC Calculations'!$B$121 -> 3.769372729 | F16: Test Met | G16: Test Met | H16: Test Met
A17: ='General Inputs'!B32 -> Tariff D: MV (Vic) | B17: ='FDC Calculations'!E132 -> 0.03335796507 | C17: ='DORC Calculations'!C27 -> 0 | D17: =('[43]Forecast revenues'!R90+'[43]Forecast revenues'!AC90+'[43]Forecast revenues'!AN90)/1000000 -> 0.2241875601 | E17: =B17+'FDC Calculations'!$B$121 -> 2.962474025 | F17: Test Met | G17: Test Met | H17: Test Met
A18: ='General Inputs'!B33 -> Tariff D: Bairnsdale | B18: ='FDC Calculations'!F132 -> 0.01408941863 | C18: ='DORC Calculations'!C28 -> 0 | D18: =('[43]Forecast revenues'!R91+'[43]Forecast revenues'!AC91+'[43]Forecast revenues'!AN91)/1000000 -> 0.03333947092 | E18: =B18+'FDC Calculations'!$B$121 -> 2.943205479 | F18: Test Met | G18: Test Met | H18: Test Met
A19: ='General Inputs'!B34 -> Tariff D: Albury | B19: ='FDC Calculations'!G132 -> 0.03969645168 | C19: ='DORC Calculations'!C29 -> 0 | D19: =('[43]Forecast revenues'!$G$94+'[43]Forecast revenues'!R94+'[43]Forecast revenues'!AC94+'[43]Forecast revenues'!AN94)/1000000 -> 0.1858073019 | E19: =B19+'FDC Calculations'!$B$121 -> 2.968812512 | F19: =IF(AND(D19>=C19,D19<=E19),"Test Met","Test Failed") -> Test Met | G19: =IF(D19>=C19,"Test Met","Test Failed") -> Test Met | H19: =IF(D19<=E19,"Test Met","Test Failed") -> Test Met
A20: Meter and Gas Installation Test | B20: ='FDC Calculations'!C184 -> 0.4892715906 | C20: 0 | D20: 0.014801 | E20: =D20 -> 0.014801 | F20: Test Met | G20: Test Met | H20: Test Met
A21: Disconnection Test | C21: 0 | D21: 0.45126855 | E21: =D21 -> 0.45126855 | F21: =IF(AND(D21>=C21,D21<=E21),"Test Met","Test Failed") -> Test Met | G21: =IF(D21>=C21,"Test Met","Test Failed") -> Test Met | H21: =IF(D21<=E21,"Test Met","Test Failed") -> Test Met
A22: Reconnection | C22: 0 | D22: 0.4974366 | E22: 0.4974366 | F22: Test Met | G22: Test Met | H22: Test Met
A23: Meter Removal | C23: 0 | D23: 0.1706625 | E23: 0.1706625 | F23: Test Met | G23: Test Met | H23: Test Met
A24: Meter Reinstallation | C24: 0 | D24: 0.013653 | E24: 0.013653 | F24: Test Met | G24: Test Met | H24: Test Met
A25: Special Meter Read | C25: 0 | D25: 1.25336754 | E25: 1.25336754 | F25: Test Met | G25: Test Met | H25: Test Met
C26: 0
